Workbook

Sheet Introduction
B3: =Benchmarking!C1&" Data" -> 2023-24 Data | D3: ="Kent LA Schools' Benchmarking Data "&Benchmarking!C1 -> Kent LA Schools' Benchmarking Data 2023-24
D5: THIS BENCHMARKING SHEET IS FOR SPECIAL SCHOOLS ONLY
D7: ="The Benchmarking spreadsheet shows the income and expenditure information for the "&Benchmarking!C1&" financial year at subjective account level i.e. CFR codes. It shows all revenue income and expenditure including standards funds. Capital income and expenditure is excluded." -> The Benchmarking spreadsheet shows the income and expenditure information for the 2023-24 financial year at subjective account level i.e. CFR codes. It shows all revenue income and expenditure including standards funds. Capital income and expenditure is excluded.
D12: Enter your DFE number in the green shaded box, you can enter the last four digits or use the drop down box.
D14: The pink drop down boxes allow you to select up to three Schools to benchmark against
D17: If you DO NOT want to include Fund 50 figures, select "Yes" from the drop down box in C9
D19: The sheet is formatted to print on one page.
D21: CFR = Consistent Financial Reporting

Sheet Benchmarking
B1: Subjective Analysis of | C1: 2023-24 | D1: Income and Expenditure Compared to Group and Phase Averages
I3: Select a school to Benchmark against | N3: Select a school to Benchmark against | S3: Select a school to Benchmark against
C4: Enter last 4 digits of your DfE No. | E4: Number of Places | G4: =IF(ISERROR(ROUND(VLOOKUP(D4,'2023-24 Data'!A3:G23,7,0),0)),"",ROUND(VLOOKUP(D4,'2023-24 Data'!A3:G23,7,0),0)) -> 
B5: =B1&C1&D1 -> Subjective Analysis of 2023-24 Income and Expenditure Compared to Group and Phase Averages
I6: =IF(ISERROR(SUMIF(Schools,I4,dfenums)),"",SUMIF(Schools,I4,dfenums)) -> 0 | J6: =IF(ISERROR(ROUND(VLOOKUP(I6,'2023-24 Data'!$A$3:$G$23,7,0),0)),"",ROUND(VLOOKUP(I6,'2023-24 Data'!$A$3:$G$23,7,0),0)) ->  | N6: =IF(ISERROR(SUMIF(Schools,N4,dfenums)),"",SUMIF(Schools,N4,dfenums)) -> 0 | O6: =IF(ISERROR(ROUND(VLOOKUP(N6,'2023-24 Data'!$A$3:$G$23,7,0),0)),"",ROUND(VLOOKUP(N6,'2023-24 Data'!$A$3:$G$23,7,0),0)) ->  | S6: =IF(ISERROR(SUMIF(Schools,S4,dfenums)),"",SUMIF(Schools,S4,dfenums)) -> 0 | T6: =IF(ISERROR(ROUND(VLOOKUP(S6,'2023-24 Data'!$A$3:$G$23,7,0),0)),"",ROUND(VLOOKUP(S6,'2023-24 Data'!$A$3:$G$23,7,0),0)) -> 
I7: =IF(I4="","",IF(D4=I6,"This is your school","")) ->  | N7: =IF(N4="","",IF(N6=D4,"This is your school",IF(I6=N6,"you have already selected this school",""))) ->  | S7: =IF(S4="","",IF(S6=I6,"This is your school",IF(N6=S6,"You have already selected this school",""))) -> 
D8: =IF(ISERROR(VLOOKUP(D4,'2023-24 Data'!A3:B23,2,0)),"",VLOOKUP(D4,'2023-24 Data'!A3:B23,2,0)) -> 
B9: Remove Fund 50 | C9: No | D9: total Exp. / Inc. | E9: amount per place | F9: amount per attending FTE | G9: % of Exp | I9: total Exp. / Inc. | J9: amount per place | K9: amount per attending FTE | L9: % of Exp | N9: total Exp. / Inc. | O9: amount per place | P9: amount per attending FTE | Q9: % of Exp | S9: total Exp. / Inc. | T9: amount per place | U9: amount per attending FTE | V9: % of Exp
B10: (Total Revenue) | D10: £ | E10: £ | F10: £ | G10: % | I10: £ | J10: £ | K10: £ | L10: % | N10: £ | O10: £ | P10: £ | Q10: % | S10: £ | T10: £ | U10: £ | V10: %
B12: EXPENDITURE
B13: Teaching staff | C13: E01 | D13: =IF(ISERROR(INDEX('2023-24 Data'!$B$3:$BG$23,MATCH($D$4,dfenums,0),MATCH(C13,'2023-24 Data'!$B$2:$BG$2,0))),"",INDEX('2023-24 Data'!$B$3:$BG$23,MATCH($D$4,dfenums,0),MATCH(C13,'2023-24 Data'!$B$2:$BG$2,0))) ->  | E13: =IF(ISERROR(D13/$G$4),"",D13/$G$4) ->  | F13: =IF(ISERROR(D13/VLOOKUP($D$4,'2023-24 Data'!$A$3:$H$23,8,0)),"",D13/VLOOKUP($D$4,'2023-24 Data'!$A$3:$H$23,8,0)) ->  | G13: =IF(ISERROR(D13/$D$45),"",D13/$D$45) ->  | I13: =IF(ISERROR(INDEX('2023-24 Data'!$B$3:$BG$23,MATCH($I$6,dfenums,0),MATCH(C13,'2023-24 Data'!$B$2:$BG$2,0))),"",INDEX('2023-24 Data'!$B$3:$BG$23,MATCH($I$6,dfenums,0),MATCH(C13,'2023-24 Data'!$B$2:$BG$2,0))) ->  | J13: =IF(ISERROR(I13/$J$6),"",I13/$J$6) ->  | K13: =IF(ISERROR(I13/VLOOKUP($I$6,'2023-24 Data'!$A$3:$H$23,8,0)),"",I13/VLOOKUP($I$6,'2023-24 Data'!$A$3:$H$23,8,0)) ->  | L13: =IF(ISERROR(I13/$I$45),"",I13/$I$45) ->  | N13: =IF(ISERROR(INDEX('2023-24 Data'!$B$3:$BG$23,MATCH($N$6,dfenums,0),MATCH(C13,'2023-24 Data'!$B$2:$BG$2,0))),"",INDEX('2023-24 Data'!$B$3:$BG$23,MATCH($N$6,dfenums,0),MATCH(C13,'2023-24 Data'!$B$2:$BG$2,0))) ->  | O13: =IF(ISERROR(N13/$O$6),"",N13/$O$6) ->  | P13: =IF(ISERROR(N13/VLOOKUP($N$6,'2023-24 Data'!$A$3:$H$23,8,0)),"",N13/VLOOKUP($N$6,'2023-24 Data'!$A$3:$H$23,8,0)) ->  | Q13: =IF(ISERROR(N13/$N$45),"",N13/$N$45) ->  | S13: =IF(ISERROR(INDEX('2023-24 Data'!$B$3:$BG$23,MATCH($S$6,dfenums,0),MATCH(C13,'2023-24 Data'!$B$2:$BG$2,0))),"",INDEX('2023-24 Data'!$B$3:$BG$23,MATCH($S$6,dfenums,0),MATCH(C13,'2023-24 Data'!$B$2:$BG$2,0))) ->  | T13: =IF(ISERROR(S13/$T$6),"",S13/$T$6) ->  | U13: =IF(ISERROR(S13/VLOOKUP($S$6,'2023-24 Data'!$A$3:$H$23,8,0)),"",S13/VLOOKUP($S$6,'2023-24 Data'!$A$3:$H$23,8,0)) ->  | V13: =IF(ISERROR(S13/$S$45),"",S13/$S$45) -> 
B14: Supply teaching staff | C14: E02 | D14: =IF(ISERROR(INDEX('2023-24 Data'!$B$3:$BG$23,MATCH($D$4,dfenums,0),MATCH(C14,'2023-24 Data'!$B$2:$BG$2,0))),"",INDEX('2023-24 Data'!$B$3:$BG$23,MATCH($D$4,dfenums,0),MATCH(C14,'2023-24 Data'!$B$2:$BG$2,0))) ->  | E14: =IF(ISERROR(D14/$G$4),"",D14/$G$4) ->  | F14: =IF(ISERROR(D14/VLOOKUP($D$4,'2023-24 Data'!$A$3:$H$23,8,0)),"",D14/VLOOKUP($D$4,'2023-24 Data'!$A$3:$H$23,8,0)) ->  | I14: =IF(ISERROR(INDEX('2023-24 Data'!$B$3:$BG$23,MATCH($I$6,dfenums,0),MATCH(C14,'2023-24 Data'!$B$2:$BG$2,0))),"",INDEX('2023-24 Data'!$B$3:$BG$23,MATCH($I$6,dfenums,0),MATCH(C14,'2023-24 Data'!$B$2:$BG$2,0))) ->  | J14: =IF(ISERROR(I14/$J$6),"",I14/$J$6) ->  | K14: =IF(ISERROR(I14/VLOOKUP($I$6,'2023-24 Data'!$A$3:$H$23,8,0)),"",I14/VLOOKUP($I$6,'2023-24 Data'!$A$3:$H$23,8,0)) ->  | N14: =IF(ISERROR(INDEX('2023-24 Data'!$B$3:$BG$23,MATCH($N$6,dfenums,0),MATCH(C14,'2023-24 Data'!$B$2:$BG$2,0))),"",INDEX('2023-24 Data'!$B$3:$BG$23,MATCH($N$6,dfenums,0),MATCH(C14,'2023-24 Data'!$B$2:$BG$2,0))) ->  | O14: =IF(ISERROR(N14/$O$6),"",N14/$O$6) ->  | P14: =IF(ISERROR(N14/VLOOKUP($N$6,'2023-24 Data'!$A$3:$H$23,8,0)),"",N14/VLOOKUP($N$6,'2023-24 Data'!$A$3:$H$23,8,0)) ->  | S14: =IF(ISERROR(INDEX('2023-24 Data'!$B$3:$BG$23,MATCH($S$6,dfenums,0),MATCH(C14,'2023-24 Data'!$B$2:$BG$2,0))),"",INDEX('2023-24 Data'!$B$3:$BG$23,MATCH($S$6,dfenums,0),MATCH(C14,'2023-24 Data'!$B$2:$BG$2,0))) ->  | T14: =IF(ISERROR(S14/$T$6),"",S14/$T$6) ->  | U14: =IF(ISERROR(S14/VLOOKUP($S$6,'2023-24 Data'!$A$3:$H$23,8,0)),"",S14/VLOOKUP($S$6,'2023-24 Data'!$A$3:$H$23,8,0)) -> 
B15: Education support staff | C15: E03 | D15: =IF(ISERROR(INDEX('2023-24 Data'!$B$3:$BG$23,MATCH($D$4,dfenums,0),MATCH(C15,'2023-24 Data'!$B$2:$BG$2,0))),"",INDEX('2023-24 Data'!$B$3:$BG$23,MATCH($D$4,dfenums,0),MATCH(C15,'2023-24 Data'!$B$2:$BG$2,0))) ->  | F15: =IF(ISERROR(D15/VLOOKUP($D$4,'2023-24 Data'!$A$3:$H$23,8,0)),"",D15/VLOOKUP($D$4,'2023-24 Data'!$A$3:$H$23,8,0)) ->  | I15: =IF(ISERROR(INDEX('2023-24 Data'!$B$3:$BG$23,MATCH($I$6,dfenums,0),MATCH(C15,'2023-24 Data'!$B$2:$BG$2,0))),"",INDEX('2023-24 Data'!$B$3:$BG$23,MATCH($I$6,dfenums,0),MATCH(C15,'2023-24 Data'!$B$2:$BG$2,0))) ->  | K15: =IF(ISERROR(I15/VLOOKUP($I$6,'2023-24 Data'!$A$3:$H$23,8,0)),"",I15/VLOOKUP($I$6,'2023-24 Data'!$A$3:$H$23,8,0)) ->  | N15: =IF(ISERROR(INDEX('2023-24 Data'!$B$3:$BG$23,MATCH($N$6,dfenums,0),MATCH(C15,'2023-24 Data'!$B$2:$BG$2,0))),"",INDEX('2023-24 Data'!$B$3:$BG$23,MATCH($N$6,dfenums,0),MATCH(C15,'2023-24 Data'!$B$2:$BG$2,0))) ->  | P15: =IF(ISERROR(N15/VLOOKUP($N$6,'2023-24 Data'!$A$3:$H$23,8,0)),"",N15/VLOOKUP($N$6,'2023-24 Data'!$A$3:$H$23,8,0)) ->  | S15: =IF(ISERROR(INDEX('2023-24 Data'!$B$3:$BG$23,MATCH($S$6,dfenums,0),MATCH(C15,'2023-24 Data'!$B$2:$BG$2,0))),"",INDEX('2023-24 Data'!$B$3:$BG$23,MATCH($S$6,dfenums,0),MATCH(C15,'2023-24 Data'!$B$2:$BG$2,0))) ->  | U15: =IF(ISERROR(S15/VLOOKUP($S$6,'2023-24 Data'!$A$3:$H$23,8,0)),"",S15/VLOOKUP($S$6,'2023-24 Data'!$A$3:$H$23,8,0)) -> 
B16: Premises staff | C16: E04 | D16: =IF(ISERROR(INDEX('2023-24 Data'!$B$3:$BG$23,MATCH($D$4,dfenums,0),MATCH(C16,'2023-24 Data'!$B$2:$BG$2,0))),"",INDEX('2023-24 Data'!$B$3:$BG$23,MATCH($D$4,dfenums,0),MATCH(C16,'2023-24 Data'!$B$2:$BG$2,0))) ->  | F16: =IF(ISERROR(D16/VLOOKUP($D$4,'2023-24 Data'!$A$3:$H$23,8,0)),"",D16/VLOOKUP($D$4,'2023-24 Data'!$A$3:$H$23,8,0)) ->  | I16: =IF(ISERROR(INDEX('2023-24 Data'!$B$3:$BG$23,MATCH($I$6,dfenums,0),MATCH(C16,'2023-24 Data'!$B$2:$BG$2,0))),"",INDEX('2023-24 Data'!$B$3:$BG$23,MATCH($I$6,dfenums,0),MATCH(C16,'2023-24 Data'!$B$2:$BG$2,0))) ->  | K16: =IF(ISERROR(I16/VLOOKUP($I$6,'2023-24 Data'!$A$3:$H$23,8,0)),"",I16/VLOOKUP($I$6,'2023-24 Data'!$A$3:$H$23,8,0)) ->  | N16: =IF(ISERROR(INDEX('2023-24 Data'!$B$3:$BG$23,MATCH($N$6,dfenums,0),MATCH(C16,'2023-24 Data'!$B$2:$BG$2,0))),"",INDEX('2023-24 Data'!$B$3:$BG$23,MATCH($N$6,dfenums,0),MATCH(C16,'2023-24 Data'!$B$2:$BG$2,0))) ->  | P16: =IF(ISERROR(N16/VLOOKUP($N$6,'2023-24 Data'!$A$3:$H$23,8,0)),"",N16/VLOOKUP($N$6,'2023-24 Data'!$A$3:$H$23,8,0)) ->  | S16: =IF(ISERROR(INDEX('2023-24 Data'!$B$3:$BG$23,MATCH($S$6,dfenums,0),MATCH(C16,'2023-24 Data'!$B$2:$BG$2,0))),"",INDEX('2023-24 Data'!$B$3:$BG$23,MATCH($S$6,dfenums,0),MATCH(C16,'2023-24 Data'!$B$2:$BG$2,0))) ->  | U16: =IF(ISERROR(S16/VLOOKUP($S$6,'2023-24 Data'!$A$3:$H$23,8,0)),"",S16/VLOOKUP($S$6,'2023-24 Data'!$A$3:$H$23,8,0)) -> 
B17: Administrative and clerical staff | C17: E05 | D17: =IF(ISERROR(INDEX('2023-24 Data'!$B$3:$BG$23,MATCH($D$4,dfenums,0),MATCH(C17,'2023-24 Data'!$B$2:$BG$2,0))),"",INDEX('2023-24 Data'!$B$3:$BG$23,MATCH($D$4,dfenums,0),MATCH(C17,'2023-24 Data'!$B$2:$BG$2,0))) ->  | F17: =IF(ISERROR(D17/VLOOKUP($D$4,'2023-24 Data'!$A$3:$H$23,8,0)),"",D17/VLOOKUP($D$4,'2023-24 Data'!$A$3:$H$23,8,0)) ->  | I17: =IF(ISERROR(INDEX('2023-24 Data'!$B$3:$BG$23,MATCH($I$6,dfenums,0),MATCH(C17,'2023-24 Data'!$B$2:$BG$2,0))),"",INDEX('2023-24 Data'!$B$3:$BG$23,MATCH($I$6,dfenums,0),MATCH(C17,'2023-24 Data'!$B$2:$BG$2,0))) ->  | K17: =IF(ISERROR(I17/VLOOKUP($I$6,'2023-24 Data'!$A$3:$H$23,8,0)),"",I17/VLOOKUP($I$6,'2023-24 Data'!$A$3:$H$23,8,0)) ->  | N17: =IF(ISERROR(INDEX('2023-24 Data'!$B$3:$BG$23,MATCH($N$6,dfenums,0),MATCH(C17,'2023-24 Data'!$B$2:$BG$2,0))),"",INDEX('2023-24 Data'!$B$3:$BG$23,MATCH($N$6,dfenums,0),MATCH(C17,'2023-24 Data'!$B$2:$BG$2,0))) ->  | P17: =IF(ISERROR(N17/VLOOKUP($N$6,'2023-24 Data'!$A$3:$H$23,8,0)),"",N17/VLOOKUP($N$6,'2023-24 Data'!$A$3:$H$23,8,0)) ->  | S17: =IF(ISERROR(INDEX('2023-24 Data'!$B$3:$BG$23,MATCH($S$6,dfenums,0),MATCH(C17,'2023-24 Data'!$B$2:$BG$2,0))),"",INDEX('2023-24 Data'!$B$3:$BG$23,MATCH($S$6,dfenums,0),MATCH(C17,'2023-24 Data'!$B$2:$BG$2,0))) ->  | U17: =IF(ISERROR(S17/VLOOKUP($S$6,'2023-24 Data'!$A$3:$H$23,8,0)),"",S17/VLOOKUP($S$6,'2023-24 Data'!$A$3:$H$23,8,0)) -> 
B18: Catering staff | C18: E06 | D18: =IF(ISERROR(INDEX('2023-24 Data'!$B$3:$BG$23,MATCH($D$4,dfenums,0),MATCH(C18,'2023-24 Data'!$B$2:$BG$2,0))),"",INDEX('2023-24 Data'!$B$3:$BG$23,MATCH($D$4,dfenums,0),MATCH(C18,'2023-24 Data'!$B$2:$BG$2,0))) ->  | F18: =IF(ISERROR(D18/VLOOKUP($D$4,'2023-24 Data'!$A$3:$H$23,8,0)),"",D18/VLOOKUP($D$4,'2023-24 Data'!$A$3:$H$23,8,0)) ->  | I18: =IF(ISERROR(INDEX('2023-24 Data'!$B$3:$BG$23,MATCH($I$6,dfenums,0),MATCH(C18,'2023-24 Data'!$B$2:$BG$2,0))),"",INDEX('2023-24 Data'!$B$3:$BG$23,MATCH($I$6,dfenums,0),MATCH(C18,'2023-24 Data'!$B$2:$BG$2,0))) ->  | K18: =IF(ISERROR(I18/VLOOKUP($I$6,'2023-24 Data'!$A$3:$H$23,8,0)),"",I18/VLOOKUP($I$6,'2023-24 Data'!$A$3:$H$23,8,0)) ->  | N18: =IF(ISERROR(INDEX('2023-24 Data'!$B$3:$BG$23,MATCH($N$6,dfenums,0),MATCH(C18,'2023-24 Data'!$B$2:$BG$2,0))),"",INDEX('2023-24 Data'!$B$3:$BG$23,MATCH($N$6,dfenums,0),MATCH(C18,'2023-24 Data'!$B$2:$BG$2,0))) ->  | P18: =IF(ISERROR(N18/VLOOKUP($N$6,'2023-24 Data'!$A$3:$H$23,8,0)),"",N18/VLOOKUP($N$6,'2023-24 Data'!$A$3:$H$23,8,0)) ->  | S18: =IF(ISERROR(INDEX('2023-24 Data'!$B$3:$BG$23,MATCH($S$6,dfenums,0),MATCH(C18,'2023-24 Data'!$B$2:$BG$2,0))),"",INDEX('2023-24 Data'!$B$3:$BG$23,MATCH($S$6,dfenums,0),MATCH(C18,'2023-24 Data'!$B$2:$BG$2,0))) ->  | U18: =IF(ISERROR(S18/VLOOKUP($S$6,'2023-24 Data'!$A$3:$H$23,8,0)),"",S18/VLOOKUP($S$6,'2023-24 Data'!$A$3:$H$23,8,0)) -> 
B19: Cost of other staff | C19: E07 | D19: =IF(ISERROR(INDEX('2023-24 Data'!$B$3:$BG$23,MATCH($D$4,dfenums,0),MATCH(C19,'2023-24 Data'!$B$2:$BG$2,0))),"",INDEX('2023-24 Data'!$B$3:$BG$23,MATCH($D$4,dfenums,0),MATCH(C19,'2023-24 Data'!$B$2:$BG$2,0))) ->  | F19: =IF(ISERROR(D19/VLOOKUP($D$4,'2023-24 Data'!$A$3:$H$23,8,0)),"",D19/VLOOKUP($D$4,'2023-24 Data'!$A$3:$H$23,8,0)) ->  | I19: =IF(ISERROR(INDEX('2023-24 Data'!$B$3:$BG$23,MATCH($I$6,dfenums,0),MATCH(C19,'2023-24 Data'!$B$2:$BG$2,0))),"",INDEX('2023-24 Data'!$B$3:$BG$23,MATCH($I$6,dfenums,0),MATCH(C19,'2023-24 Data'!$B$2:$BG$2,0))) ->  | K19: =IF(ISERROR(I19/VLOOKUP($I$6,'2023-24 Data'!$A$3:$H$23,8,0)),"",I19/VLOOKUP($I$6,'2023-24 Data'!$A$3:$H$23,8,0)) ->  | N19: =IF(ISERROR(INDEX('2023-24 Data'!$B$3:$BG$23,MATCH($N$6,dfenums,0),MATCH(C19,'2023-24 Data'!$B$2:$BG$2,0))),"",INDEX('2023-24 Data'!$B$3:$BG$23,MATCH($N$6,dfenums,0),MATCH(C19,'2023-24 Data'!$B$2:$BG$2,0))) ->  | P19: =IF(ISERROR(N19/VLOOKUP($N$6,'2023-24 Data'!$A$3:$H$23,8,0)),"",N19/VLOOKUP($N$6,'2023-24 Data'!$A$3:$H$23,8,0)) ->  | S19: =IF(ISERROR(INDEX('2023-24 Data'!$B$3:$BG$23,MATCH($S$6,dfenums,0),MATCH(C19,'2023-24 Data'!$B$2:$BG$2,0))),"",INDEX('2023-24 Data'!$B$3:$BG$23,MATCH($S$6,dfenums,0),MATCH(C19,'2023-24 Data'!$B$2:$BG$2,0))) ->  | U19: =IF(ISERROR(S19/VLOOKUP($S$6,'2023-24 Data'!$A$3:$H$23,8,0)),"",S19/VLOOKUP($S$6,'2023-24 Data'!$A$3:$H$23,8,0)) -> 
B20: Indirect employee expenses | C20: E08 | D20: =IF(ISERROR(INDEX('2023-24 Data'!$B$3:$BG$23,MATCH($D$4,dfenums,0),MATCH(C20,'2023-24 Data'!$B$2:$BG$2,0))),"",INDEX('2023-24 Data'!$B$3:$BG$23,MATCH($D$4,dfenums,0),MATCH(C20,'2023-24 Data'!$B$2:$BG$2,0))) ->  | F20: =IF(ISERROR(D20/VLOOKUP($D$4,'2023-24 Data'!$A$3:$H$23,8,0)),"",D20/VLOOKUP($D$4,'2023-24 Data'!$A$3:$H$23,8,0)) ->  | I20: =IF(ISERROR(INDEX('2023-24 Data'!$B$3:$BG$23,MATCH($I$6,dfenums,0),MATCH(C20,'2023-24 Data'!$B$2:$BG$2,0))),"",INDEX('2023-24 Data'!$B$3:$BG$23,MATCH($I$6,dfenums,0),MATCH(C20,'2023-24 Data'!$B$2:$BG$2,0))) ->  | K20: =IF(ISERROR(I20/VLOOKUP($I$6,'2023-24 Data'!$A$3:$H$23,8,0)),"",I20/VLOOKUP($I$6,'2023-24 Data'!$A$3:$H$23,8,0)) ->  | N20: =IF(ISERROR(INDEX('2023-24 Data'!$B$3:$BG$23,MATCH($N$6,dfenums,0),MATCH(C20,'2023-24 Data'!$B$2:$BG$2,0))),"",INDEX('2023-24 Data'!$B$3:$BG$23,MATCH($N$6,dfenums,0),MATCH(C20,'2023-24 Data'!$B$2:$BG$2,0))) ->  | P20: =IF(ISERROR(N20/VLOOKUP($N$6,'2023-24 Data'!$A$3:$H$23,8,0)),"",N20/VLOOKUP($N$6,'2023-24 Data'!$A$3:$H$23,8,0)) ->  | S20: =IF(ISERROR(INDEX('2023-24 Data'!$B$3:$BG$23,MATCH($S$6,dfenums,0),MATCH(C20,'2023-24 Data'!$B$2:$BG$2,0))),"",INDEX('2023-24 Data'!$B$3:$BG$23,MATCH($S$6,dfenums,0),MATCH(C20,'2023-24 Data'!$B$2:$BG$2,0))) ->  | U20: =IF(ISERROR(S20/VLOOKUP($S$6,'2023-24 Data'!$A$3:$H$23,8,0)),"",S20/VLOOKUP($S$6,'2023-24 Data'!$A$3:$H$23,8,0)) -> 
B21: Development and training | C21: E09 | D21: =IF(ISERROR(INDEX('2023-24 Data'!$B$3:$BG$23,MATCH($D$4,dfenums,0),MATCH(C21,'2023-24 Data'!$B$2:$BG$2,0))),"",INDEX('2023-24 Data'!$B$3:$BG$23,MATCH($D$4,dfenums,0),MATCH(C21,'2023-24 Data'!$B$2:$BG$2,0))) ->  | F21: =IF(ISERROR(D21/VLOOKUP($D$4,'2023-24 Data'!$A$3:$H$23,8,0)),"",D21/VLOOKUP($D$4,'2023-24 Data'!$A$3:$H$23,8,0)) ->  | I21: =IF(ISERROR(INDEX('2023-24 Data'!$B$3:$BG$23,MATCH($I$6,dfenums,0),MATCH(C21,'2023-24 Data'!$B$2:$BG$2,0))),"",INDEX('2023-24 Data'!$B$3:$BG$23,MATCH($I$6,dfenums,0),MATCH(C21,'2023-24 Data'!$B$2:$BG$2,0))) ->  | K21: =IF(ISERROR(I21/VLOOKUP($I$6,'2023-24 Data'!$A$3:$H$23,8,0)),"",I21/VLOOKUP($I$6,'2023-24 Data'!$A$3:$H$23,8,0)) ->  | N21: =IF(ISERROR(INDEX('2023-24 Data'!$B$3:$BG$23,MATCH($N$6,dfenums,0),MATCH(C21,'2023-24 Data'!$B$2:$BG$2,0))),"",INDEX('2023-24 Data'!$B$3:$BG$23,MATCH($N$6,dfenums,0),MATCH(C21,'2023-24 Data'!$B$2:$BG$2,0))) ->  | P21: =IF(ISERROR(N21/VLOOKUP($N$6,'2023-24 Data'!$A$3:$H$23,8,0)),"",N21/VLOOKUP($N$6,'2023-24 Data'!$A$3:$H$23,8,0)) ->  | S21: =IF(ISERROR(INDEX('2023-24 Data'!$B$3:$BG$23,MATCH($S$6,dfenums,0),MATCH(C21,'2023-24 Data'!$B$2:$BG$2,0))),"",INDEX('2023-24 Data'!$B$3:$BG$23,MATCH($S$6,dfenums,0),MATCH(C21,'2023-24 Data'!$B$2:$BG$2,0))) ->  | U21: =IF(ISERROR(S21/VLOOKUP($S$6,'2023-24 Data'!$A$3:$H$23,8,0)),"",S21/VLOOKUP($S$6,'2023-24 Data'!$A$3:$H$23,8,0)) -> 
B22: Supply teacher insurance | C22: E10 | D22: =IF(ISERROR(INDEX('2023-24 Data'!$B$3:$BG$23,MATCH($D$4,dfenums,0),MATCH(C22,'2023-24 Data'!$B$2:$BG$2,0))),"",INDEX('2023-24 Data'!$B$3:$BG$23,MATCH($D$4,dfenums,0),MATCH(C22,'2023-24 Data'!$B$2:$BG$2,0))) ->  | F22: =IF(ISERROR(D22/VLOOKUP($D$4,'2023-24 Data'!$A$3:$H$23,8,0)),"",D22/VLOOKUP($D$4,'2023-24 Data'!$A$3:$H$23,8,0)) ->  | I22: =IF(ISERROR(INDEX('2023-24 Data'!$B$3:$BG$23,MATCH($I$6,dfenums,0),MATCH(C22,'2023-24 Data'!$B$2:$BG$2,0))),"",INDEX('2023-24 Data'!$B$3:$BG$23,MATCH($I$6,dfenums,0),MATCH(C22,'2023-24 Data'!$B$2:$BG$2,0))) ->  | K22: =IF(ISERROR(I22/VLOOKUP($I$6,'2023-24 Data'!$A$3:$H$23,8,0)),"",I22/VLOOKUP($I$6,'2023-24 Data'!$A$3:$H$23,8,0)) ->  | N22: =IF(ISERROR(INDEX('2023-24 Data'!$B$3:$BG$23,MATCH($N$6,dfenums,0),MATCH(C22,'2023-24 Data'!$B$2:$BG$2,0))),"",INDEX('2023-24 Data'!$B$3:$BG$23,MATCH($N$6,dfenums,0),MATCH(C22,'2023-24 Data'!$B$2:$BG$2,0))) ->  | P22: =IF(ISERROR(N22/VLOOKUP($N$6,'2023-24 Data'!$A$3:$H$23,8,0)),"",N22/VLOOKUP($N$6,'2023-24 Data'!$A$3:$H$23,8,0)) ->  | S22: =IF(ISERROR(INDEX('2023-24 Data'!$B$3:$BG$23,MATCH($S$6,dfenums,0),MATCH(C22,'2023-24 Data'!$B$2:$BG$2,0))),"",INDEX('2023-24 Data'!$B$3:$BG$23,MATCH($S$6,dfenums,0),MATCH(C22,'2023-24 Data'!$B$2:$BG$2,0))) ->  | U22: =IF(ISERROR(S22/VLOOKUP($S$6,'2023-24 Data'!$A$3:$H$23,8,0)),"",S22/VLOOKUP($S$6,'2023-24 Data'!$A$3:$H$23,8,0)) -> 
B23: Staff related insurance | C23: E11 | D23: =IF(ISERROR(INDEX('2023-24 Data'!$B$3:$BG$23,MATCH($D$4,dfenums,0),MATCH(C23,'2023-24 Data'!$B$2:$BG$2,0))),"",INDEX('2023-24 Data'!$B$3:$BG$23,MATCH($D$4,dfenums,0),MATCH(C23,'2023-24 Data'!$B$2:$BG$2,0))) ->  | F23: =IF(ISERROR(D23/VLOOKUP($D$4,'2023-24 Data'!$A$3:$H$23,8,0)),"",D23/VLOOKUP($D$4,'2023-24 Data'!$A$3:$H$23,8,0)) ->  | I23: =IF(ISERROR(INDEX('2023-24 Data'!$B$3:$BG$23,MATCH($I$6,dfenums,0),MATCH(C23,'2023-24 Data'!$B$2:$BG$2,0))),"",INDEX('2023-24 Data'!$B$3:$BG$23,MATCH($I$6,dfenums,0),MATCH(C23,'2023-24 Data'!$B$2:$BG$2,0))) ->  | K23: =IF(ISERROR(I23/VLOOKUP($I$6,'2023-24 Data'!$A$3:$H$23,8,0)),"",I23/VLOOKUP($I$6,'2023-24 Data'!$A$3:$H$23,8,0)) ->  | N23: =IF(ISERROR(INDEX('2023-24 Data'!$B$3:$BG$23,MATCH($N$6,dfenums,0),MATCH(C23,'2023-24 Data'!$B$2:$BG$2,0))),"",INDEX('2023-24 Data'!$B$3:$BG$23,MATCH($N$6,dfenums,0),MATCH(C23,'2023-24 Data'!$B$2:$BG$2,0))) ->  | P23: =IF(ISERROR(N23/VLOOKUP($N$6,'2023-24 Data'!$A$3:$H$23,8,0)),"",N23/VLOOKUP($N$6,'2023-24 Data'!$A$3:$H$23,8,0)) ->  | S23: =IF(ISERROR(INDEX('2023-24 Data'!$B$3:$BG$23,MATCH($S$6,dfenums,0),MATCH(C23,'2023-24 Data'!$B$2:$BG$2,0))),"",INDEX('2023-24 Data'!$B$3:$BG$23,MATCH($S$6,dfenums,0),MATCH(C23,'2023-24 Data'!$B$2:$BG$2,0))) ->  | U23: =IF(ISERROR(S23/VLOOKUP($S$6,'2023-24 Data'!$A$3:$H$23,8,0)),"",S23/VLOOKUP($S$6,'2023-24 Data'!$A$3:$H$23,8,0)) -> 
B24: Building maintenance and improvement | C24: E12 | D24: =IF(ISERROR(INDEX('2023-24 Data'!$B$3:$BG$23,MATCH($D$4,dfenums,0),MATCH(C24,'2023-24 Data'!$B$2:$BG$2,0))),"",INDEX('2023-24 Data'!$B$3:$BG$23,MATCH($D$4,dfenums,0),MATCH(C24,'2023-24 Data'!$B$2:$BG$2,0))) ->  | F24: =IF(ISERROR(D24/VLOOKUP($D$4,'2023-24 Data'!$A$3:$H$23,8,0)),"",D24/VLOOKUP($D$4,'2023-24 Data'!$A$3:$H$23,8,0)) ->  | I24: =IF(ISERROR(INDEX('2023-24 Data'!$B$3:$BG$23,MATCH($I$6,dfenums,0),MATCH(C24,'2023-24 Data'!$B$2:$BG$2,0))),"",INDEX('2023-24 Data'!$B$3:$BG$23,MATCH($I$6,dfenums,0),MATCH(C24,'2023-24 Data'!$B$2:$BG$2,0))) ->  | K24: =IF(ISERROR(I24/VLOOKUP($I$6,'2023-24 Data'!$A$3:$H$23,8,0)),"",I24/VLOOKUP($I$6,'2023-24 Data'!$A$3:$H$23,8,0)) ->  | N24: =IF(ISERROR(INDEX('2023-24 Data'!$B$3:$BG$23,MATCH($N$6,dfenums,0),MATCH(C24,'2023-24 Data'!$B$2:$BG$2,0))),"",INDEX('2023-24 Data'!$B$3:$BG$23,MATCH($N$6,dfenums,0),MATCH(C24,'2023-24 Data'!$B$2:$BG$2,0))) ->  | P24: =IF(ISERROR(N24/VLOOKUP($N$6,'2023-24 Data'!$A$3:$H$23,8,0)),"",N24/VLOOKUP($N$6,'2023-24 Data'!$A$3:$H$23,8,0)) ->  | S24: =IF(ISERROR(INDEX('2023-24 Data'!$B$3:$BG$23,MATCH($S$6,dfenums,0),MATCH(C24,'2023-24 Data'!$B$2:$BG$2,0))),"",INDEX('2023-24 Data'!$B$3:$BG$23,MATCH($S$6,dfenums,0),MATCH(C24,'2023-24 Data'!$B$2:$BG$2,0))) ->  | U24: =IF(ISERROR(S24/VLOOKUP($S$6,'2023-24 Data'!$A$3:$H$23,8,0)),"",S24/VLOOKUP($S$6,'2023-24 Data'!$A$3:$H$23,8,0)) -> 
B25: Grounds maintenance and improvement | C25: E13 | D25: =IF(ISERROR(INDEX('2023-24 Data'!$B$3:$BG$23,MATCH($D$4,dfenums,0),MATCH(C25,'2023-24 Data'!$B$2:$BG$2,0))),"",INDEX('2023-24 Data'!$B$3:$BG$23,MATCH($D$4,dfenums,0),MATCH(C25,'2023-24 Data'!$B$2:$BG$2,0))) ->  | F25: =IF(ISERROR(D25/VLOOKUP($D$4,'2023-24 Data'!$A$3:$H$23,8,0)),"",D25/VLOOKUP($D$4,'2023-24 Data'!$A$3:$H$23,8,0)) ->  | I25: =IF(ISERROR(INDEX('2023-24 Data'!$B$3:$BG$23,MATCH($I$6,dfenums,0),MATCH(C25,'2023-24 Data'!$B$2:$BG$2,0))),"",INDEX('2023-24 Data'!$B$3:$BG$23,MATCH($I$6,dfenums,0),MATCH(C25,'2023-24 Data'!$B$2:$BG$2,0))) ->  | K25: =IF(ISERROR(I25/VLOOKUP($I$6,'2023-24 Data'!$A$3:$H$23,8,0)),"",I25/VLOOKUP($I$6,'2023-24 Data'!$A$3:$H$23,8,0)) ->  | N25: =IF(ISERROR(INDEX('2023-24 Data'!$B$3:$BG$23,MATCH($N$6,dfenums,0),MATCH(C25,'2023-24 Data'!$B$2:$BG$2,0))),"",INDEX('2023-24 Data'!$B$3:$BG$23,MATCH($N$6,dfenums,0),MATCH(C25,'2023-24 Data'!$B$2:$BG$2,0))) ->  | P25: =IF(ISERROR(N25/VLOOKUP($N$6,'2023-24 Data'!$A$3:$H$23,8,0)),"",N25/VLOOKUP($N$6,'2023-24 Data'!$A$3:$H$23,8,0)) ->  | S25: =IF(ISERROR(INDEX('2023-24 Data'!$B$3:$BG$23,MATCH($S$6,dfenums,0),MATCH(C25,'2023-24 Data'!$B$2:$BG$2,0))),"",INDEX('2023-24 Data'!$B$3:$BG$23,MATCH($S$6,dfenums,0),MATCH(C25,'2023-24 Data'!$B$2:$BG$2,0))) ->  | U25: =IF(ISERROR(S25/VLOOKUP($S$6,'2023-24 Data'!$A$3:$H$23,8,0)),"",S25/VLOOKUP($S$6,'2023-24 Data'!$A$3:$H$23,8,0)) -> 
B26: Cleaning and caretaking | C26: E14 | D26: =IF(ISERROR(INDEX('2023-24 Data'!$B$3:$BG$23,MATCH($D$4,dfenums,0),MATCH(C26,'2023-24 Data'!$B$2:$BG$2,0))),"",INDEX('2023-24 Data'!$B$3:$BG$23,MATCH($D$4,dfenums,0),MATCH(C26,'2023-24 Data'!$B$2:$BG$2,0))) ->  | F26: =IF(ISERROR(D26/VLOOKUP($D$4,'2023-24 Data'!$A$3:$H$23,8,0)),"",D26/VLOOKUP($D$4,'2023-24 Data'!$A$3:$H$23,8,0)) ->  | I26: =IF(ISERROR(INDEX('2023-24 Data'!$B$3:$BG$23,MATCH($I$6,dfenums,0),MATCH(C26,'2023-24 Data'!$B$2:$BG$2,0))),"",INDEX('2023-24 Data'!$B$3:$BG$23,MATCH($I$6,dfenums,0),MATCH(C26,'2023-24 Data'!$B$2:$BG$2,0))) ->  | K26: =IF(ISERROR(I26/VLOOKUP($I$6,'2023-24 Data'!$A$3:$H$23,8,0)),"",I26/VLOOKUP($I$6,'2023-24 Data'!$A$3:$H$23,8,0)) ->  | N26: =IF(ISERROR(INDEX('2023-24 Data'!$B$3:$BG$23,MATCH($N$6,dfenums,0),MATCH(C26,'2023-24 Data'!$B$2:$BG$2,0))),"",INDEX('2023-24 Data'!$B$3:$BG$23,MATCH($N$6,dfenums,0),MATCH(C26,'2023-24 Data'!$B$2:$BG$2,0))) ->  | P26: =IF(ISERROR(N26/VLOOKUP($N$6,'2023-24 Data'!$A$3:$H$23,8,0)),"",N26/VLOOKUP($N$6,'2023-24 Data'!$A$3:$H$23,8,0)) ->  | S26: =IF(ISERROR(INDEX('2023-24 Data'!$B$3:$BG$23,MATCH($S$6,dfenums,0),MATCH(C26,'2023-24 Data'!$B$2:$BG$2,0))),"",INDEX('2023-24 Data'!$B$3:$BG$23,MATCH($S$6,dfenums,0),MATCH(C26,'2023-24 Data'!$B$2:$BG$2,0))) ->  | U26: =IF(ISERROR(S26/VLOOKUP($S$6,'2023-24 Data'!$A$3:$H$23,8,0)),"",S26/VLOOKUP($S$6,'2023-24 Data'!$A$3:$H$23,8,0)) -> 
B27: Water and sewerage | C27: E15 | D27: =IF(ISERROR(INDEX('2023-24 Data'!$B$3:$BG$23,MATCH($D$4,dfenums,0),MATCH(C27,'2023-24 Data'!$B$2:$BG$2,0))),"",INDEX('2023-24 Data'!$B$3:$BG$23,MATCH($D$4,dfenums,0),MATCH(C27,'2023-24 Data'!$B$2:$BG$2,0))) ->  | F27: =IF(ISERROR(D27/VLOOKUP($D$4,'2023-24 Data'!$A$3:$H$23,8,0)),"",D27/VLOOKUP($D$4,'2023-24 Data'!$A$3:$H$23,8,0)) ->  | I27: =IF(ISERROR(INDEX('2023-24 Data'!$B$3:$BG$23,MATCH($I$6,dfenums,0),MATCH(C27,'2023-24 Data'!$B$2:$BG$2,0))),"",INDEX('2023-24 Data'!$B$3:$BG$23,MATCH($I$6,dfenums,0),MATCH(C27,'2023-24 Data'!$B$2:$BG$2,0))) ->  | K27: =IF(ISERROR(I27/VLOOKUP($I$6,'2023-24 Data'!$A$3:$H$23,8,0)),"",I27/VLOOKUP($I$6,'2023-24 Data'!$A$3:$H$23,8,0)) ->  | N27: =IF(ISERROR(INDEX('2023-24 Data'!$B$3:$BG$23,MATCH($N$6,dfenums,0),MATCH(C27,'2023-24 Data'!$B$2:$BG$2,0))),"",INDEX('2023-24 Data'!$B$3:$BG$23,MATCH($N$6,dfenums,0),MATCH(C27,'2023-24 Data'!$B$2:$BG$2,0))) ->  | P27: =IF(ISERROR(N27/VLOOKUP($N$6,'2023-24 Data'!$A$3:$H$23,8,0)),"",N27/VLOOKUP($N$6,'2023-24 Data'!$A$3:$H$23,8,0)) ->  | S27: =IF(ISERROR(INDEX('2023-24 Data'!$B$3:$BG$23,MATCH($S$6,dfenums,0),MATCH(C27,'2023-24 Data'!$B$2:$BG$2,0))),"",INDEX('2023-24 Data'!$B$3:$BG$23,MATCH($S$6,dfenums,0),MATCH(C27,'2023-24 Data'!$B$2:$BG$2,0))) ->  | U27: =IF(ISERROR(S27/VLOOKUP($S$6,'2023-24 Data'!$A$3:$H$23,8,0)),"",S27/VLOOKUP($S$6,'2023-24 Data'!$A$3:$H$23,8,0)) -> 
B28: Energy | C28: E16 | D28: =IF(ISERROR(INDEX('2023-24 Data'!$B$3:$BG$23,MATCH($D$4,dfenums,0),MATCH(C28,'2023-24 Data'!$B$2:$BG$2,0))),"",INDEX('2023-24 Data'!$B$3:$BG$23,MATCH($D$4,dfenums,0),MATCH(C28,'2023-24 Data'!$B$2:$BG$2,0))) ->  | F28: =IF(ISERROR(D28/VLOOKUP($D$4,'2023-24 Data'!$A$3:$H$23,8,0)),"",D28/VLOOKUP($D$4,'2023-24 Data'!$A$3:$H$23,8,0)) ->  | I28: =IF(ISERROR(INDEX('2023-24 Data'!$B$3:$BG$23,MATCH($I$6,dfenums,0),MATCH(C28,'2023-24 Data'!$B$2:$BG$2,0))),"",INDEX('2023-24 Data'!$B$3:$BG$23,MATCH($I$6,dfenums,0),MATCH(C28,'2023-24 Data'!$B$2:$BG$2,0))) ->  | K28: =IF(ISERROR(I28/VLOOKUP($I$6,'2023-24 Data'!$A$3:$H$23,8,0)),"",I28/VLOOKUP($I$6,'2023-24 Data'!$A$3:$H$23,8,0)) ->  | N28: =IF(ISERROR(INDEX('2023-24 Data'!$B$3:$BG$23,MATCH($N$6,dfenums,0),MATCH(C28,'2023-24 Data'!$B$2:$BG$2,0))),"",INDEX('2023-24 Data'!$B$3:$BG$23,MATCH($N$6,dfenums,0),MATCH(C28,'2023-24 Data'!$B$2:$BG$2,0))) ->  | P28: =IF(ISERROR(N28/VLOOKUP($N$6,'2023-24 Data'!$A$3:$H$23,8,0)),"",N28/VLOOKUP($N$6,'2023-24 Data'!$A$3:$H$23,8,0)) ->  | S28: =IF(ISERROR(INDEX('2023-24 Data'!$B$3:$BG$23,MATCH($S$6,dfenums,0),MATCH(C28,'2023-24 Data'!$B$2:$BG$2,0))),"",INDEX('2023-24 Data'!$B$3:$BG$23,MATCH($S$6,dfenums,0),MATCH(C28,'2023-24 Data'!$B$2:$BG$2,0))) ->  | U28: =IF(ISERROR(S28/VLOOKUP($S$6,'2023-24 Data'!$A$3:$H$23,8,0)),"",S28/VLOOKUP($S$6,'2023-24 Data'!$A$3:$H$23,8,0)) -> 
B29: Rates | C29: E17 | D29: =IF(ISERROR(INDEX('2023-24 Data'!$B$3:$BG$23,MATCH($D$4,dfenums,0),MATCH(C29,'2023-24 Data'!$B$2:$BG$2,0))),"",INDEX('2023-24 Data'!$B$3:$BG$23,MATCH($D$4,dfenums,0),MATCH(C29,'2023-24 Data'!$B$2:$BG$2,0))) ->  | F29: =IF(ISERROR(D29/VLOOKUP($D$4,'2023-24 Data'!$A$3:$H$23,8,0)),"",D29/VLOOKUP($D$4,'2023-24 Data'!$A$3:$H$23,8,0)) ->  | I29: =IF(ISERROR(INDEX('2023-24 Data'!$B$3:$BG$23,MATCH($I$6,dfenums,0),MATCH(C29,'2023-24 Data'!$B$2:$BG$2,0))),"",INDEX('2023-24 Data'!$B$3:$BG$23,MATCH($I$6,dfenums,0),MATCH(C29,'2023-24 Data'!$B$2:$BG$2,0))) ->  | K29: =IF(ISERROR(I29/VLOOKUP($I$6,'2023-24 Data'!$A$3:$H$23,8,0)),"",I29/VLOOKUP($I$6,'2023-24 Data'!$A$3:$H$23,8,0)) ->  | N29: =IF(ISERROR(INDEX('2023-24 Data'!$B$3:$BG$23,MATCH($N$6,dfenums,0),MATCH(C29,'2023-24 Data'!$B$2:$BG$2,0))),"",INDEX('2023-24 Data'!$B$3:$BG$23,MATCH($N$6,dfenums,0),MATCH(C29,'2023-24 Data'!$B$2:$BG$2,0))) ->  | P29: =IF(ISERROR(N29/VLOOKUP($N$6,'2023-24 Data'!$A$3:$H$23,8,0)),"",N29/VLOOKUP($N$6,'2023-24 Data'!$A$3:$H$23,8,0)) ->  | S29: =IF(ISERROR(INDEX('2023-24 Data'!$B$3:$BG$23,MATCH($S$6,dfenums,0),MATCH(C29,'2023-24 Data'!$B$2:$BG$2,0))),"",INDEX('2023-24 Data'!$B$3:$BG$23,MATCH($S$6,dfenums,0),MATCH(C29,'2023-24 Data'!$B$2:$BG$2,0))) ->  | U29: =IF(ISERROR(S29/VLOOKUP($S$6,'2023-24 Data'!$A$3:$H$23,8,0)),"",S29/VLOOKUP($S$6,'2023-24 Data'!$A$3:$H$23,8,0)) -> 
B30: Other occupation costs | C30: E18 | D30: =IF(ISERROR(INDEX('2023-24 Data'!$B$3:$BG$23,MATCH($D$4,dfenums,0),MATCH(C30,'2023-24 Data'!$B$2:$BG$2,0))),"",INDEX('2023-24 Data'!$B$3:$BG$23,MATCH($D$4,dfenums,0),MATCH(C30,'2023-24 Data'!$B$2:$BG$2,0))) ->  | F30: =IF(ISERROR(D30/VLOOKUP($D$4,'2023-24 Data'!$A$3:$H$23,8,0)),"",D30/VLOOKUP($D$4,'2023-24 Data'!$A$3:$H$23,8,0)) ->  | I30: =IF(ISERROR(INDEX('2023-24 Data'!$B$3:$BG$23,MATCH($I$6,dfenums,0),MATCH(C30,'2023-24 Data'!$B$2:$BG$2,0))),"",INDEX('2023-24 Data'!$B$3:$BG$23,MATCH($I$6,dfenums,0),MATCH(C30,'2023-24 Data'!$B$2:$BG$2,0))) ->  | K30: =IF(ISERROR(I30/VLOOKUP($I$6,'2023-24 Data'!$A$3:$H$23,8,0)),"",I30/VLOOKUP($I$6,'2023-24 Data'!$A$3:$H$23,8,0)) ->  | N30: =IF(ISERROR(INDEX('2023-24 Data'!$B$3:$BG$23,MATCH($N$6,dfenums,0),MATCH(C30,'2023-24 Data'!$B$2:$BG$2,0))),"",INDEX('2023-24 Data'!$B$3:$BG$23,MATCH($N$6,dfenums,0),MATCH(C30,'2023-24 Data'!$B$2:$BG$2,0))) ->  | P30: =IF(ISERROR(N30/VLOOKUP($N$6,'2023-24 Data'!$A$3:$H$23,8,0)),"",N30/VLOOKUP($N$6,'2023-24 Data'!$A$3:$H$23,8,0)) ->  | S30: =IF(ISERROR(INDEX('2023-24 Data'!$B$3:$BG$23,MATCH($S$6,dfenums,0),MATCH(C30,'2023-24 Data'!$B$2:$BG$2,0))),"",INDEX('2023-24 Data'!$B$3:$BG$23,MATCH($S$6,dfenums,0),MATCH(C30,'2023-24 Data'!$B$2:$BG$2,0))) ->  | U30: =IF(ISERROR(S30/VLOOKUP($S$6,'2023-24 Data'!$A$3:$H$23,8,0)),"",S30/VLOOKUP($S$6,'2023-24 Data'!$A$3:$H$23,8,0)) -> 
B31: Learning resources (not ICT equipment) | C31: E19 | D31: =IF(ISERROR(INDEX('2023-24 Data'!$B$3:$BG$23,MATCH($D$4,dfenums,0),MATCH(C31,'2023-24 Data'!$B$2:$BG$2,0))),"",INDEX('2023-24 Data'!$B$3:$BG$23,MATCH($D$4,dfenums,0),MATCH(C31,'2023-24 Data'!$B$2:$BG$2,0))) ->  | F31: =IF(ISERROR(D31/VLOOKUP($D$4,'2023-24 Data'!$A$3:$H$23,8,0)),"",D31/VLOOKUP($D$4,'2023-24 Data'!$A$3:$H$23,8,0)) ->  | I31: =IF(ISERROR(INDEX('2023-24 Data'!$B$3:$BG$23,MATCH($I$6,dfenums,0),MATCH(C31,'2023-24 Data'!$B$2:$BG$2,0))),"",INDEX('2023-24 Data'!$B$3:$BG$23,MATCH($I$6,dfenums,0),MATCH(C31,'2023-24 Data'!$B$2:$BG$2,0))) ->  | K31: =IF(ISERROR(I31/VLOOKUP($I$6,'2023-24 Data'!$A$3:$H$23,8,0)),"",I31/VLOOKUP($I$6,'2023-24 Data'!$A$3:$H$23,8,0)) ->  | N31: =IF(ISERROR(INDEX('2023-24 Data'!$B$3:$BG$23,MATCH($N$6,dfenums,0),MATCH(C31,'2023-24 Data'!$B$2:$BG$2,0))),"",INDEX('2023-24 Data'!$B$3:$BG$23,MATCH($N$6,dfenums,0),MATCH(C31,'2023-24 Data'!$B$2:$BG$2,0))) ->  | P31: =IF(ISERROR(N31/VLOOKUP($N$6,'2023-24 Data'!$A$3:$H$23,8,0)),"",N31/VLOOKUP($N$6,'2023-24 Data'!$A$3:$H$23,8,0)) ->  | S31: =IF(ISERROR(INDEX('2023-24 Data'!$B$3:$BG$23,MATCH($S$6,dfenums,0),MATCH(C31,'2023-24 Data'!$B$2:$BG$2,0))),"",INDEX('2023-24 Data'!$B$3:$BG$23,MATCH($S$6,dfenums,0),MATCH(C31,'2023-24 Data'!$B$2:$BG$2,0))) ->  | U31: =IF(ISERROR(S31/VLOOKUP($S$6,'2023-24 Data'!$A$3:$H$23,8,0)),"",S31/VLOOKUP($S$6,'2023-24 Data'!$A$3:$H$23,8,0)) -> 
B32: ICT learning resources | C32: E20 | D32: =IF(ISERROR(INDEX('2023-24 Data'!$B$3:$BG$23,MATCH($D$4,dfenums,0),MATCH(C32,'2023-24 Data'!$B$2:$BG$2,0))),"",INDEX('2023-24 Data'!$B$3:$BG$23,MATCH($D$4,dfenums,0),MATCH(C32,'2023-24 Data'!$B$2:$BG$2,0))) ->  | F32: =IF(ISERROR(D32/VLOOKUP($D$4,'2023-24 Data'!$A$3:$H$23,8,0)),"",D32/VLOOKUP($D$4,'2023-24 Data'!$A$3:$H$23,8,0)) ->  | I32: =IF(ISERROR(INDEX('2023-24 Data'!$B$3:$BG$23,MATCH($I$6,dfenums,0),MATCH(C32,'2023-24 Data'!$B$2:$BG$2,0))),"",INDEX('2023-24 Data'!$B$3:$BG$23,MATCH($I$6,dfenums,0),MATCH(C32,'2023-24 Data'!$B$2:$BG$2,0))) ->  | K32: =IF(ISERROR(I32/VLOOKUP($I$6,'2023-24 Data'!$A$3:$H$23,8,0)),"",I32/VLOOKUP($I$6,'2023-24 Data'!$A$3:$H$23,8,0)) ->  | N32: =IF(ISERROR(INDEX('2023-24 Data'!$B$3:$BG$23,MATCH($N$6,dfenums,0),MATCH(C32,'2023-24 Data'!$B$2:$BG$2,0))),"",INDEX('2023-24 Data'!$B$3:$BG$23,MATCH($N$6,dfenums,0),MATCH(C32,'2023-24 Data'!$B$2:$BG$2,0))) ->  | P32: =IF(ISERROR(N32/VLOOKUP($N$6,'2023-24 Data'!$A$3:$H$23,8,0)),"",N32/VLOOKUP($N$6,'2023-24 Data'!$A$3:$H$23,8,0)) ->  | S32: =IF(ISERROR(INDEX('2023-24 Data'!$B$3:$BG$23,MATCH($S$6,dfenums,0),MATCH(C32,'2023-24 Data'!$B$2:$BG$2,0))),"",INDEX('2023-24 Data'!$B$3:$BG$23,MATCH($S$6,dfenums,0),MATCH(C32,'2023-24 Data'!$B$2:$BG$2,0))) ->  | U32: =IF(ISERROR(S32/VLOOKUP($S$6,'2023-24 Data'!$A$3:$H$23,8,0)),"",S32/VLOOKUP($S$6,'2023-24 Data'!$A$3:$H$23,8,0)) -> 
B33: Exam fees | C33: E21 | D33: =IF(ISERROR(INDEX('2023-24 Data'!$B$3:$BG$23,MATCH($D$4,dfenums,0),MATCH(C33,'2023-24 Data'!$B$2:$BG$2,0))),"",INDEX('2023-24 Data'!$B$3:$BG$23,MATCH($D$4,dfenums,0),MATCH(C33,'2023-24 Data'!$B$2:$BG$2,0))) ->  | F33: =IF(ISERROR(D33/VLOOKUP($D$4,'2023-24 Data'!$A$3:$H$23,8,0)),"",D33/VLOOKUP($D$4,'2023-24 Data'!$A$3:$H$23,8,0)) ->  | I33: =IF(ISERROR(INDEX('2023-24 Data'!$B$3:$BG$23,MATCH($I$6,dfenums,0),MATCH(C33,'2023-24 Data'!$B$2:$BG$2,0))),"",INDEX('2023-24 Data'!$B$3:$BG$23,MATCH($I$6,dfenums,0),MATCH(C33,'2023-24 Data'!$B$2:$BG$2,0))) ->  | K33: =IF(ISERROR(I33/VLOOKUP($I$6,'2023-24 Data'!$A$3:$H$23,8,0)),"",I33/VLOOKUP($I$6,'2023-24 Data'!$A$3:$H$23,8,0)) ->  | N33: =IF(ISERROR(INDEX('2023-24 Data'!$B$3:$BG$23,MATCH($N$6,dfenums,0),MATCH(C33,'2023-24 Data'!$B$2:$BG$2,0))),"",INDEX('2023-24 Data'!$B$3:$BG$23,MATCH($N$6,dfenums,0),MATCH(C33,'2023-24 Data'!$B$2:$BG$2,0))) ->  | P33: =IF(ISERROR(N33/VLOOKUP($N$6,'2023-24 Data'!$A$3:$H$23,8,0)),"",N33/VLOOKUP($N$6,'2023-24 Data'!$A$3:$H$23,8,0)) ->  | S33: =IF(ISERROR(INDEX('2023-24 Data'!$B$3:$BG$23,MATCH($S$6,dfenums,0),MATCH(C33,'2023-24 Data'!$B$2:$BG$2,0))),"",INDEX('2023-24 Data'!$B$3:$BG$23,MATCH($S$6,dfenums,0),MATCH(C33,'2023-24 Data'!$B$2:$BG$2,0))) ->  | U33: =IF(ISERROR(S33/VLOOKUP($S$6,'2023-24 Data'!$A$3:$H$23,8,0)),"",S33/VLOOKUP($S$6,'2023-24 Data'!$A$3:$H$23,8,0)) -> 
B34: Administrative supplies | C34: E22 | D34: =IF(ISERROR(INDEX('2023-24 Data'!$B$3:$BG$23,MATCH($D$4,dfenums,0),MATCH(C34,'2023-24 Data'!$B$2:$BG$2,0))),"",INDEX('2023-24 Data'!$B$3:$BG$23,MATCH($D$4,dfenums,0),MATCH(C34,'2023-24 Data'!$B$2:$BG$2,0))) ->  | F34: =IF(ISERROR(D34/VLOOKUP($D$4,'2023-24 Data'!$A$3:$H$23,8,0)),"",D34/VLOOKUP($D$4,'2023-24 Data'!$A$3:$H$23,8,0)) ->  | I34: =IF(ISERROR(INDEX('2023-24 Data'!$B$3:$BG$23,MATCH($I$6,dfenums,0),MATCH(C34,'2023-24 Data'!$B$2:$BG$2,0))),"",INDEX('2023-24 Data'!$B$3:$BG$23,MATCH($I$6,dfenums,0),MATCH(C34,'2023-24 Data'!$B$2:$BG$2,0))) ->  | K34: =IF(ISERROR(I34/VLOOKUP($I$6,'2023-24 Data'!$A$3:$H$23,8,0)),"",I34/VLOOKUP($I$6,'2023-24 Data'!$A$3:$H$23,8,0)) ->  | N34: =IF(ISERROR(INDEX('2023-24 Data'!$B$3:$BG$23,MATCH($N$6,dfenums,0),MATCH(C34,'2023-24 Data'!$B$2:$BG$2,0))),"",INDEX('2023-24 Data'!$B$3:$BG$23,MATCH($N$6,dfenums,0),MATCH(C34,'2023-24 Data'!$B$2:$BG$2,0))) ->  | P34: =IF(ISERROR(N34/VLOOKUP($N$6,'2023-24 Data'!$A$3:$H$23,8,0)),"",N34/VLOOKUP($N$6,'2023-24 Data'!$A$3:$H$23,8,0)) ->  | S34: =IF(ISERROR(INDEX('2023-24 Data'!$B$3:$BG$23,MATCH($S$6,dfenums,0),MATCH(C34,'2023-24 Data'!$B$2:$BG$2,0))),"",INDEX('2023-24 Data'!$B$3:$BG$23,MATCH($S$6,dfenums,0),MATCH(C34,'2023-24 Data'!$B$2:$BG$2,0))) ->  | U34: =IF(ISERROR(S34/VLOOKUP($S$6,'2023-24 Data'!$A$3:$H$23,8,0)),"",S34/VLOOKUP($S$6,'2023-24 Data'!$A$3:$H$23,8,0)) -> 
B35: Other insurance premiums | C35: E23 | D35: =IF(ISERROR(INDEX('2023-24 Data'!$B$3:$BG$23,MATCH($D$4,dfenums,0),MATCH(C35,'2023-24 Data'!$B$2:$BG$2,0))),"",INDEX('2023-24 Data'!$B$3:$BG$23,MATCH($D$4,dfenums,0),MATCH(C35,'2023-24 Data'!$B$2:$BG$2,0))) ->  | F35: =IF(ISERROR(D35/VLOOKUP($D$4,'2023-24 Data'!$A$3:$H$23,8,0)),"",D35/VLOOKUP($D$4,'2023-24 Data'!$A$3:$H$23,8,0)) ->  | I35: =IF(ISERROR(INDEX('2023-24 Data'!$B$3:$BG$23,MATCH($I$6,dfenums,0),MATCH(C35,'2023-24 Data'!$B$2:$BG$2,0))),"",INDEX('2023-24 Data'!$B$3:$BG$23,MATCH($I$6,dfenums,0),MATCH(C35,'2023-24 Data'!$B$2:$BG$2,0))) ->  | K35: =IF(ISERROR(I35/VLOOKUP($I$6,'2023-24 Data'!$A$3:$H$23,8,0)),"",I35/VLOOKUP($I$6,'2023-24 Data'!$A$3:$H$23,8,0)) ->  | N35: =IF(ISERROR(INDEX('2023-24 Data'!$B$3:$BG$23,MATCH($N$6,dfenums,0),MATCH(C35,'2023-24 Data'!$B$2:$BG$2,0))),"",INDEX('2023-24 Data'!$B$3:$BG$23,MATCH($N$6,dfenums,0),MATCH(C35,'2023-24 Data'!$B$2:$BG$2,0))) ->  | P35: =IF(ISERROR(N35/VLOOKUP($N$6,'2023-24 Data'!$A$3:$H$23,8,0)),"",N35/VLOOKUP($N$6,'2023-24 Data'!$A$3:$H$23,8,0)) ->  | S35: =IF(ISERROR(INDEX('2023-24 Data'!$B$3:$BG$23,MATCH($S$6,dfenums,0),MATCH(C35,'2023-24 Data'!$B$2:$BG$2,0))),"",INDEX('2023-24 Data'!$B$3:$BG$23,MATCH($S$6,dfenums,0),MATCH(C35,'2023-24 Data'!$B$2:$BG$2,0))) ->  | U35: =IF(ISERROR(S35/VLOOKUP($S$6,'2023-24 Data'!$A$3:$H$23,8,0)),"",S35/VLOOKUP($S$6,'2023-24 Data'!$A$3:$H$23,8,0)) -> 
B36: Special facilities | C36: E24 | D36: =IF(ISERROR(INDEX('2023-24 Data'!$B$3:$BG$23,MATCH($D$4,dfenums,0),MATCH(C36,'2023-24 Data'!$B$2:$BG$2,0))),"",INDEX('2023-24 Data'!$B$3:$BG$23,MATCH($D$4,dfenums,0),MATCH(C36,'2023-24 Data'!$B$2:$BG$2,0))) ->  | F36: =IF(ISERROR(D36/VLOOKUP($D$4,'2023-24 Data'!$A$3:$H$23,8,0)),"",D36/VLOOKUP($D$4,'2023-24 Data'!$A$3:$H$23,8,0)) ->  | I36: =IF(ISERROR(INDEX('2023-24 Data'!$B$3:$BG$23,MATCH($I$6,dfenums,0),MATCH(C36,'2023-24 Data'!$B$2:$BG$2,0))),"",INDEX('2023-24 Data'!$B$3:$BG$23,MATCH($I$6,dfenums,0),MATCH(C36,'2023-24 Data'!$B$2:$BG$2,0))) ->  | K36: =IF(ISERROR(I36/VLOOKUP($I$6,'2023-24 Data'!$A$3:$H$23,8,0)),"",I36/VLOOKUP($I$6,'2023-24 Data'!$A$3:$H$23,8,0)) ->  | N36: =IF(ISERROR(INDEX('2023-24 Data'!$B$3:$BG$23,MATCH($N$6,dfenums,0),MATCH(C36,'2023-24 Data'!$B$2:$BG$2,0))),"",INDEX('2023-24 Data'!$B$3:$BG$23,MATCH($N$6,dfenums,0),MATCH(C36,'2023-24 Data'!$B$2:$BG$2,0))) ->  | P36: =IF(ISERROR(N36/VLOOKUP($N$6,'2023-24 Data'!$A$3:$H$23,8,0)),"",N36/VLOOKUP($N$6,'2023-24 Data'!$A$3:$H$23,8,0)) ->  | S36: =IF(ISERROR(INDEX('2023-24 Data'!$B$3:$BG$23,MATCH($S$6,dfenums,0),MATCH(C36,'2023-24 Data'!$B$2:$BG$2,0))),"",INDEX('2023-24 Data'!$B$3:$BG$23,MATCH($S$6,dfenums,0),MATCH(C36,'2023-24 Data'!$B$2:$BG$2,0))) ->  | U36: =IF(ISERROR(S36/VLOOKUP($S$6,'2023-24 Data'!$A$3:$H$23,8,0)),"",S36/VLOOKUP($S$6,'2023-24 Data'!$A$3:$H$23,8,0)) -> 
B37: Catering supplies | C37: E25 | D37: =IF(ISERROR(INDEX('2023-24 Data'!$B$3:$BG$23,MATCH($D$4,dfenums,0),MATCH(C37,'2023-24 Data'!$B$2:$BG$2,0))),"",INDEX('2023-24 Data'!$B$3:$BG$23,MATCH($D$4,dfenums,0),MATCH(C37,'2023-24 Data'!$B$2:$BG$2,0))) ->  | F37: =IF(ISERROR(D37/VLOOKUP($D$4,'2023-24 Data'!$A$3:$H$23,8,0)),"",D37/VLOOKUP($D$4,'2023-24 Data'!$A$3:$H$23,8,0)) ->  | I37: =IF(ISERROR(INDEX('2023-24 Data'!$B$3:$BG$23,MATCH($I$6,dfenums,0),MATCH(C37,'2023-24 Data'!$B$2:$BG$2,0))),"",INDEX('2023-24 Data'!$B$3:$BG$23,MATCH($I$6,dfenums,0),MATCH(C37,'2023-24 Data'!$B$2:$BG$2,0))) ->  | K37: =IF(ISERROR(I37/VLOOKUP($I$6,'2023-24 Data'!$A$3:$H$23,8,0)),"",I37/VLOOKUP($I$6,'2023-24 Data'!$A$3:$H$23,8,0)) ->  | N37: =IF(ISERROR(INDEX('2023-24 Data'!$B$3:$BG$23,MATCH($N$6,dfenums,0),MATCH(C37,'2023-24 Data'!$B$2:$BG$2,0))),"",INDEX('2023-24 Data'!$B$3:$BG$23,MATCH($N$6,dfenums,0),MATCH(C37,'2023-24 Data'!$B$2:$BG$2,0))) ->  | P37: =IF(ISERROR(N37/VLOOKUP($N$6,'2023-24 Data'!$A$3:$H$23,8,0)),"",N37/VLOOKUP($N$6,'2023-24 Data'!$A$3:$H$23,8,0)) ->  | S37: =IF(ISERROR(INDEX('2023-24 Data'!$B$3:$BG$23,MATCH($S$6,dfenums,0),MATCH(C37,'2023-24 Data'!$B$2:$BG$2,0))),"",INDEX('2023-24 Data'!$B$3:$BG$23,MATCH($S$6,dfenums,0),MATCH(C37,'2023-24 Data'!$B$2:$BG$2,0))) ->  | U37: =IF(ISERROR(S37/VLOOKUP($S$6,'2023-24 Data'!$A$3:$H$23,8,0)),"",S37/VLOOKUP($S$6,'2023-24 Data'!$A$3:$H$23,8,0)) -> 
B38: Agency supply teaching staff | C38: E26 | D38: =IF(ISERROR(INDEX('2023-24 Data'!$B$3:$BG$23,MATCH($D$4,dfenums,0),MATCH(C38,'2023-24 Data'!$B$2:$BG$2,0))),"",INDEX('2023-24 Data'!$B$3:$BG$23,MATCH($D$4,dfenums,0),MATCH(C38,'2023-24 Data'!$B$2:$BG$2,0))) ->  | F38: =IF(ISERROR(D38/VLOOKUP($D$4,'2023-24 Data'!$A$3:$H$23,8,0)),"",D38/VLOOKUP($D$4,'2023-24 Data'!$A$3:$H$23,8,0)) ->  | I38: =IF(ISERROR(INDEX('2023-24 Data'!$B$3:$BG$23,MATCH($I$6,dfenums,0),MATCH(C38,'2023-24 Data'!$B$2:$BG$2,0))),"",INDEX('2023-24 Data'!$B$3:$BG$23,MATCH($I$6,dfenums,0),MATCH(C38,'2023-24 Data'!$B$2:$BG$2,0))) ->  | K38: =IF(ISERROR(I38/VLOOKUP($I$6,'2023-24 Data'!$A$3:$H$23,8,0)),"",I38/VLOOKUP($I$6,'2023-24 Data'!$A$3:$H$23,8,0)) ->  | N38: =IF(ISERROR(INDEX('2023-24 Data'!$B$3:$BG$23,MATCH($N$6,dfenums,0),MATCH(C38,'2023-24 Data'!$B$2:$BG$2,0))),"",INDEX('2023-24 Data'!$B$3:$BG$23,MATCH($N$6,dfenums,0),MATCH(C38,'2023-24 Data'!$B$2:$BG$2,0))) ->  | P38: =IF(ISERROR(N38/VLOOKUP($N$6,'2023-24 Data'!$A$3:$H$23,8,0)),"",N38/VLOOKUP($N$6,'2023-24 Data'!$A$3:$H$23,8,0)) ->  | S38: =IF(ISERROR(INDEX('2023-24 Data'!$B$3:$BG$23,MATCH($S$6,dfenums,0),MATCH(C38,'2023-24 Data'!$B$2:$BG$2,0))),"",INDEX('2023-24 Data'!$B$3:$BG$23,MATCH($S$6,dfenums,0),MATCH(C38,'2023-24 Data'!$B$2:$BG$2,0))) ->  | U38: =IF(ISERROR(S38/VLOOKUP($S$6,'2023-24 Data'!$A$3:$H$23,8,0)),"",S38/VLOOKUP($S$6,'2023-24 Data'!$A$3:$H$23,8,0)) -> 
B39: Bought in professional services - curriculum | C39: E27 | D39: =IF(ISERROR(INDEX('2023-24 Data'!$B$3:$BG$23,MATCH($D$4,dfenums,0),MATCH(C39,'2023-24 Data'!$B$2:$BG$2,0))),"",INDEX('2023-24 Data'!$B$3:$BG$23,MATCH($D$4,dfenums,0),MATCH(C39,'2023-24 Data'!$B$2:$BG$2,0))) ->  | F39: =IF(ISERROR(D39/VLOOKUP($D$4,'2023-24 Data'!$A$3:$H$23,8,0)),"",D39/VLOOKUP($D$4,'2023-24 Data'!$A$3:$H$23,8,0)) ->  | I39: =IF(ISERROR(INDEX('2023-24 Data'!$B$3:$BG$23,MATCH($I$6,dfenums,0),MATCH(C39,'2023-24 Data'!$B$2:$BG$2,0))),"",INDEX('2023-24 Data'!$B$3:$BG$23,MATCH($I$6,dfenums,0),MATCH(C39,'2023-24 Data'!$B$2:$BG$2,0))) ->  | K39: =IF(ISERROR(I39/VLOOKUP($I$6,'2023-24 Data'!$A$3:$H$23,8,0)),"",I39/VLOOKUP($I$6,'2023-24 Data'!$A$3:$H$23,8,0)) ->  | N39: =IF(ISERROR(INDEX('2023-24 Data'!$B$3:$BG$23,MATCH($N$6,dfenums,0),MATCH(C39,'2023-24 Data'!$B$2:$BG$2,0))),"",INDEX('2023-24 Data'!$B$3:$BG$23,MATCH($N$6,dfenums,0),MATCH(C39,'2023-24 Data'!$B$2:$BG$2,0))) ->  | P39: =IF(ISERROR(N39/VLOOKUP($N$6,'2023-24 Data'!$A$3:$H$23,8,0)),"",N39/VLOOKUP($N$6,'2023-24 Data'!$A$3:$H$23,8,0)) ->  | S39: =IF(ISERROR(INDEX('2023-24 Data'!$B$3:$BG$23,MATCH($S$6,dfenums,0),MATCH(C39,'2023-24 Data'!$B$2:$BG$2,0))),"",INDEX('2023-24 Data'!$B$3:$BG$23,MATCH($S$6,dfenums,0),MATCH(C39,'2023-24 Data'!$B$2:$BG$2,0))) ->  | U39: =IF(ISERROR(S39/VLOOKUP($S$6,'2023-24 Data'!$A$3:$H$23,8,0)),"",S39/VLOOKUP($S$6,'2023-24 Data'!$A$3:$H$23,8,0)) -> 
B40: Bought in professional services other | C40: E28 | D40: =IF(ISERROR(INDEX('2023-24 Data'!$B$3:$BG$23,MATCH($D$4,dfenums,0),MATCH(C40,'2023-24 Data'!$B$2:$BG$2,0))),"",INDEX('2023-24 Data'!$B$3:$BG$23,MATCH($D$4,dfenums,0),MATCH(C40,'2023-24 Data'!$B$2:$BG$2,0))) ->  | F40: =IF(ISERROR(D40/VLOOKUP($D$4,'2023-24 Data'!$A$3:$H$23,8,0)),"",D40/VLOOKUP($D$4,'2023-24 Data'!$A$3:$H$23,8,0)) ->  | I40: =IF(ISERROR(INDEX('2023-24 Data'!$B$3:$BG$23,MATCH($I$6,dfenums,0),MATCH(C40,'2023-24 Data'!$B$2:$BG$2,0))),"",INDEX('2023-24 Data'!$B$3:$BG$23,MATCH($I$6,dfenums,0),MATCH(C40,'2023-24 Data'!$B$2:$BG$2,0))) ->  | K40: =IF(ISERROR(I40/VLOOKUP($I$6,'2023-24 Data'!$A$3:$H$23,8,0)),"",I40/VLOOKUP($I$6,'2023-24 Data'!$A$3:$H$23,8,0)) ->  | N40: =IF(ISERROR(INDEX('2023-24 Data'!$B$3:$BG$23,MATCH($N$6,dfenums,0),MATCH(C40,'2023-24 Data'!$B$2:$BG$2,0))),"",INDEX('2023-24 Data'!$B$3:$BG$23,MATCH($N$6,dfenums,0),MATCH(C40,'2023-24 Data'!$B$2:$BG$2,0))) ->  | P40: =IF(ISERROR(N40/VLOOKUP($N$6,'2023-24 Data'!$A$3:$H$23,8,0)),"",N40/VLOOKUP($N$6,'2023-24 Data'!$A$3:$H$23,8,0)) ->  | S40: =IF(ISERROR(INDEX('2023-24 Data'!$B$3:$BG$23,MATCH($S$6,dfenums,0),MATCH(C40,'2023-24 Data'!$B$2:$BG$2,0))),"",INDEX('2023-24 Data'!$B$3:$BG$23,MATCH($S$6,dfenums,0),MATCH(C40,'2023-24 Data'!$B$2:$BG$2,0))) ->  | U40: =IF(ISERROR(S40/VLOOKUP($S$6,'2023-24 Data'!$A$3:$H$23,8,0)),"",S40/VLOOKUP($S$6,'2023-24 Data'!$A$3:$H$23,8,0)) -> 
B41: Loan interest | C41: E29 | D41: =IF(ISERROR(INDEX('2023-24 Data'!$B$3:$BG$23,MATCH($D$4,dfenums,0),MATCH(C41,'2023-24 Data'!$B$2:$BG$2,0))),"",INDEX('2023-24 Data'!$B$3:$BG$23,MATCH($D$4,dfenums,0),MATCH(C41,'2023-24 Data'!$B$2:$BG$2,0))) ->  | F41: =IF(ISERROR(D41/VLOOKUP($D$4,'2023-24 Data'!$A$3:$H$23,8,0)),"",D41/VLOOKUP($D$4,'2023-24 Data'!$A$3:$H$23,8,0)) ->  | I41: =IF(ISERROR(INDEX('2023-24 Data'!$B$3:$BG$23,MATCH($I$6,dfenums,0),MATCH(C41,'2023-24 Data'!$B$2:$BG$2,0))),"",INDEX('2023-24 Data'!$B$3:$BG$23,MATCH($I$6,dfenums,0),MATCH(C41,'2023-24 Data'!$B$2:$BG$2,0))) ->  | K41: =IF(ISERROR(I41/VLOOKUP($I$6,'2023-24 Data'!$A$3:$H$23,8,0)),"",I41/VLOOKUP($I$6,'2023-24 Data'!$A$3:$H$23,8,0)) ->  | N41: =IF(ISERROR(INDEX('2023-24 Data'!$B$3:$BG$23,MATCH($N$6,dfenums,0),MATCH(C41,'2023-24 Data'!$B$2:$BG$2,0))),"",INDEX('2023-24 Data'!$B$3:$BG$23,MATCH($N$6,dfenums,0),MATCH(C41,'2023-24 Data'!$B$2:$BG$2,0))) ->  | P41: =IF(ISERROR(N41/VLOOKUP($N$6,'2023-24 Data'!$A$3:$H$23,8,0)),"",N41/VLOOKUP($N$6,'2023-24 Data'!$A$3:$H$23,8,0)) ->  | S41: =IF(ISERROR(INDEX('2023-24 Data'!$B$3:$BG$23,MATCH($S$6,dfenums,0),MATCH(C41,'2023-24 Data'!$B$2:$BG$2,0))),"",INDEX('2023-24 Data'!$B$3:$BG$23,MATCH($S$6,dfenums,0),MATCH(C41,'2023-24 Data'!$B$2:$BG$2,0))) ->  | U41: =IF(ISERROR(S41/VLOOKUP($S$6,'2023-24 Data'!$A$3:$H$23,8,0)),"",S41/VLOOKUP($S$6,'2023-24 Data'!$A$3:$H$23,8,0)) -> 
B42: Direct revenue financing (revenue contrib. to capital) | C42: E30 | D42: =IF(ISERROR(INDEX('2023-24 Data'!$B$3:$BG$23,MATCH($D$4,dfenums,0),MATCH(C42,'2023-24 Data'!$B$2:$BG$2,0))),"",INDEX('2023-24 Data'!$B$3:$BG$23,MATCH($D$4,dfenums,0),MATCH(C42,'2023-24 Data'!$B$2:$BG$2,0))) ->  | F42: =IF(ISERROR(D42/VLOOKUP($D$4,'2023-24 Data'!$A$3:$H$23,8,0)),"",D42/VLOOKUP($D$4,'2023-24 Data'!$A$3:$H$23,8,0)) ->  | I42: =IF(ISERROR(INDEX('2023-24 Data'!$B$3:$BG$23,MATCH($I$6,dfenums,0),MATCH(C42,'2023-24 Data'!$B$2:$BG$2,0))),"",INDEX('2023-24 Data'!$B$3:$BG$23,MATCH($I$6,dfenums,0),MATCH(C42,'2023-24 Data'!$B$2:$BG$2,0))) ->  | K42: =IF(ISERROR(I42/VLOOKUP($I$6,'2023-24 Data'!$A$3:$H$23,8,0)),"",I42/VLOOKUP($I$6,'2023-24 Data'!$A$3:$H$23,8,0)) ->  | N42: =IF(ISERROR(INDEX('2023-24 Data'!$B$3:$BG$23,MATCH($N$6,dfenums,0),MATCH(C42,'2023-24 Data'!$B$2:$BG$2,0))),"",INDEX('2023-24 Data'!$B$3:$BG$23,MATCH($N$6,dfenums,0),MATCH(C42,'2023-24 Data'!$B$2:$BG$2,0))) ->  | P42: =IF(ISERROR(N42/VLOOKUP($N$6,'2023-24 Data'!$A$3:$H$23,8,0)),"",N42/VLOOKUP($N$6,'2023-24 Data'!$A$3:$H$23,8,0)) ->  | S42: =IF(ISERROR(INDEX('2023-24 Data'!$B$3:$BG$23,MATCH($S$6,dfenums,0),MATCH(C42,'2023-24 Data'!$B$2:$BG$2,0))),"",INDEX('2023-24 Data'!$B$3:$BG$23,MATCH($S$6,dfenums,0),MATCH(C42,'2023-24 Data'!$B$2:$BG$2,0))) ->  | U42: =IF(ISERROR(S42/VLOOKUP($S$6,'2023-24 Data'!$A$3:$H$23,8,0)),"",S42/VLOOKUP($S$6,'2023-24 Data'!$A$3:$H$23,8,0)) -> 
B43: Community focussed extended school staff | C43: E31 | D43: =IF(ISERROR(INDEX('2023-24 Data'!$B$3:$BG$23,MATCH($D$4,dfenums,0),MATCH(C43,'2023-24 Data'!$B$2:$BG$2,0))),"",INDEX('2023-24 Data'!$B$3:$BG$23,MATCH($D$4,dfenums,0),MATCH(C43,'2023-24 Data'!$B$2:$BG$2,0))) ->  | F43: =IF(ISERROR(D43/VLOOKUP($D$4,'2023-24 Data'!$A$3:$H$23,8,0)),"",D43/VLOOKUP($D$4,'2023-24 Data'!$A$3:$H$23,8,0)) ->  | I43: =IF(ISERROR(INDEX('2023-24 Data'!$B$3:$BG$23,MATCH($I$6,dfenums,0),MATCH(C43,'2023-24 Data'!$B$2:$BG$2,0))),"",INDEX('2023-24 Data'!$B$3:$BG$23,MATCH($I$6,dfenums,0),MATCH(C43,'2023-24 Data'!$B$2:$BG$2,0))) ->  | K43: =IF(ISERROR(I43/VLOOKUP($I$6,'2023-24 Data'!$A$3:$H$23,8,0)),"",I43/VLOOKUP($I$6,'2023-24 Data'!$A$3:$H$23,8,0)) ->  | N43: =IF(ISERROR(INDEX('2023-24 Data'!$B$3:$BG$23,MATCH($N$6,dfenums,0),MATCH(C43,'2023-24 Data'!$B$2:$BG$2,0))),"",INDEX('2023-24 Data'!$B$3:$BG$23,MATCH($N$6,dfenums,0),MATCH(C43,'2023-24 Data'!$B$2:$BG$2,0))) ->  | P43: =IF(ISERROR(N43/VLOOKUP($N$6,'2023-24 Data'!$A$3:$H$23,8,0)),"",N43/VLOOKUP($N$6,'2023-24 Data'!$A$3:$H$23,8,0)) ->  | S43: =IF(ISERROR(INDEX('2023-24 Data'!$B$3:$BG$23,MATCH($S$6,dfenums,0),MATCH(C43,'2023-24 Data'!$B$2:$BG$2,0))),"",INDEX('2023-24 Data'!$B$3:$BG$23,MATCH($S$6,dfenums,0),MATCH(C43,'2023-24 Data'!$B$2:$BG$2,0))) ->  | U43: =IF(ISERROR(S43/VLOOKUP($S$6,'2023-24 Data'!$A$3:$H$23,8,0)),"",S43/VLOOKUP($S$6,'2023-24 Data'!$A$3:$H$23,8,0)) -> 
B44: Community focussed extended school costs | C44: E32 | D44: =IF(ISERROR(INDEX('2023-24 Data'!$B$3:$BG$23,MATCH($D$4,dfenums,0),MATCH(C44,'2023-24 Data'!$B$2:$BG$2,0))),"",INDEX('2023-24 Data'!$B$3:$BG$23,MATCH($D$4,dfenums,0),MATCH(C44,'2023-24 Data'!$B$2:$BG$2,0))) ->  | F44: =IF(ISERROR(D44/VLOOKUP($D$4,'2023-24 Data'!$A$3:$H$23,8,0)),"",D44/VLOOKUP($D$4,'2023-24 Data'!$A$3:$H$23,8,0)) ->  | I44: =IF(ISERROR(INDEX('2023-24 Data'!$B$3:$BG$23,MATCH($I$6,dfenums,0),MATCH(C44,'2023-24 Data'!$B$2:$BG$2,0))),"",INDEX('2023-24 Data'!$B$3:$BG$23,MATCH($I$6,dfenums,0),MATCH(C44,'2023-24 Data'!$B$2:$BG$2,0))) ->  | K44: =IF(ISERROR(I44/VLOOKUP($I$6,'2023-24 Data'!$A$3:$H$23,8,0)),"",I44/VLOOKUP($I$6,'2023-24 Data'!$A$3:$H$23,8,0)) ->  | N44: =IF(ISERROR(INDEX('2023-24 Data'!$B$3:$BG$23,MATCH($N$6,dfenums,0),MATCH(C44,'2023-24 Data'!$B$2:$BG$2,0))),"",INDEX('2023-24 Data'!$B$3:$BG$23,MATCH($N$6,dfenums,0),MATCH(C44,'2023-24 Data'!$B$2:$BG$2,0))) ->  | P44: =IF(ISERROR(N44/VLOOKUP($N$6,'2023-24 Data'!$A$3:$H$23,8,0)),"",N44/VLOOKUP($N$6,'2023-24 Data'!$A$3:$H$23,8,0)) ->  | S44: =IF(ISERROR(INDEX('2023-24 Data'!$B$3:$BG$23,MATCH($S$6,dfenums,0),MATCH(C44,'2023-24 Data'!$B$2:$BG$2,0))),"",INDEX('2023-24 Data'!$B$3:$BG$23,MATCH($S$6,dfenums,0),MATCH(C44,'2023-24 Data'!$B$2:$BG$2,0))) ->  | U44: =IF(ISERROR(S44/VLOOKUP($S$6,'2023-24 Data'!$A$3:$H$23,8,0)),"",S44/VLOOKUP($S$6,'2023-24 Data'!$A$3:$H$23,8,0)) -> 
B45: Total Expenditure | D45: =SUM(D13:D44) -> 0 | E45: =SUM(E13:E44) -> 0 | F45: =SUM(F13:F44) -> 0 | G45: =SUM(G13:G44) -> 0 | I45: =SUM(I13:I44) -> 0 | J45: =SUM(J13:J44) -> 0 | K45: =SUM(K13:K44) -> 0 | L45: =SUM(L13:L44) -> 0 | N45: =SUM(N13:N44) -> 0 | O45: =SUM(O13:O44) -> 0 | P45: =SUM(P13:P44) -> 0 | Q45: =SUM(Q13:Q44) -> 0 | S45: =SUM(S13:S44) -> 0 | T45: =SUM(T13:T44) -> 0 | U45: =SUM(U13:U44) -> 0 | V45: =SUM(V13:V44) -> 0
B47: INCOME
B48: Funds delegated by the LEA | C48: I01 | D48: =IF(ISERROR(INDEX('2023-24 Data'!$B$3:$BG$23,MATCH($D$4,dfenums,0),MATCH(C48,'2023-24 Data'!$B$2:$BG$2,0))),"",INDEX('2023-24 Data'!$B$3:$BG$23,MATCH($D$4,dfenums,0),MATCH(C48,'2023-24 Data'!$B$2:$BG$2,0))) ->  | E48: =IF(ISERROR(D48/$G$4),"",D48/$G$4) ->  | F48: =IF(ISERROR(D48/VLOOKUP($D$4,'2023-24 Data'!$A$3:$H$23,8,0)),"",D48/VLOOKUP($D$4,'2023-24 Data'!$A$3:$H$23,8,0)) ->  | G48: =IF(ISERROR(D48/$D$45),"",D48/$D$45) ->  | I48: =IF(ISERROR(INDEX('2023-24 Data'!$B$3:$BG$23,MATCH($I$6,dfenums,0),MATCH(C48,'2023-24 Data'!$B$2:$BG$2,0))),"",INDEX('2023-24 Data'!$B$3:$BG$23,MATCH($I$6,dfenums,0),MATCH(C48,'2023-24 Data'!$B$2:$BG$2,0))) ->  | J48: =IF(ISERROR(I48/$J$6),"",I48/$J$6) ->  | K48: =IF(ISERROR(I48/VLOOKUP($I$6,'2023-24 Data'!$A$3:$H$23,8,0)),"",I48/VLOOKUP($I$6,'2023-24 Data'!$A$3:$H$23,8,0)) ->  | L48: =IF(ISERROR(I48/$I$45),"",I48/$I$45) ->  | N48: =IF(ISERROR(INDEX('2023-24 Data'!$B$3:$BG$23,MATCH($N$6,dfenums,0),MATCH(C48,'2023-24 Data'!$B$2:$BG$2,0))),"",INDEX('2023-24 Data'!$B$3:$BG$23,MATCH($N$6,dfenums,0),MATCH(C48,'2023-24 Data'!$B$2:$BG$2,0))) ->  | O48: =IF(ISERROR(N48/$O$6),"",N48/$O$6) ->  | P48: =IF(ISERROR(N48/VLOOKUP($N$6,'2023-24 Data'!$A$3:$H$23,8,0)),"",N48/VLOOKUP($N$6,'2023-24 Data'!$A$3:$H$23,8,0)) ->  | Q48: =IF(ISERROR(N48/$N$45),"",N48/$N$45) ->  | S48: =IF(ISERROR(INDEX('2023-24 Data'!$B$3:$BG$23,MATCH($S$6,dfenums,0),MATCH(C48,'2023-24 Data'!$B$2:$BG$2,0))),"",INDEX('2023-24 Data'!$B$3:$BG$23,MATCH($S$6,dfenums,0),MATCH(C48,'2023-24 Data'!$B$2:$BG$2,0))) ->  | T48: =IF(ISERROR(S48/$T$6),"",S48/$T$6) ->  | U48: =IF(ISERROR(S48/VLOOKUP($S$6,'2023-24 Data'!$A$3:$H$23,8,0)),"",S48/VLOOKUP($S$6,'2023-24 Data'!$A$3:$H$23,8,0)) ->  | V48: =IF(ISERROR(S48/$S$45),"",S48/$S$45) -> 
B49: Funding for sixth form students | C49: I02 | D49: =IF(ISERROR(INDEX('2023-24 Data'!$B$3:$BG$23,MATCH($D$4,dfenums,0),MATCH(C49,'2023-24 Data'!$B$2:$BG$2,0))),"",INDEX('2023-24 Data'!$B$3:$BG$23,MATCH($D$4,dfenums,0),MATCH(C49,'2023-24 Data'!$B$2:$BG$2,0))) ->  | F49: =IF(ISERROR(D49/VLOOKUP($D$4,'2023-24 Data'!$A$3:$H$23,8,0)),"",D49/VLOOKUP($D$4,'2023-24 Data'!$A$3:$H$23,8,0)) ->  | G49: =IF(ISERROR(D49/$D$45),"",D49/$D$45) ->  | I49: =IF(ISERROR(INDEX('2023-24 Data'!$B$3:$BG$23,MATCH($I$6,dfenums,0),MATCH(C49,'2023-24 Data'!$B$2:$BG$2,0))),"",INDEX('2023-24 Data'!$B$3:$BG$23,MATCH($I$6,dfenums,0),MATCH(C49,'2023-24 Data'!$B$2:$BG$2,0))) ->  | K49: =IF(ISERROR(I49/VLOOKUP($I$6,'2023-24 Data'!$A$3:$H$23,8,0)),"",I49/VLOOKUP($I$6,'2023-24 Data'!$A$3:$H$23,8,0)) ->  | L49: =IF(ISERROR(I49/$I$45),"",I49/$I$45) ->  | N49: =IF(ISERROR(INDEX('2023-24 Data'!$B$3:$BG$23,MATCH($N$6,dfenums,0),MATCH(C49,'2023-24 Data'!$B$2:$BG$2,0))),"",INDEX('2023-24 Data'!$B$3:$BG$23,MATCH($N$6,dfenums,0),MATCH(C49,'2023-24 Data'!$B$2:$BG$2,0))) ->  | P49: =IF(ISERROR(N49/VLOOKUP($N$6,'2023-24 Data'!$A$3:$H$23,8,0)),"",N49/VLOOKUP($N$6,'2023-24 Data'!$A$3:$H$23,8,0)) ->  | Q49: =IF(ISERROR(N49/$N$45),"",N49/$N$45) ->  | S49: =IF(ISERROR(INDEX('2023-24 Data'!$B$3:$BG$23,MATCH($S$6,dfenums,0),MATCH(C49,'2023-24 Data'!$B$2:$BG$2,0))),"",INDEX('2023-24 Data'!$B$3:$BG$23,MATCH($S$6,dfenums,0),MATCH(C49,'2023-24 Data'!$B$2:$BG$2,0))) ->  | U49: =IF(ISERROR(S49/VLOOKUP($S$6,'2023-24 Data'!$A$3:$H$23,8,0)),"",S49/VLOOKUP($S$6,'2023-24 Data'!$A$3:$H$23,8,0)) ->  | V49: =IF(ISERROR(S49/$S$45),"",S49/$S$45) -> 
B50: Element 3 | C50: I03 | D50: =IF(ISERROR(INDEX('2023-24 Data'!$B$3:$BG$23,MATCH($D$4,dfenums,0),MATCH(C50,'2023-24 Data'!$B$2:$BG$2,0))),"",INDEX('2023-24 Data'!$B$3:$BG$23,MATCH($D$4,dfenums,0),MATCH(C50,'2023-24 Data'!$B$2:$BG$2,0))) ->  | F50: =IF(ISERROR(D50/VLOOKUP($D$4,'2023-24 Data'!$A$3:$H$23,8,0)),"",D50/VLOOKUP($D$4,'2023-24 Data'!$A$3:$H$23,8,0)) ->  | I50: =IF(ISERROR(INDEX('2023-24 Data'!$B$3:$BG$23,MATCH($I$6,dfenums,0),MATCH(C50,'2023-24 Data'!$B$2:$BG$2,0))),"",INDEX('2023-24 Data'!$B$3:$BG$23,MATCH($I$6,dfenums,0),MATCH(C50,'2023-24 Data'!$B$2:$BG$2,0))) ->  | K50: =IF(ISERROR(I50/VLOOKUP($I$6,'2023-24 Data'!$A$3:$H$23,8,0)),"",I50/VLOOKUP($I$6,'2023-24 Data'!$A$3:$H$23,8,0)) ->  | N50: =IF(ISERROR(INDEX('2023-24 Data'!$B$3:$BG$23,MATCH($N$6,dfenums,0),MATCH(C50,'2023-24 Data'!$B$2:$BG$2,0))),"",INDEX('2023-24 Data'!$B$3:$BG$23,MATCH($N$6,dfenums,0),MATCH(C50,'2023-24 Data'!$B$2:$BG$2,0))) ->  | P50: =IF(ISERROR(N50/VLOOKUP($N$6,'2023-24 Data'!$A$3:$H$23,8,0)),"",N50/VLOOKUP($N$6,'2023-24 Data'!$A$3:$H$23,8,0)) ->  | S50: =IF(ISERROR(INDEX('2023-24 Data'!$B$3:$BG$23,MATCH($S$6,dfenums,0),MATCH(C50,'2023-24 Data'!$B$2:$BG$2,0))),"",INDEX('2023-24 Data'!$B$3:$BG$23,MATCH($S$6,dfenums,0),MATCH(C50,'2023-24 Data'!$B$2:$BG$2,0))) ->  | U50: =IF(ISERROR(S50/VLOOKUP($S$6,'2023-24 Data'!$A$3:$H$23,8,0)),"",S50/VLOOKUP($S$6,'2023-24 Data'!$A$3:$H$23,8,0)) -> 
B51: Funding for minority ethnic pupils | C51: I04 | D51: =IF(ISERROR(INDEX('2023-24 Data'!$B$3:$BG$23,MATCH($D$4,dfenums,0),MATCH(C51,'2023-24 Data'!$B$2:$BG$2,0))),"",INDEX('2023-24 Data'!$B$3:$BG$23,MATCH($D$4,dfenums,0),MATCH(C51,'2023-24 Data'!$B$2:$BG$2,0))) ->  | F51: =IF(ISERROR(D51/VLOOKUP($D$4,'2023-24 Data'!$A$3:$H$23,8,0)),"",D51/VLOOKUP($D$4,'2023-24 Data'!$A$3:$H$23,8,0)) ->  | I51: =IF(ISERROR(INDEX('2023-24 Data'!$B$3:$BG$23,MATCH($I$6,dfenums,0),MATCH(C51,'2023-24 Data'!$B$2:$BG$2,0))),"",INDEX('2023-24 Data'!$B$3:$BG$23,MATCH($I$6,dfenums,0),MATCH(C51,'2023-24 Data'!$B$2:$BG$2,0))) ->  | K51: =IF(ISERROR(I51/VLOOKUP($I$6,'2023-24 Data'!$A$3:$H$23,8,0)),"",I51/VLOOKUP($I$6,'2023-24 Data'!$A$3:$H$23,8,0)) ->  | N51: =IF(ISERROR(INDEX('2023-24 Data'!$B$3:$BG$23,MATCH($N$6,dfenums,0),MATCH(C51,'2023-24 Data'!$B$2:$BG$2,0))),"",INDEX('2023-24 Data'!$B$3:$BG$23,MATCH($N$6,dfenums,0),MATCH(C51,'2023-24 Data'!$B$2:$BG$2,0))) ->  | P51: =IF(ISERROR(N51/VLOOKUP($N$6,'2023-24 Data'!$A$3:$H$23,8,0)),"",N51/VLOOKUP($N$6,'2023-24 Data'!$A$3:$H$23,8,0)) ->  | S51: =IF(ISERROR(INDEX('2023-24 Data'!$B$3:$BG$23,MATCH($S$6,dfenums,0),MATCH(C51,'2023-24 Data'!$B$2:$BG$2,0))),"",INDEX('2023-24 Data'!$B$3:$BG$23,MATCH($S$6,dfenums,0),MATCH(C51,'2023-24 Data'!$B$2:$BG$2,0))) ->  | U51: =IF(ISERROR(S51/VLOOKUP($S$6,'2023-24 Data'!$A$3:$H$23,8,0)),"",S51/VLOOKUP($S$6,'2023-24 Data'!$A$3:$H$23,8,0)) -> 
B52: Pupil Premium | C52: I05 | D52: =IF(ISERROR(INDEX('2023-24 Data'!$B$3:$BG$23,MATCH($D$4,dfenums,0),MATCH(C52,'2023-24 Data'!$B$2:$BG$2,0))),"",INDEX('2023-24 Data'!$B$3:$BG$23,MATCH($D$4,dfenums,0),MATCH(C52,'2023-24 Data'!$B$2:$BG$2,0))) ->  | F52: =IF(ISERROR(D52/VLOOKUP($D$4,'2023-24 Data'!$A$3:$H$23,8,0)),"",D52/VLOOKUP($D$4,'2023-24 Data'!$A$3:$H$23,8,0)) ->  | I52: =IF(ISERROR(INDEX('2023-24 Data'!$B$3:$BG$23,MATCH($I$6,dfenums,0),MATCH(C52,'2023-24 Data'!$B$2:$BG$2,0))),"",INDEX('2023-24 Data'!$B$3:$BG$23,MATCH($I$6,dfenums,0),MATCH(C52,'2023-24 Data'!$B$2:$BG$2,0))) ->  | K52: =IF(ISERROR(I52/VLOOKUP($I$6,'2023-24 Data'!$A$3:$H$23,8,0)),"",I52/VLOOKUP($I$6,'2023-24 Data'!$A$3:$H$23,8,0)) ->  | N52: =IF(ISERROR(INDEX('2023-24 Data'!$B$3:$BG$23,MATCH($N$6,dfenums,0),MATCH(C52,'2023-24 Data'!$B$2:$BG$2,0))),"",INDEX('2023-24 Data'!$B$3:$BG$23,MATCH($N$6,dfenums,0),MATCH(C52,'2023-24 Data'!$B$2:$BG$2,0))) ->  | P52: =IF(ISERROR(N52/VLOOKUP($N$6,'2023-24 Data'!$A$3:$H$23,8,0)),"",N52/VLOOKUP($N$6,'2023-24 Data'!$A$3:$H$23,8,0)) ->  | S52: =IF(ISERROR(INDEX('2023-24 Data'!$B$3:$BG$23,MATCH($S$6,dfenums,0),MATCH(C52,'2023-24 Data'!$B$2:$BG$2,0))),"",INDEX('2023-24 Data'!$B$3:$BG$23,MATCH($S$6,dfenums,0),MATCH(C52,'2023-24 Data'!$B$2:$BG$2,0))) ->  | U52: =IF(ISERROR(S52/VLOOKUP($S$6,'2023-24 Data'!$A$3:$H$23,8,0)),"",S52/VLOOKUP($S$6,'2023-24 Data'!$A$3:$H$23,8,0)) -> 
B53: Other government grants | C53: I06 | D53: =IF(ISERROR(INDEX('2023-24 Data'!$B$3:$BG$23,MATCH($D$4,dfenums,0),MATCH(C53,'2023-24 Data'!$B$2:$BG$2,0))),"",INDEX('2023-24 Data'!$B$3:$BG$23,MATCH($D$4,dfenums,0),MATCH(C53,'2023-24 Data'!$B$2:$BG$2,0))) ->  | F53: =IF(ISERROR(D53/VLOOKUP($D$4,'2023-24 Data'!$A$3:$H$23,8,0)),"",D53/VLOOKUP($D$4,'2023-24 Data'!$A$3:$H$23,8,0)) ->  | I53: =IF(ISERROR(INDEX('2023-24 Data'!$B$3:$BG$23,MATCH($I$6,dfenums,0),MATCH(C53,'2023-24 Data'!$B$2:$BG$2,0))),"",INDEX('2023-24 Data'!$B$3:$BG$23,MATCH($I$6,dfenums,0),MATCH(C53,'2023-24 Data'!$B$2:$BG$2,0))) ->  | K53: =IF(ISERROR(I53/VLOOKUP($I$6,'2023-24 Data'!$A$3:$H$23,8,0)),"",I53/VLOOKUP($I$6,'2023-24 Data'!$A$3:$H$23,8,0)) ->  | N53: =IF(ISERROR(INDEX('2023-24 Data'!$B$3:$BG$23,MATCH($N$6,dfenums,0),MATCH(C53,'2023-24 Data'!$B$2:$BG$2,0))),"",INDEX('2023-24 Data'!$B$3:$BG$23,MATCH($N$6,dfenums,0),MATCH(C53,'2023-24 Data'!$B$2:$BG$2,0))) ->  | P53: =IF(ISERROR(N53/VLOOKUP($N$6,'2023-24 Data'!$A$3:$H$23,8,0)),"",N53/VLOOKUP($N$6,'2023-24 Data'!$A$3:$H$23,8,0)) ->  | S53: =IF(ISERROR(INDEX('2023-24 Data'!$B$3:$BG$23,MATCH($S$6,dfenums,0),MATCH(C53,'2023-24 Data'!$B$2:$BG$2,0))),"",INDEX('2023-24 Data'!$B$3:$BG$23,MATCH($S$6,dfenums,0),MATCH(C53,'2023-24 Data'!$B$2:$BG$2,0))) ->  | U53: =IF(ISERROR(S53/VLOOKUP($S$6,'2023-24 Data'!$A$3:$H$23,8,0)),"",S53/VLOOKUP($S$6,'2023-24 Data'!$A$3:$H$23,8,0)) -> 
B54: Other grants and payments | C54: I07 | D54: =IF(ISERROR(INDEX('2023-24 Data'!$B$3:$BG$23,MATCH($D$4,dfenums,0),MATCH(C54,'2023-24 Data'!$B$2:$BG$2,0))),"",INDEX('2023-24 Data'!$B$3:$BG$23,MATCH($D$4,dfenums,0),MATCH(C54,'2023-24 Data'!$B$2:$BG$2,0))) ->  | F54: =IF(ISERROR(D54/VLOOKUP($D$4,'2023-24 Data'!$A$3:$H$23,8,0)),"",D54/VLOOKUP($D$4,'2023-24 Data'!$A$3:$H$23,8,0)) ->  | I54: =IF(ISERROR(INDEX('2023-24 Data'!$B$3:$BG$23,MATCH($I$6,dfenums,0),MATCH(C54,'2023-24 Data'!$B$2:$BG$2,0))),"",INDEX('2023-24 Data'!$B$3:$BG$23,MATCH($I$6,dfenums,0),MATCH(C54,'2023-24 Data'!$B$2:$BG$2,0))) ->  | K54: =IF(ISERROR(I54/VLOOKUP($I$6,'2023-24 Data'!$A$3:$H$23,8,0)),"",I54/VLOOKUP($I$6,'2023-24 Data'!$A$3:$H$23,8,0)) ->  | N54: =IF(ISERROR(INDEX('2023-24 Data'!$B$3:$BG$23,MATCH($N$6,dfenums,0),MATCH(C54,'2023-24 Data'!$B$2:$BG$2,0))),"",INDEX('2023-24 Data'!$B$3:$BG$23,MATCH($N$6,dfenums,0),MATCH(C54,'2023-24 Data'!$B$2:$BG$2,0))) ->  | P54: =IF(ISERROR(N54/VLOOKUP($N$6,'2023-24 Data'!$A$3:$H$23,8,0)),"",N54/VLOOKUP($N$6,'2023-24 Data'!$A$3:$H$23,8,0)) ->  | S54: =IF(ISERROR(INDEX('2023-24 Data'!$B$3:$BG$23,MATCH($S$6,dfenums,0),MATCH(C54,'2023-24 Data'!$B$2:$BG$2,0))),"",INDEX('2023-24 Data'!$B$3:$BG$23,MATCH($S$6,dfenums,0),MATCH(C54,'2023-24 Data'!$B$2:$BG$2,0))) ->  | U54: =IF(ISERROR(S54/VLOOKUP($S$6,'2023-24 Data'!$A$3:$H$23,8,0)),"",S54/VLOOKUP($S$6,'2023-24 Data'!$A$3:$H$23,8,0)) -> 
B55: Income from facilities and services | C55: I08 | D55: =IF(ISERROR(INDEX('2023-24 Data'!$B$3:$BG$23,MATCH($D$4,dfenums,0),MATCH(C55,'2023-24 Data'!$B$2:$BG$2,0))),"",INDEX('2023-24 Data'!$B$3:$BG$23,MATCH($D$4,dfenums,0),MATCH(C55,'2023-24 Data'!$B$2:$BG$2,0))) ->  | E55: =IF(ISERROR(D55/$G$4),"",D55/$G$4) ->  | F55: =IF(ISERROR(D55/VLOOKUP($D$4,'2023-24 Data'!$A$3:$H$23,8,0)),"",D55/VLOOKUP($D$4,'2023-24 Data'!$A$3:$H$23,8,0)) ->  | I55: =IF(ISERROR(INDEX('2023-24 Data'!$B$3:$BG$23,MATCH($I$6,dfenums,0),MATCH(C55,'2023-24 Data'!$B$2:$BG$2,0))),"",INDEX('2023-24 Data'!$B$3:$BG$23,MATCH($I$6,dfenums,0),MATCH(C55,'2023-24 Data'!$B$2:$BG$2,0))) ->  | J55: =IF(ISERROR(I55/$J$6),"",I55/$J$6) ->  | K55: =IF(ISERROR(I55/VLOOKUP($I$6,'2023-24 Data'!$A$3:$H$23,8,0)),"",I55/VLOOKUP($I$6,'2023-24 Data'!$A$3:$H$23,8,0)) ->  | L55: =IF(ISERROR(I55/$I$45),"",I55/$I$45) ->  | N55: =IF(ISERROR(INDEX('2023-24 Data'!$B$3:$BG$23,MATCH($N$6,dfenums,0),MATCH(C55,'2023-24 Data'!$B$2:$BG$2,0))),"",INDEX('2023-24 Data'!$B$3:$BG$23,MATCH($N$6,dfenums,0),MATCH(C55,'2023-24 Data'!$B$2:$BG$2,0))) ->  | O55: =IF(ISERROR(N55/$O$6),"",N55/$O$6) ->  | P55: =IF(ISERROR(N55/VLOOKUP($N$6,'2023-24 Data'!$A$3:$H$23,8,0)),"",N55/VLOOKUP($N$6,'2023-24 Data'!$A$3:$H$23,8,0)) ->  | Q55: =IF(ISERROR(N55/$N$45),"",N55/$N$45) ->  | S55: =IF(ISERROR(INDEX('2023-24 Data'!$B$3:$BG$23,MATCH($S$6,dfenums,0),MATCH(C55,'2023-24 Data'!$B$2:$BG$2,0))),"",INDEX('2023-24 Data'!$B$3:$BG$23,MATCH($S$6,dfenums,0),MATCH(C55,'2023-24 Data'!$B$2:$BG$2,0))) ->  | T55: =IF(ISERROR(S55/$T$6),"",S55/$T$6) ->  | U55: =IF(ISERROR(S55/VLOOKUP($S$6,'2023-24 Data'!$A$3:$H$23,8,0)),"",S55/VLOOKUP($S$6,'2023-24 Data'!$A$3:$H$23,8,0)) ->  | V55: =IF(ISERROR(S55/$S$45),"",S55/$S$45) -> 
B56: Income from facilities and services | C56: I08b | D56: =IF(ISERROR(INDEX('2023-24 Data'!$B$3:$BG$23,MATCH($D$4,dfenums,0),MATCH(C56,'2023-24 Data'!$B$2:$BG$2,0))),"",INDEX('2023-24 Data'!$B$3:$BG$23,MATCH($D$4,dfenums,0),MATCH(C56,'2023-24 Data'!$B$2:$BG$2,0))) ->  | F56: =IF(ISERROR(D56/VLOOKUP($D$4,'2023-24 Data'!$A$3:$H$23,8,0)),"",D56/VLOOKUP($D$4,'2023-24 Data'!$A$3:$H$23,8,0)) ->  | I56: =IF(ISERROR(INDEX('2023-24 Data'!$B$3:$BG$23,MATCH($I$6,dfenums,0),MATCH(C56,'2023-24 Data'!$B$2:$BG$2,0))),"",INDEX('2023-24 Data'!$B$3:$BG$23,MATCH($I$6,dfenums,0),MATCH(C56,'2023-24 Data'!$B$2:$BG$2,0))) ->  | K56: =IF(ISERROR(I56/VLOOKUP($I$6,'2023-24 Data'!$A$3:$H$23,8,0)),"",I56/VLOOKUP($I$6,'2023-24 Data'!$A$3:$H$23,8,0)) ->  | N56: =IF(ISERROR(INDEX('2023-24 Data'!$B$3:$BG$23,MATCH($N$6,dfenums,0),MATCH(C56,'2023-24 Data'!$B$2:$BG$2,0))),"",INDEX('2023-24 Data'!$B$3:$BG$23,MATCH($N$6,dfenums,0),MATCH(C56,'2023-24 Data'!$B$2:$BG$2,0))) ->  | P56: =IF(ISERROR(N56/VLOOKUP($N$6,'2023-24 Data'!$A$3:$H$23,8,0)),"",N56/VLOOKUP($N$6,'2023-24 Data'!$A$3:$H$23,8,0)) ->  | S56: =IF(ISERROR(INDEX('2023-24 Data'!$B$3:$BG$23,MATCH($S$6,dfenums,0),MATCH(C56,'2023-24 Data'!$B$2:$BG$2,0))),"",INDEX('2023-24 Data'!$B$3:$BG$23,MATCH($S$6,dfenums,0),MATCH(C56,'2023-24 Data'!$B$2:$BG$2,0))) ->  | U56: =IF(ISERROR(S56/VLOOKUP($S$6,'2023-24 Data'!$A$3:$H$23,8,0)),"",S56/VLOOKUP($S$6,'2023-24 Data'!$A$3:$H$23,8,0)) -> 
B57: Income from catering | C57: I09 | D57: =IF(ISERROR(INDEX('2023-24 Data'!$B$3:$BG$23,MATCH($D$4,dfenums,0),MATCH(C57,'2023-24 Data'!$B$2:$BG$2,0))),"",INDEX('2023-24 Data'!$B$3:$BG$23,MATCH($D$4,dfenums,0),MATCH(C57,'2023-24 Data'!$B$2:$BG$2,0))) ->  | F57: =IF(ISERROR(D57/VLOOKUP($D$4,'2023-24 Data'!$A$3:$H$23,8,0)),"",D57/VLOOKUP($D$4,'2023-24 Data'!$A$3:$H$23,8,0)) ->  | I57: =IF(ISERROR(INDEX('2023-24 Data'!$B$3:$BG$23,MATCH($I$6,dfenums,0),MATCH(C57,'2023-24 Data'!$B$2:$BG$2,0))),"",INDEX('2023-24 Data'!$B$3:$BG$23,MATCH($I$6,dfenums,0),MATCH(C57,'2023-24 Data'!$B$2:$BG$2,0))) ->  | K57: =IF(ISERROR(I57/VLOOKUP($I$6,'2023-24 Data'!$A$3:$H$23,8,0)),"",I57/VLOOKUP($I$6,'2023-24 Data'!$A$3:$H$23,8,0)) ->  | N57: =IF(ISERROR(INDEX('2023-24 Data'!$B$3:$BG$23,MATCH($N$6,dfenums,0),MATCH(C57,'2023-24 Data'!$B$2:$BG$2,0))),"",INDEX('2023-24 Data'!$B$3:$BG$23,MATCH($N$6,dfenums,0),MATCH(C57,'2023-24 Data'!$B$2:$BG$2,0))) ->  | P57: =IF(ISERROR(N57/VLOOKUP($N$6,'2023-24 Data'!$A$3:$H$23,8,0)),"",N57/VLOOKUP($N$6,'2023-24 Data'!$A$3:$H$23,8,0)) ->  | S57: =IF(ISERROR(INDEX('2023-24 Data'!$B$3:$BG$23,MATCH($S$6,dfenums,0),MATCH(C57,'2023-24 Data'!$B$2:$BG$2,0))),"",INDEX('2023-24 Data'!$B$3:$BG$23,MATCH($S$6,dfenums,0),MATCH(C57,'2023-24 Data'!$B$2:$BG$2,0))) ->  | U57: =IF(ISERROR(S57/VLOOKUP($S$6,'2023-24 Data'!$A$3:$H$23,8,0)),"",S57/VLOOKUP($S$6,'2023-24 Data'!$A$3:$H$23,8,0)) -> 
B58: Receipts from supply teachers insurance claims | C58: I10 | D58: =IF(ISERROR(INDEX('2023-24 Data'!$B$3:$BG$23,MATCH($D$4,dfenums,0),MATCH(C58,'2023-24 Data'!$B$2:$BG$2,0))),"",INDEX('2023-24 Data'!$B$3:$BG$23,MATCH($D$4,dfenums,0),MATCH(C58,'2023-24 Data'!$B$2:$BG$2,0))) ->  | F58: =IF(ISERROR(D58/VLOOKUP($D$4,'2023-24 Data'!$A$3:$H$23,8,0)),"",D58/VLOOKUP($D$4,'2023-24 Data'!$A$3:$H$23,8,0)) ->  | I58: =IF(ISERROR(INDEX('2023-24 Data'!$B$3:$BG$23,MATCH($I$6,dfenums,0),MATCH(C58,'2023-24 Data'!$B$2:$BG$2,0))),"",INDEX('2023-24 Data'!$B$3:$BG$23,MATCH($I$6,dfenums,0),MATCH(C58,'2023-24 Data'!$B$2:$BG$2,0))) ->  | K58: =IF(ISERROR(I58/VLOOKUP($I$6,'2023-24 Data'!$A$3:$H$23,8,0)),"",I58/VLOOKUP($I$6,'2023-24 Data'!$A$3:$H$23,8,0)) ->  | N58: =IF(ISERROR(INDEX('2023-24 Data'!$B$3:$BG$23,MATCH($N$6,dfenums,0),MATCH(C58,'2023-24 Data'!$B$2:$BG$2,0))),"",INDEX('2023-24 Data'!$B$3:$BG$23,MATCH($N$6,dfenums,0),MATCH(C58,'2023-24 Data'!$B$2:$BG$2,0))) ->  | P58: =IF(ISERROR(N58/VLOOKUP($N$6,'2023-24 Data'!$A$3:$H$23,8,0)),"",N58/VLOOKUP($N$6,'2023-24 Data'!$A$3:$H$23,8,0)) ->  | S58: =IF(ISERROR(INDEX('2023-24 Data'!$B$3:$BG$23,MATCH($S$6,dfenums,0),MATCH(C58,'2023-24 Data'!$B$2:$BG$2,0))),"",INDEX('2023-24 Data'!$B$3:$BG$23,MATCH($S$6,dfenums,0),MATCH(C58,'2023-24 Data'!$B$2:$BG$2,0))) ->  | U58: =IF(ISERROR(S58/VLOOKUP($S$6,'2023-24 Data'!$A$3:$H$23,8,0)),"",S58/VLOOKUP($S$6,'2023-24 Data'!$A$3:$H$23,8,0)) -> 
B59: Receipts from other insurance claims | C59: I11 | D59: =IF(ISERROR(INDEX('2023-24 Data'!$B$3:$BG$23,MATCH($D$4,dfenums,0),MATCH(C59,'2023-24 Data'!$B$2:$BG$2,0))),"",INDEX('2023-24 Data'!$B$3:$BG$23,MATCH($D$4,dfenums,0),MATCH(C59,'2023-24 Data'!$B$2:$BG$2,0))) ->  | F59: =IF(ISERROR(D59/VLOOKUP($D$4,'2023-24 Data'!$A$3:$H$23,8,0)),"",D59/VLOOKUP($D$4,'2023-24 Data'!$A$3:$H$23,8,0)) ->  | I59: =IF(ISERROR(INDEX('2023-24 Data'!$B$3:$BG$23,MATCH($I$6,dfenums,0),MATCH(C59,'2023-24 Data'!$B$2:$BG$2,0))),"",INDEX('2023-24 Data'!$B$3:$BG$23,MATCH($I$6,dfenums,0),MATCH(C59,'2023-24 Data'!$B$2:$BG$2,0))) ->  | K59: =IF(ISERROR(I59/VLOOKUP($I$6,'2023-24 Data'!$A$3:$H$23,8,0)),"",I59/VLOOKUP($I$6,'2023-24 Data'!$A$3:$H$23,8,0)) ->  | N59: =IF(ISERROR(INDEX('2023-24 Data'!$B$3:$BG$23,MATCH($N$6,dfenums,0),MATCH(C59,'2023-24 Data'!$B$2:$BG$2,0))),"",INDEX('2023-24 Data'!$B$3:$BG$23,MATCH($N$6,dfenums,0),MATCH(C59,'2023-24 Data'!$B$2:$BG$2,0))) ->  | P59: =IF(ISERROR(N59/VLOOKUP($N$6,'2023-24 Data'!$A$3:$H$23,8,0)),"",N59/VLOOKUP($N$6,'2023-24 Data'!$A$3:$H$23,8,0)) ->  | S59: =IF(ISERROR(INDEX('2023-24 Data'!$B$3:$BG$23,MATCH($S$6,dfenums,0),MATCH(C59,'2023-24 Data'!$B$2:$BG$2,0))),"",INDEX('2023-24 Data'!$B$3:$BG$23,MATCH($S$6,dfenums,0),MATCH(C59,'2023-24 Data'!$B$2:$BG$2,0))) ->  | U59: =IF(ISERROR(S59/VLOOKUP($S$6,'2023-24 Data'!$A$3:$H$23,8,0)),"",S59/VLOOKUP($S$6,'2023-24 Data'!$A$3:$H$23,8,0)) -> 
B60: Income from contributions to visits etc. | C60: I12 | D60: =IF(ISERROR(INDEX('2023-24 Data'!$B$3:$BG$23,MATCH($D$4,dfenums,0),MATCH(C60,'2023-24 Data'!$B$2:$BG$2,0))),"",INDEX('2023-24 Data'!$B$3:$BG$23,MATCH($D$4,dfenums,0),MATCH(C60,'2023-24 Data'!$B$2:$BG$2,0))) ->  | F60: =IF(ISERROR(D60/VLOOKUP($D$4,'2023-24 Data'!$A$3:$H$23,8,0)),"",D60/VLOOKUP($D$4,'2023-24 Data'!$A$3:$H$23,8,0)) ->  | I60: =IF(ISERROR(INDEX('2023-24 Data'!$B$3:$BG$23,MATCH($I$6,dfenums,0),MATCH(C60,'2023-24 Data'!$B$2:$BG$2,0))),"",INDEX('2023-24 Data'!$B$3:$BG$23,MATCH($I$6,dfenums,0),MATCH(C60,'2023-24 Data'!$B$2:$BG$2,0))) ->  | K60: =IF(ISERROR(I60/VLOOKUP($I$6,'2023-24 Data'!$A$3:$H$23,8,0)),"",I60/VLOOKUP($I$6,'2023-24 Data'!$A$3:$H$23,8,0)) ->  | N60: =IF(ISERROR(INDEX('2023-24 Data'!$B$3:$BG$23,MATCH($N$6,dfenums,0),MATCH(C60,'2023-24 Data'!$B$2:$BG$2,0))),"",INDEX('2023-24 Data'!$B$3:$BG$23,MATCH($N$6,dfenums,0),MATCH(C60,'2023-24 Data'!$B$2:$BG$2,0))) ->  | P60: =IF(ISERROR(N60/VLOOKUP($N$6,'2023-24 Data'!$A$3:$H$23,8,0)),"",N60/VLOOKUP($N$6,'2023-24 Data'!$A$3:$H$23,8,0)) ->  | S60: =IF(ISERROR(INDEX('2023-24 Data'!$B$3:$BG$23,MATCH($S$6,dfenums,0),MATCH(C60,'2023-24 Data'!$B$2:$BG$2,0))),"",INDEX('2023-24 Data'!$B$3:$BG$23,MATCH($S$6,dfenums,0),MATCH(C60,'2023-24 Data'!$B$2:$BG$2,0))) ->  | U60: =IF(ISERROR(S60/VLOOKUP($S$6,'2023-24 Data'!$A$3:$H$23,8,0)),"",S60/VLOOKUP($S$6,'2023-24 Data'!$A$3:$H$23,8,0)) -> 
B61: Donations and/or voluntary funds | C61: I13 | D61: =IF(ISERROR(INDEX('2023-24 Data'!$B$3:$BG$23,MATCH($D$4,dfenums,0),MATCH(C61,'2023-24 Data'!$B$2:$BG$2,0))),"",INDEX('2023-24 Data'!$B$3:$BG$23,MATCH($D$4,dfenums,0),MATCH(C61,'2023-24 Data'!$B$2:$BG$2,0))) ->  | F61: =IF(ISERROR(D61/VLOOKUP($D$4,'2023-24 Data'!$A$3:$H$23,8,0)),"",D61/VLOOKUP($D$4,'2023-24 Data'!$A$3:$H$23,8,0)) ->  | I61: =IF(ISERROR(INDEX('2023-24 Data'!$B$3:$BG$23,MATCH($I$6,dfenums,0),MATCH(C61,'2023-24 Data'!$B$2:$BG$2,0))),"",INDEX('2023-24 Data'!$B$3:$BG$23,MATCH($I$6,dfenums,0),MATCH(C61,'2023-24 Data'!$B$2:$BG$2,0))) ->  | K61: =IF(ISERROR(I61/VLOOKUP($I$6,'2023-24 Data'!$A$3:$H$23,8,0)),"",I61/VLOOKUP($I$6,'2023-24 Data'!$A$3:$H$23,8,0)) ->  | N61: =IF(ISERROR(INDEX('2023-24 Data'!$B$3:$BG$23,MATCH($N$6,dfenums,0),MATCH(C61,'2023-24 Data'!$B$2:$BG$2,0))),"",INDEX('2023-24 Data'!$B$3:$BG$23,MATCH($N$6,dfenums,0),MATCH(C61,'2023-24 Data'!$B$2:$BG$2,0))) ->  | P61: =IF(ISERROR(N61/VLOOKUP($N$6,'2023-24 Data'!$A$3:$H$23,8,0)),"",N61/VLOOKUP($N$6,'2023-24 Data'!$A$3:$H$23,8,0)) ->  | S61: =IF(ISERROR(INDEX('2023-24 Data'!$B$3:$BG$23,MATCH($S$6,dfenums,0),MATCH(C61,'2023-24 Data'!$B$2:$BG$2,0))),"",INDEX('2023-24 Data'!$B$3:$BG$23,MATCH($S$6,dfenums,0),MATCH(C61,'2023-24 Data'!$B$2:$BG$2,0))) ->  | U61: =IF(ISERROR(S61/VLOOKUP($S$6,'2023-24 Data'!$A$3:$H$23,8,0)),"",S61/VLOOKUP($S$6,'2023-24 Data'!$A$3:$H$23,8,0)) -> 
B62: Pupil focussed extended school funding &/or grants | C62: I15 | D62: =IF(ISERROR(INDEX('2023-24 Data'!$B$3:$BG$23,MATCH($D$4,dfenums,0),MATCH(C62,'2023-24 Data'!$B$2:$BG$2,0))),"",INDEX('2023-24 Data'!$B$3:$BG$23,MATCH($D$4,dfenums,0),MATCH(C62,'2023-24 Data'!$B$2:$BG$2,0))) ->  | F62: =IF(ISERROR(D62/VLOOKUP($D$4,'2023-24 Data'!$A$3:$H$23,8,0)),"",D62/VLOOKUP($D$4,'2023-24 Data'!$A$3:$H$23,8,0)) ->  | I62: =IF(ISERROR(INDEX('2023-24 Data'!$B$3:$BG$23,MATCH($I$6,dfenums,0),MATCH(C62,'2023-24 Data'!$B$2:$BG$2,0))),"",INDEX('2023-24 Data'!$B$3:$BG$23,MATCH($I$6,dfenums,0),MATCH(C62,'2023-24 Data'!$B$2:$BG$2,0))) ->  | K62: =IF(ISERROR(I62/VLOOKUP($I$6,'2023-24 Data'!$A$3:$H$23,8,0)),"",I62/VLOOKUP($I$6,'2023-24 Data'!$A$3:$H$23,8,0)) ->  | N62: =IF(ISERROR(INDEX('2023-24 Data'!$B$3:$BG$23,MATCH($N$6,dfenums,0),MATCH(C62,'2023-24 Data'!$B$2:$BG$2,0))),"",INDEX('2023-24 Data'!$B$3:$BG$23,MATCH($N$6,dfenums,0),MATCH(C62,'2023-24 Data'!$B$2:$BG$2,0))) ->  | P62: =IF(ISERROR(N62/VLOOKUP($N$6,'2023-24 Data'!$A$3:$H$23,8,0)),"",N62/VLOOKUP($N$6,'2023-24 Data'!$A$3:$H$23,8,0)) ->  | S62: =IF(ISERROR(INDEX('2023-24 Data'!$B$3:$BG$23,MATCH($S$6,dfenums,0),MATCH(C62,'2023-24 Data'!$B$2:$BG$2,0))),"",INDEX('2023-24 Data'!$B$3:$BG$23,MATCH($S$6,dfenums,0),MATCH(C62,'2023-24 Data'!$B$2:$BG$2,0))) ->  | U62: =IF(ISERROR(S62/VLOOKUP($S$6,'2023-24 Data'!$A$3:$H$23,8,0)),"",S62/VLOOKUP($S$6,'2023-24 Data'!$A$3:$H$23,8,0)) -> 
B63: Community focussed extended school funding &/or grants | C63: I16 | D63: =IF(ISERROR(INDEX('2023-24 Data'!$B$3:$BG$23,MATCH($D$4,dfenums,0),MATCH(C63,'2023-24 Data'!$B$2:$BG$2,0))),"",INDEX('2023-24 Data'!$B$3:$BG$23,MATCH($D$4,dfenums,0),MATCH(C63,'2023-24 Data'!$B$2:$BG$2,0))) ->  | F63: =IF(ISERROR(D63/VLOOKUP($D$4,'2023-24 Data'!$A$3:$H$23,8,0)),"",D63/VLOOKUP($D$4,'2023-24 Data'!$A$3:$H$23,8,0)) ->  | I63: =IF(ISERROR(INDEX('2023-24 Data'!$B$3:$BG$23,MATCH($I$6,dfenums,0),MATCH(C63,'2023-24 Data'!$B$2:$BG$2,0))),"",INDEX('2023-24 Data'!$B$3:$BG$23,MATCH($I$6,dfenums,0),MATCH(C63,'2023-24 Data'!$B$2:$BG$2,0))) ->  | K63: =IF(ISERROR(I63/VLOOKUP($I$6,'2023-24 Data'!$A$3:$H$23,8,0)),"",I63/VLOOKUP($I$6,'2023-24 Data'!$A$3:$H$23,8,0)) ->  | N63: =IF(ISERROR(INDEX('2023-24 Data'!$B$3:$BG$23,MATCH($N$6,dfenums,0),MATCH(C63,'2023-24 Data'!$B$2:$BG$2,0))),"",INDEX('2023-24 Data'!$B$3:$BG$23,MATCH($N$6,dfenums,0),MATCH(C63,'2023-24 Data'!$B$2:$BG$2,0))) ->  | P63: =IF(ISERROR(N63/VLOOKUP($N$6,'2023-24 Data'!$A$3:$H$23,8,0)),"",N63/VLOOKUP($N$6,'2023-24 Data'!$A$3:$H$23,8,0)) ->  | S63: =IF(ISERROR(INDEX('2023-24 Data'!$B$3:$BG$23,MATCH($S$6,dfenums,0),MATCH(C63,'2023-24 Data'!$B$2:$BG$2,0))),"",INDEX('2023-24 Data'!$B$3:$BG$23,MATCH($S$6,dfenums,0),MATCH(C63,'2023-24 Data'!$B$2:$BG$2,0))) ->  | U63: =IF(ISERROR(S63/VLOOKUP($S$6,'2023-24 Data'!$A$3:$H$23,8,0)),"",S63/VLOOKUP($S$6,'2023-24 Data'!$A$3:$H$23,8,0)) -> 
B64: Community focussed extended school facilities income | C64: I17 | D64: =IF(ISERROR(INDEX('2023-24 Data'!$B$3:$BG$23,MATCH($D$4,dfenums,0),MATCH(C64,'2023-24 Data'!$B$2:$BG$2,0))),"",INDEX('2023-24 Data'!$B$3:$BG$23,MATCH($D$4,dfenums,0),MATCH(C64,'2023-24 Data'!$B$2:$BG$2,0))) ->  | F64: =IF(ISERROR(D64/VLOOKUP($D$4,'2023-24 Data'!$A$3:$H$23,8,0)),"",D64/VLOOKUP($D$4,'2023-24 Data'!$A$3:$H$23,8,0)) ->  | I64: =IF(ISERROR(INDEX('2023-24 Data'!$B$3:$BG$23,MATCH($I$6,dfenums,0),MATCH(C64,'2023-24 Data'!$B$2:$BG$2,0))),"",INDEX('2023-24 Data'!$B$3:$BG$23,MATCH($I$6,dfenums,0),MATCH(C64,'2023-24 Data'!$B$2:$BG$2,0))) ->  | K64: =IF(ISERROR(I64/VLOOKUP($I$6,'2023-24 Data'!$A$3:$H$23,8,0)),"",I64/VLOOKUP($I$6,'2023-24 Data'!$A$3:$H$23,8,0)) ->  | N64: =IF(ISERROR(INDEX('2023-24 Data'!$B$3:$BG$23,MATCH($N$6,dfenums,0),MATCH(C64,'2023-24 Data'!$B$2:$BG$2,0))),"",INDEX('2023-24 Data'!$B$3:$BG$23,MATCH($N$6,dfenums,0),MATCH(C64,'2023-24 Data'!$B$2:$BG$2,0))) ->  | P64: =IF(ISERROR(N64/VLOOKUP($N$6,'2023-24 Data'!$A$3:$H$23,8,0)),"",N64/VLOOKUP($N$6,'2023-24 Data'!$A$3:$H$23,8,0)) ->  | S64: =IF(ISERROR(INDEX('2023-24 Data'!$B$3:$BG$23,MATCH($S$6,dfenums,0),MATCH(C64,'2023-24 Data'!$B$2:$BG$2,0))),"",INDEX('2023-24 Data'!$B$3:$BG$23,MATCH($S$6,dfenums,0),MATCH(C64,'2023-24 Data'!$B$2:$BG$2,0))) ->  | U64: =IF(ISERROR(S64/VLOOKUP($S$6,'2023-24 Data'!$A$3:$H$23,8,0)),"",S64/VLOOKUP($S$6,'2023-24 Data'!$A$3:$H$23,8,0)) -> 
B65: Additional Grant for Schools | C65: I18 | D65: =IF(ISERROR(INDEX('2023-24 Data'!$B$3:$BG$23,MATCH($D$4,dfenums,0),MATCH(C65,'2023-24 Data'!$B$2:$BG$2,0))),"",INDEX('2023-24 Data'!$B$3:$BG$23,MATCH($D$4,dfenums,0),MATCH(C65,'2023-24 Data'!$B$2:$BG$2,0))) ->  | F65: =IF(ISERROR(D65/VLOOKUP($D$4,'2023-24 Data'!$A$3:$H$23,8,0)),"",D65/VLOOKUP($D$4,'2023-24 Data'!$A$3:$H$23,8,0)) ->  | I65: =IF(ISERROR(INDEX('2023-24 Data'!$B$3:$BG$23,MATCH($I$6,dfenums,0),MATCH(C65,'2023-24 Data'!$B$2:$BG$2,0))),"",INDEX('2023-24 Data'!$B$3:$BG$23,MATCH($I$6,dfenums,0),MATCH(C65,'2023-24 Data'!$B$2:$BG$2,0))) ->  | K65: =IF(ISERROR(I65/VLOOKUP($I$6,'2023-24 Data'!$A$3:$H$23,8,0)),"",I65/VLOOKUP($I$6,'2023-24 Data'!$A$3:$H$23,8,0)) ->  | N65: =IF(ISERROR(INDEX('2023-24 Data'!$B$3:$BG$23,MATCH($N$6,dfenums,0),MATCH(C65,'2023-24 Data'!$B$2:$BG$2,0))),"",INDEX('2023-24 Data'!$B$3:$BG$23,MATCH($N$6,dfenums,0),MATCH(C65,'2023-24 Data'!$B$2:$BG$2,0))) ->  | P65: =IF(ISERROR(N65/VLOOKUP($N$6,'2023-24 Data'!$A$3:$H$23,8,0)),"",N65/VLOOKUP($N$6,'2023-24 Data'!$A$3:$H$23,8,0)) ->  | S65: =IF(ISERROR(INDEX('2023-24 Data'!$B$3:$BG$23,MATCH($S$6,dfenums,0),MATCH(C65,'2023-24 Data'!$B$2:$BG$2,0))),"",INDEX('2023-24 Data'!$B$3:$BG$23,MATCH($S$6,dfenums,0),MATCH(C65,'2023-24 Data'!$B$2:$BG$2,0))) ->  | U65: =IF(ISERROR(S65/VLOOKUP($S$6,'2023-24 Data'!$A$3:$H$23,8,0)),"",S65/VLOOKUP($S$6,'2023-24 Data'!$A$3:$H$23,8,0)) -> 
B66: Covid-19 furloughed Staff | C66: I18A | D66: =IF(ISERROR(INDEX('2023-24 Data'!$B$3:$BJ$23,MATCH($D$4,dfenums,0),MATCH(C66,'2023-24 Data'!$B$2:$BJ$2,0))),"",INDEX('2023-24 Data'!$B$3:$BJ$23,MATCH($D$4,dfenums,0),MATCH(C66,'2023-24 Data'!$B$2:$BJ$2,0))) ->  | E66: =IF(ISERROR(D66/$G$4),"",D66/$G$4) ->  | F66: =IF(ISERROR(D66/VLOOKUP($D$4,'2023-24 Data'!$A$3:$H$23,8,0)),"",D66/VLOOKUP($D$4,'2023-24 Data'!$A$3:$H$23,8,0)) ->  | G66: =IF(ISERROR(D66/$D$45),"",D66/$D$45) ->  | I66: =IF(ISERROR(INDEX('2023-24 Data'!$B$3:$BJ$23,MATCH($I$6,dfenums,0),MATCH(C66,'2023-24 Data'!$B$2:$BJ$2,0))),"",INDEX('2023-24 Data'!$B$3:$BJ$23,MATCH($I$6,dfenums,0),MATCH(C66,'2023-24 Data'!$B$2:$BJ$2,0))) ->  | J66: =IF(ISERROR(I66/$J$6),"",I66/$J$6) ->  | K66: =IF(ISERROR(I66/VLOOKUP($I$6,'2023-24 Data'!$A$3:$H$23,8,0)),"",I66/VLOOKUP($I$6,'2023-24 Data'!$A$3:$H$23,8,0)) ->  | L66: =IF(ISERROR(I66/$I$45),"",I66/$I$45) ->  | N66: =IF(ISERROR(INDEX('2023-24 Data'!$B$3:$BJ$23,MATCH($N$6,dfenums,0),MATCH(C66,'2023-24 Data'!$B$2:$BJ$2,0))),"",INDEX('2023-24 Data'!$B$3:$BJ$23,MATCH($N$6,dfenums,0),MATCH(C66,'2023-24 Data'!$B$2:$BJ$2,0))) ->  | O66: =IF(ISERROR(N66/$O$6),"",N66/$O$6) ->  | P66: =IF(ISERROR(N66/VLOOKUP($N$6,'2023-24 Data'!$A$3:$H$23,8,0)),"",N66/VLOOKUP($N$6,'2023-24 Data'!$A$3:$H$23,8,0)) ->  | Q66: =IF(ISERROR(N66/$N$45),"",N66/$N$45) ->  | S66: =IF(ISERROR(INDEX('2023-24 Data'!$B$3:$BJ$23,MATCH($S$6,dfenums,0),MATCH(C66,'2023-24 Data'!$B$2:$BJ$2,0))),"",INDEX('2023-24 Data'!$B$3:$BJ$23,MATCH($S$6,dfenums,0),MATCH(C66,'2023-24 Data'!$B$2:$BJ$2,0))) ->  | T66: =IF(ISERROR(S66/$T$6),"",S66/$T$6) ->  | U66: =IF(ISERROR(S66/VLOOKUP($S$6,'2023-24 Data'!$A$3:$H$23,8,0)),"",S66/VLOOKUP($S$6,'2023-24 Data'!$A$3:$H$23,8,0)) ->  | V66: =IF(ISERROR(S66/$S$45),"",S66/$S$45) -> 
B67: Covid-19 any other Covid-19 related grant | C67: I18B | D67: =IF(ISERROR(INDEX('2023-24 Data'!$B$3:$BJ$23,MATCH($D$4,dfenums,0),MATCH(C67,'2023-24 Data'!$B$2:$BJ$2,0))),"",INDEX('2023-24 Data'!$B$3:$BJ$23,MATCH($D$4,dfenums,0),MATCH(C67,'2023-24 Data'!$B$2:$BJ$2,0))) ->  | E67: =IF(ISERROR(D67/$G$4),"",D67/$G$4) ->  | F67: =IF(ISERROR(D67/VLOOKUP($D$4,'2023-24 Data'!$A$3:$H$23,8,0)),"",D67/VLOOKUP($D$4,'2023-24 Data'!$A$3:$H$23,8,0)) ->  | G67: =IF(ISERROR(D67/$D$45),"",D67/$D$45) ->  | I67: =IF(ISERROR(INDEX('2023-24 Data'!$B$3:$BJ$23,MATCH($I$6,dfenums,0),MATCH(C67,'2023-24 Data'!$B$2:$BJ$2,0))),"",INDEX('2023-24 Data'!$B$3:$BJ$23,MATCH($I$6,dfenums,0),MATCH(C67,'2023-24 Data'!$B$2:$BJ$2,0))) ->  | J67: =IF(ISERROR(I67/$J$6),"",I67/$J$6) ->  | K67: =IF(ISERROR(I67/VLOOKUP($I$6,'2023-24 Data'!$A$3:$H$23,8,0)),"",I67/VLOOKUP($I$6,'2023-24 Data'!$A$3:$H$23,8,0)) ->  | L67: =IF(ISERROR(I67/$I$45),"",I67/$I$45) ->  | N67: =IF(ISERROR(INDEX('2023-24 Data'!$B$3:$BJ$23,MATCH($N$6,dfenums,0),MATCH(C67,'2023-24 Data'!$B$2:$BJ$2,0))),"",INDEX('2023-24 Data'!$B$3:$BJ$23,MATCH($N$6,dfenums,0),MATCH(C67,'2023-24 Data'!$B$2:$BJ$2,0))) ->  | O67: =IF(ISERROR(N67/$O$6),"",N67/$O$6) ->  | P67: =IF(ISERROR(N67/VLOOKUP($N$6,'2023-24 Data'!$A$3:$H$23,8,0)),"",N67/VLOOKUP($N$6,'2023-24 Data'!$A$3:$H$23,8,0)) ->  | Q67: =IF(ISERROR(N67/$N$45),"",N67/$N$45) ->  | S67: =IF(ISERROR(INDEX('2023-24 Data'!$B$3:$BJ$23,MATCH($S$6,dfenums,0),MATCH(C67,'2023-24 Data'!$B$2:$BJ$2,0))),"",INDEX('2023-24 Data'!$B$3:$BJ$23,MATCH($S$6,dfenums,0),MATCH(C67,'2023-24 Data'!$B$2:$BJ$2,0))) ->  | T67: =IF(ISERROR(S67/$T$6),"",S67/$T$6) ->  | U67: =IF(ISERROR(S67/VLOOKUP($S$6,'2023-24 Data'!$A$3:$H$23,8,0)),"",S67/VLOOKUP($S$6,'2023-24 Data'!$A$3:$H$23,8,0)) ->  | V67: =IF(ISERROR(S67/$S$45),"",S67/$S$45) -> 
B68: Covid-19 £1bn package | C68: I18C | D68: =IF(ISERROR(INDEX('2023-24 Data'!$B$3:$BJ$23,MATCH($D$4,dfenums,0),MATCH(C68,'2023-24 Data'!$B$2:$BJ$2,0))),"",INDEX('2023-24 Data'!$B$3:$BJ$23,MATCH($D$4,dfenums,0),MATCH(C68,'2023-24 Data'!$B$2:$BJ$2,0))) ->  | F68: =IF(ISERROR(D68/VLOOKUP($D$4,'2023-24 Data'!$A$3:$H$23,8,0)),"",D68/VLOOKUP($D$4,'2023-24 Data'!$A$3:$H$23,8,0)) ->  | I68: =IF(ISERROR(INDEX('2023-24 Data'!$B$3:$BJ$23,MATCH($I$6,dfenums,0),MATCH(C68,'2023-24 Data'!$B$2:$BJ$2,0))),"",INDEX('2023-24 Data'!$B$3:$BJ$23,MATCH($I$6,dfenums,0),MATCH(C68,'2023-24 Data'!$B$2:$BJ$2,0))) ->  | K68: =IF(ISERROR(I68/VLOOKUP($I$6,'2023-24 Data'!$A$3:$H$23,8,0)),"",I68/VLOOKUP($I$6,'2023-24 Data'!$A$3:$H$23,8,0)) ->  | N68: =IF(ISERROR(INDEX('2023-24 Data'!$B$3:$BJ$23,MATCH($N$6,dfenums,0),MATCH(C68,'2023-24 Data'!$B$2:$BJ$2,0))),"",INDEX('2023-24 Data'!$B$3:$BJ$23,MATCH($N$6,dfenums,0),MATCH(C68,'2023-24 Data'!$B$2:$BJ$2,0))) ->  | P68: =IF(ISERROR(N68/VLOOKUP($N$6,'2023-24 Data'!$A$3:$H$23,8,0)),"",N68/VLOOKUP($N$6,'2023-24 Data'!$A$3:$H$23,8,0)) ->  | S68: =IF(ISERROR(INDEX('2023-24 Data'!$B$3:$BJ$23,MATCH($S$6,dfenums,0),MATCH(C68,'2023-24 Data'!$B$2:$BJ$2,0))),"",INDEX('2023-24 Data'!$B$3:$BJ$23,MATCH($S$6,dfenums,0),MATCH(C68,'2023-24 Data'!$B$2:$BJ$2,0))) ->  | U68: =IF(ISERROR(S68/VLOOKUP($S$6,'2023-24 Data'!$A$3:$H$23,8,0)),"",S68/VLOOKUP($S$6,'2023-24 Data'!$A$3:$H$23,8,0)) -> 
B69: Total Income (excluding reserves) | D69: =SUM(D48:D68) -> 0 | E69: =SUM(E48:E68) -> 0 | F69: =SUM(F48:F68) -> 0 | G69: =SUM(G48:G68) -> 0 | I69: =SUM(I48:I68) -> 0 | J69: =SUM(J48:J68) -> 0 | K69: =SUM(K48:K68) -> 0 | L69: =SUM(L48:L68) -> 0 | N69: =SUM(N48:N68) -> 0 | O69: =SUM(O48:O68) -> 0 | P69: =SUM(P48:P68) -> 0 | Q69: =SUM(Q48:Q68) -> 0 | S69: =SUM(S48:S68) -> 0 | T69: =SUM(T48:T68) -> 0 | U69: =SUM(U48:U68) -> 0 | V69: =SUM(V48:V68) -> 0

Sheet 2023-24 Data (hidden)
C1: KCC Finance & Procurement | D1: KCC Finance & Procurement | E1: KCC Finance & Procurement | F1: KCC Finance & Procurement | G1: Self generating | I1: Self generating from below
A2: DfE | B2: School | C2: Nursery Places | D2: Nursery Attendance | E2: School Places | F2: School Attendance | G2: Total Places | H2: Total Attendance | I2: E01 | J2: E02 | K2: E03 | L2: E04 | M2: E05 | N2: E06 | O2: E07 | P2: E08 | Q2: E09 | R2: E10 | S2: E11 | T2: E12 | U2: E13 | V2: E14 | W2: E15 | X2: E16 | Y2: E17 | Z2: E18 | AA2: E19 | AB2: E20 | AC2: E21 | AD2: E22 | AE2: E23 | AF2: E24 | AG2: E25 | AH2: E26 | AI2: E27 | AJ2: E28 | AK2: E28B | AL2: E29 | AM2: E30 | AN2: E31 | AO2: E32 | AP2: I01 | AQ2: I02 | AR2: I03 | AS2: I04 | AT2: I05 | AU2: I06 | AV2: I07 | AW2: I08 | AX2: I08b | AY2: I09 | AZ2: I10 | BA2: I11 | BB2: I12 | BC2: I13 | BD2: I15 | BE2: I16 | BF2: I17 | BG2: I18 | BH2: I18A | BI2: I18B | BJ2: I18C
A3: 7002 | B3: Broomhill Bank School | C3: 348 | D3: 0 | E3: 339.6666667 | F3: 370.5 | G3: =C3+E3 -> 687.6666667 | H3: =D3+F3 -> 370.5 | I3: =IF(Benchmarking!$C$9="Yes",I29-I52,I29) -> 3901835.83 | J3: =IF(Benchmarking!$C$9="Yes",J29-J52,J29) -> 0 | K3: =IF(Benchmarking!$C$9="Yes",K29-K52,K29) -> 2436117.08 | L3: =IF(Benchmarking!$C$9="Yes",L29-L52,L29) -> 215343.78 | M3: =IF(Benchmarking!$C$9="Yes",M29-M52,M29) -> 736356.39 | N3: =IF(Benchmarking!$C$9="Yes",N29-N52,N29) -> 112376.01 | O3: =IF(Benchmarking!$C$9="Yes",O29-O52,O29) -> 357470.28 | P3: =IF(Benchmarking!$C$9="Yes",P29-P52,P29) -> 49451.82 | Q3: =IF(Benchmarking!$C$9="Yes",Q29-Q52,Q29) -> 10965.42 | R3: =IF(Benchmarking!$C$9="Yes",R29-R52,R29) -> 704.83 | S3: =IF(Benchmarking!$C$9="Yes",S29-S52,S29) -> 23013.72 | T3: =IF(Benchmarking!$C$9="Yes",T29-T52,T29) -> 172389.95 | U3: =IF(Benchmarking!$C$9="Yes",U29-U52,U29) -> 60873.48 | V3: =IF(Benchmarking!$C$9="Yes",V29-V52,V29) -> 131898.46 | W3: =IF(Benchmarking!$C$9="Yes",W29-W52,W29) -> 19684.6 | X3: =IF(Benchmarking!$C$9="Yes",X29-X52,X29) -> 225245.14 | Y3: =IF(Benchmarking!$C$9="Yes",Y29-Y52,Y29) -> 2080.45 | Z3: =IF(Benchmarking!$C$9="Yes",Z29-Z52,Z29) -> 36854.79 | AA3: =IF(Benchmarking!$C$9="Yes",AA29-AA52,AA29) -> 391182.65 | AB3: =IF(Benchmarking!$C$9="Yes",AB29-AB52,AB29) -> 194786.92 | AC3: =IF(Benchmarking!$C$9="Yes",AC29-AC52,AC29) -> 26700.25 | AD3: =IF(Benchmarking!$C$9="Yes",AD29-AD52,AD29) -> 60321.68 | AE3: =IF(Benchmarking!$C$9="Yes",AE29-AE52,AE29) -> 15661.38 | AF3: =IF(Benchmarking!$C$9="Yes",AF29-AF52,AF29) -> 22246.78 | AG3: =IF(Benchmarking!$C$9="Yes",AG29-AG52,AG29) -> 207002.24 | AH3: =IF(Benchmarking!$C$9="Yes",AH29-AH52,AH29) -> 99943.49 | AI3: =IF(Benchmarking!$C$9="Yes",AI29-AI52,AI29) -> 378193.15 | AJ3: =IF(Benchmarking!$C$9="Yes",AJ29-AJ52,AJ29) -> 144228.99 | AK3: =IF(Benchmarking!$C$9="Yes",AK29-AK52,AK29) -> 0 | AL3: =IF(Benchmarking!$C$9="Yes",AL29-AL52,AL29) -> 48801.8 | AM3: =IF(Benchmarking!$C$9="Yes",AM29-AM52,AM29) -> 128046.36 | AN3: =IF(Benchmarking!$C$9="Yes",AN29-AN52,AN29) -> 0 | AO3: =IF(Benchmarking!$C$9="Yes",AO29-AO52,AO29) -> 0 | AP3: =IF(Benchmarking!$C$9="Yes",AP29-AP52,AP29) -> -3099772.03 | AQ3: =IF(Benchmarking!$C$9="Yes",AQ29-AQ52,AQ29) -> -1102442.03 | AR3: =IF(Benchmarking!$C$9="Yes",AR29-AR52,AR29) -> -4815958.49 | AS3: =IF(Benchmarking!$C$9="Yes",AS29-AS52,AS29) -> 0 | AT3: =IF(Benchmarking!$C$9="Yes",AT29-AT52,AT29) -> -113347.99 | AU3: =IF(Benchmarking!$C$9="Yes",AU29-AU52,AU29) -> -331964.43 | AV3: =IF(Benchmarking!$C$9="Yes",AV29-AV52,AV29) -> -509058.3 | AW3: =IF(Benchmarking!$C$9="Yes",AW29-AW52,AW29) -> 0 | AX3: =IF(Benchmarking!$C$9="Yes",AX29-AX52,AX29) -> -23104.96 | AY3: =IF(Benchmarking!$C$9="Yes",AY29-AY52,AY29) -> -21101.2 | AZ3: =IF(Benchmarking!$C$9="Yes",AZ29-AZ52,AZ29) -> 0 | BA3: =IF(Benchmarking!$C$9="Yes",BA29-BA52,BA29) -> -12378.75 | BB3: =IF(Benchmarking!$C$9="Yes",BB29-BB52,BB29) -> -1653 | BC3: =IF(Benchmarking!$C$9="Yes",BC29-BC52,BC29) -> 0 | BD3: =IF(Benchmarking!$C$9="Yes",BD29-BD52,BD29) -> 0 | BE3: =IF(Benchmarking!$C$9="Yes",BE29-BE52,BE29) -> 0 | BF3: =IF(Benchmarking!$C$9="Yes",BF29-BF52,BF29) -> 0 | BG3: =IF(Benchmarking!$C$9="Yes",BG29-BG52,BG29) -> 0 | BH3: =IF(Benchmarking!$C$9="Yes",BH29-BH52,BH29) -> 0 | BI3: =IF(Benchmarking!$C$9="Yes",BI29-BI52,BI29) -> 0 | BJ3: =IF(Benchmarking!$C$9="Yes",BJ29-BJ52,BJ29) -> -158655.69
A4: 7021 | B4: Valence School | C4: 123 | D4: 0 | E4: 110 | F4: 123.1666667 | G4: =C4+E4 -> 233 | H4: =D4+F4 -> 123.1666667 | I4: =IF(Benchmarking!$C$9="Yes",I30-I53,I30) -> 2013536.62 | J4: =IF(Benchmarking!$C$9="Yes",J30-J53,J30) -> 5292.73 | K4: =IF(Benchmarking!$C$9="Yes",K30-K53,K30) -> 3384039.06 | L4: =IF(Benchmarking!$C$9="Yes",L30-L53,L30) -> 387067.6 | M4: =IF(Benchmarking!$C$9="Yes",M30-M53,M30) -> 537474.41 | N4: =IF(Benchmarking!$C$9="Yes",N30-N53,N30) -> 88336.02 | O4: =IF(Benchmarking!$C$9="Yes",O30-O53,O30) -> 678733.91 | P4: =IF(Benchmarking!$C$9="Yes",P30-P53,P30) -> 69354.73 | Q4: =IF(Benchmarking!$C$9="Yes",Q30-Q53,Q30) -> 28911.4 | R4: =IF(Benchmarking!$C$9="Yes",R30-R53,R30) -> 220 | S4: =IF(Benchmarking!$C$9="Yes",S30-S53,S30) -> 7790.76 | T4: =IF(Benchmarking!$C$9="Yes",T30-T53,T30) -> 60029.53 | U4: =IF(Benchmarking!$C$9="Yes",U30-U53,U30) -> 10770.05 | V4: =IF(Benchmarking!$C$9="Yes",V30-V53,V30) -> 32447.61 | W4: =IF(Benchmarking!$C$9="Yes",W30-W53,W30) -> 18180.37 | X4: =IF(Benchmarking!$C$9="Yes",X30-X53,X30) -> 350862.15 | Y4: =IF(Benchmarking!$C$9="Yes",Y30-Y53,Y30) -> 1743.42 | Z4: =IF(Benchmarking!$C$9="Yes",Z30-Z53,Z30) -> 52202.09 | AA4: =IF(Benchmarking!$C$9="Yes",AA30-AA53,AA30) -> 47370.11 | AB4: =IF(Benchmarking!$C$9="Yes",AB30-AB53,AB30) -> 87187.28 | AC4: =IF(Benchmarking!$C$9="Yes",AC30-AC53,AC30) -> 5872.6 | AD4: =IF(Benchmarking!$C$9="Yes",AD30-AD53,AD30) -> 201568.44 | AE4: =IF(Benchmarking!$C$9="Yes",AE30-AE53,AE30) -> 6667.9 | AF4: =IF(Benchmarking!$C$9="Yes",AF30-AF53,AF30) -> 12623.75 | AG4: =IF(Benchmarking!$C$9="Yes",AG30-AG53,AG30) -> 102778 | AH4: =IF(Benchmarking!$C$9="Yes",AH30-AH53,AH30) -> 0 | AI4: =IF(Benchmarking!$C$9="Yes",AI30-AI53,AI30) -> 497190.37 | AJ4: =IF(Benchmarking!$C$9="Yes",AJ30-AJ53,AJ30) -> 83839.19 | AK4: =IF(Benchmarking!$C$9="Yes",AK30-AK53,AK30) -> 0 | AL4: =IF(Benchmarking!$C$9="Yes",AL30-AL53,AL30) -> 0 | AM4: =IF(Benchmarking!$C$9="Yes",AM30-AM53,AM30) -> 1421.02 | AN4: =IF(Benchmarking!$C$9="Yes",AN30-AN53,AN30) -> 0 | AO4: =IF(Benchmarking!$C$9="Yes",AO30-AO53,AO30) -> 49434.04 | AP4: =IF(Benchmarking!$C$9="Yes",AP30-AP53,AP30) -> -1073760.11 | AQ4: =IF(Benchmarking!$C$9="Yes",AQ30-AQ53,AQ30) -> -304655.87 | AR4: =IF(Benchmarking!$C$9="Yes",AR30-AR53,AR30) -> -4853694.31 | AS4: =IF(Benchmarking!$C$9="Yes",AS30-AS53,AS30) -> 0 | AT4: =IF(Benchmarking!$C$9="Yes",AT30-AT53,AT30) -> -30910 | AU4: =IF(Benchmarking!$C$9="Yes",AU30-AU53,AU30) -> -267703.68 | AV4: =IF(Benchmarking!$C$9="Yes",AV30-AV53,AV30) -> -1301867.02 | AW4: =IF(Benchmarking!$C$9="Yes",AW30-AW53,AW30) -> -9741.7 | AX4: =IF(Benchmarking!$C$9="Yes",AX30-AX53,AX30) -> -317537.95 | AY4: =IF(Benchmarking!$C$9="Yes",AY30-AY53,AY30) -> -19177.66 | AZ4: =IF(Benchmarking!$C$9="Yes",AZ30-AZ53,AZ30) -> 0 | BA4: =IF(Benchmarking!$C$9="Yes",BA30-BA53,BA30) -> 0 | BB4: =IF(Benchmarking!$C$9="Yes",BB30-BB53,BB30) -> -93.5 | BC4: =IF(Benchmarking!$C$9="Yes",BC30-BC53,BC30) -> -14520.87 | BD4: =IF(Benchmarking!$C$9="Yes",BD30-BD53,BD30) -> 0 | BE4: =IF(Benchmarking!$C$9="Yes",BE30-BE53,BE30) -> 0 | BF4: =IF(Benchmarking!$C$9="Yes",BF30-BF53,BF30) -> -50000 | BG4: =IF(Benchmarking!$C$9="Yes",BG30-BG53,BG30) -> -18801 | BH4: =IF(Benchmarking!$C$9="Yes",BH30-BH53,BH30) -> 0 | BI4: =IF(Benchmarking!$C$9="Yes",BI30-BI53,BI30) -> 0 | BJ4: =IF(Benchmarking!$C$9="Yes",BJ30-BJ53,BJ30) -> -31296.79
A5: 7032 | B5: Bower Grove School | C5: 240 | D5: 0 | E5: 225 | F5: 238.75 | G5: 465 | H5: 238.75 | I5: =IF(Benchmarking!$C$9="Yes",I31-I54,I31) -> 2226362.78 | J5: =IF(Benchmarking!$C$9="Yes",J31-J54,J31) -> 21854 | K5: =IF(Benchmarking!$C$9="Yes",K31-K54,K31) -> 2045441.61 | L5: =IF(Benchmarking!$C$9="Yes",L31-L54,L31) -> 84844.03 | M5: =IF(Benchmarking!$C$9="Yes",M31-M54,M31) -> 287671.16 | N5: =IF(Benchmarking!$C$9="Yes",N31-N54,N31) -> 51681.47 | O5: =IF(Benchmarking!$C$9="Yes",O31-O54,O31) -> 494.22 | P5: =IF(Benchmarking!$C$9="Yes",P31-P54,P31) -> 29820.09 | Q5: =IF(Benchmarking!$C$9="Yes",Q31-Q54,Q31) -> 26156.34 | R5: =IF(Benchmarking!$C$9="Yes",R31-R54,R31) -> 450 | S5: =IF(Benchmarking!$C$9="Yes",S31-S54,S31) -> 20884.44 | T5: =IF(Benchmarking!$C$9="Yes",T31-T54,T31) -> 103651.76 | U5: =IF(Benchmarking!$C$9="Yes",U31-U54,U31) -> 25912.76 | V5: =IF(Benchmarking!$C$9="Yes",V31-V54,V31) -> 84037.92 | W5: =IF(Benchmarking!$C$9="Yes",W31-W54,W31) -> 24114.29 | X5: =IF(Benchmarking!$C$9="Yes",X31-X54,X31) -> 84934.05 | Y5: =IF(Benchmarking!$C$9="Yes",Y31-Y54,Y31) -> 0 | Z5: =IF(Benchmarking!$C$9="Yes",Z31-Z54,Z31) -> 81511.47 | AA5: =IF(Benchmarking!$C$9="Yes",AA31-AA54,AA31) -> 100975.41 | AB5: =IF(Benchmarking!$C$9="Yes",AB31-AB54,AB31) -> 109913.1 | AC5: =IF(Benchmarking!$C$9="Yes",AC31-AC54,AC31) -> 9235.67 | AD5: =IF(Benchmarking!$C$9="Yes",AD31-AD54,AD31) -> 56418.06 | AE5: =IF(Benchmarking!$C$9="Yes",AE31-AE54,AE31) -> 10165.65 | AF5: =IF(Benchmarking!$C$9="Yes",AF31-AF54,AF31) -> 51252.52 | AG5: =IF(Benchmarking!$C$9="Yes",AG31-AG54,AG31) -> 56993.36 | AH5: =IF(Benchmarking!$C$9="Yes",AH31-AH54,AH31) -> 850 | AI5: =IF(Benchmarking!$C$9="Yes",AI31-AI54,AI31) -> 192778.6 | AJ5: =IF(Benchmarking!$C$9="Yes",AJ31-AJ54,AJ31) -> 34297.09 | AK5: =IF(Benchmarking!$C$9="Yes",AK31-AK54,AK31) -> 0 | AL5: =IF(Benchmarking!$C$9="Yes",AL31-AL54,AL31) -> 0 | AM5: =IF(Benchmarking!$C$9="Yes",AM31-AM54,AM31) -> 65891.2 | AN5: =IF(Benchmarking!$C$9="Yes",AN31-AN54,AN31) -> 0 | AO5: =IF(Benchmarking!$C$9="Yes",AO31-AO54,AO31) -> 0 | AP5: =IF(Benchmarking!$C$9="Yes",AP31-AP54,AP31) -> -2613274.36 | AQ5: =IF(Benchmarking!$C$9="Yes",AQ31-AQ54,AQ31) -> 0 | AR5: =IF(Benchmarking!$C$9="Yes",AR31-AR54,AR31) -> -2277313.85 | AS5: =IF(Benchmarking!$C$9="Yes",AS31-AS54,AS31) -> 0 | AT5: =IF(Benchmarking!$C$9="Yes",AT31-AT54,AT31) -> -230522 | AU5: =IF(Benchmarking!$C$9="Yes",AU31-AU54,AU31) -> -64650.27 | AV5: =IF(Benchmarking!$C$9="Yes",AV31-AV54,AV31) -> -12365.14 | AW5: =IF(Benchmarking!$C$9="Yes",AW31-AW54,AW31) -> -9255.07 | AX5: =IF(Benchmarking!$C$9="Yes",AX31-AX54,AX31) -> -275948.22 | AY5: =IF(Benchmarking!$C$9="Yes",AY31-AY54,AY31) -> -12689.05 | AZ5: =IF(Benchmarking!$C$9="Yes",AZ31-AZ54,AZ31) -> 0 | BA5: =IF(Benchmarking!$C$9="Yes",BA31-BA54,BA31) -> -13525.45 | BB5: =IF(Benchmarking!$C$9="Yes",BB31-BB54,BB31) -> -20839.4 | BC5: =IF(Benchmarking!$C$9="Yes",BC31-BC54,BC31) -> -55589.38 | BD5: =IF(Benchmarking!$C$9="Yes",BD31-BD54,BD31) -> 0 | BE5: =IF(Benchmarking!$C$9="Yes",BE31-BE54,BE31) -> 0 | BF5: =IF(Benchmarking!$C$9="Yes",BF31-BF54,BF31) -> 0 | BG5: =IF(Benchmarking!$C$9="Yes",BG31-BG54,BG31) -> -17554 | BH5: =IF(Benchmarking!$C$9="Yes",BH31-BH54,BH31) -> 0 | BI5: =IF(Benchmarking!$C$9="Yes",BI31-BI54,BI31) -> 0 | BJ5: =IF(Benchmarking!$C$9="Yes",BJ31-BJ54,BJ31) -> -147153.17
A6: 7033 | B6: St Anthony's School | C6: 103 | D6: 0 | E6: 108.6666667 | F6: 105.0833333 | G6: 211.6666667 | H6: 105.0833333 | I6: =IF(Benchmarking!$C$9="Yes",I32-I55,I32) -> 1330176.06 | J6: =IF(Benchmarking!$C$9="Yes",J32-J55,J32) -> 0 | K6: =IF(Benchmarking!$C$9="Yes",K32-K55,K32) -> 641460.05 | L6: =IF(Benchmarking!$C$9="Yes",L32-L55,L32) -> 39194.64 | M6: =IF(Benchmarking!$C$9="Yes",M32-M55,M32) -> 197966.6 | N6: =IF(Benchmarking!$C$9="Yes",N32-N55,N32) -> 43362.85 | O6: =IF(Benchmarking!$C$9="Yes",O32-O55,O32) -> 48993.91 | P6: =IF(Benchmarking!$C$9="Yes",P32-P55,P32) -> 915.45 | Q6: =IF(Benchmarking!$C$9="Yes",Q32-Q55,Q32) -> 8330.05 | R6: =IF(Benchmarking!$C$9="Yes",R32-R55,R32) -> 215.33 | S6: =IF(Benchmarking!$C$9="Yes",S32-S55,S32) -> 9741 | T6: =IF(Benchmarking!$C$9="Yes",T32-T55,T32) -> 51816.32 | U6: =IF(Benchmarking!$C$9="Yes",U32-U55,U32) -> 5377.62 | V6: =IF(Benchmarking!$C$9="Yes",V32-V55,V32) -> 53120.81 | W6: =IF(Benchmarking!$C$9="Yes",W32-W55,W32) -> 4604.78 | X6: =IF(Benchmarking!$C$9="Yes",X32-X55,X32) -> 47556.92 | Y6: =IF(Benchmarking!$C$9="Yes",Y32-Y55,Y32) -> 0 | Z6: =IF(Benchmarking!$C$9="Yes",Z32-Z55,Z32) -> 9056.24 | AA6: =IF(Benchmarking!$C$9="Yes",AA32-AA55,AA32) -> 78597.03 | AB6: =IF(Benchmarking!$C$9="Yes",AB32-AB55,AB32) -> 33475.09 | AC6: =IF(Benchmarking!$C$9="Yes",AC32-AC55,AC32) -> 5381.41 | AD6: =IF(Benchmarking!$C$9="Yes",AD32-AD55,AD32) -> 6122.96 | AE6: =IF(Benchmarking!$C$9="Yes",AE32-AE55,AE32) -> 5500.74 | AF6: =IF(Benchmarking!$C$9="Yes",AF32-AF55,AF32) -> 12376.79 | AG6: =IF(Benchmarking!$C$9="Yes",AG32-AG55,AG32) -> 35428.16 | AH6: =IF(Benchmarking!$C$9="Yes",AH32-AH55,AH32) -> 67563.86 | AI6: =IF(Benchmarking!$C$9="Yes",AI32-AI55,AI32) -> 122327.69 | AJ6: =IF(Benchmarking!$C$9="Yes",AJ32-AJ55,AJ32) -> 30708.91 | AK6: =IF(Benchmarking!$C$9="Yes",AK32-AK55,AK32) -> 0 | AL6: =IF(Benchmarking!$C$9="Yes",AL32-AL55,AL32) -> 0 | AM6: =IF(Benchmarking!$C$9="Yes",AM32-AM55,AM32) -> 215200.75 | AN6: =IF(Benchmarking!$C$9="Yes",AN32-AN55,AN32) -> 0 | AO6: =IF(Benchmarking!$C$9="Yes",AO32-AO55,AO32) -> 0 | AP6: =IF(Benchmarking!$C$9="Yes",AP32-AP55,AP32) -> -1197176.48 | AQ6: =IF(Benchmarking!$C$9="Yes",AQ32-AQ55,AQ32) -> 0 | AR6: =IF(Benchmarking!$C$9="Yes",AR32-AR55,AR32) -> -1279644.5 | AS6: =IF(Benchmarking!$C$9="Yes",AS32-AS55,AS32) -> 0 | AT6: =IF(Benchmarking!$C$9="Yes",AT32-AT55,AT32) -> -107716.5 | AU6: =IF(Benchmarking!$C$9="Yes",AU32-AU55,AU32) -> -28192.42 | AV6: =IF(Benchmarking!$C$9="Yes",AV32-AV55,AV32) -> -99653.16 | AW6: =IF(Benchmarking!$C$9="Yes",AW32-AW55,AW32) -> -12425 | AX6: =IF(Benchmarking!$C$9="Yes",AX32-AX55,AX32) -> -1768.29 | AY6: =IF(Benchmarking!$C$9="Yes",AY32-AY55,AY32) -> -4681.56 | AZ6: =IF(Benchmarking!$C$9="Yes",AZ32-AZ55,AZ32) -> -8079.2 | BA6: =IF(Benchmarking!$C$9="Yes",BA32-BA55,BA32) -> 0 | BB6: =IF(Benchmarking!$C$9="Yes",BB32-BB55,BB32) -> -777.65 | BC6: =IF(Benchmarking!$C$9="Yes",BC32-BC55,BC32) -> -2597.43 | BD6: =IF(Benchmarking!$C$9="Yes",BD32-BD55,BD32) -> 0 | BE6: =IF(Benchmarking!$C$9="Yes",BE32-BE55,BE32) -> 0 | BF6: =IF(Benchmarking!$C$9="Yes",BF32-BF55,BF32) -> 0 | BG6: =IF(Benchmarking!$C$9="Yes",BG32-BG55,BG32) -> -16343 | BH6: =IF(Benchmarking!$C$9="Yes",BH32-BH55,BH32) -> 0 | BI6: =IF(Benchmarking!$C$9="Yes",BI32-BI55,BI32) -> 0 | BJ6: =IF(Benchmarking!$C$9="Yes",BJ32-BJ55,BJ32) -> -68923
A7: 7039 | B7: The Ifield School | C7: 274 | D7: 0 | E7: 262 | F7: 271 | G7: 536 | H7: 271 | I7: =IF(Benchmarking!$C$9="Yes",I33-I56,I33) -> 2913504.68 | J7: =IF(Benchmarking!$C$9="Yes",J33-J56,J33) -> 16570.1 | K7: =IF(Benchmarking!$C$9="Yes",K33-K56,K33) -> 2542734.1 | L7: =IF(Benchmarking!$C$9="Yes",L33-L56,L33) -> 175074.57 | M7: =IF(Benchmarking!$C$9="Yes",M33-M56,M33) -> 409311.02 | N7: =IF(Benchmarking!$C$9="Yes",N33-N56,N33) -> 66946.2 | O7: =IF(Benchmarking!$C$9="Yes",O33-O56,O33) -> 0 | P7: =IF(Benchmarking!$C$9="Yes",P33-P56,P33) -> 22819.44 | Q7: =IF(Benchmarking!$C$9="Yes",Q33-Q56,Q33) -> 37763.31 | R7: =IF(Benchmarking!$C$9="Yes",R33-R56,R33) -> 527.5 | S7: =IF(Benchmarking!$C$9="Yes",S33-S56,S33) -> 18766.08 | T7: =IF(Benchmarking!$C$9="Yes",T33-T56,T33) -> 110167.41 | U7: =IF(Benchmarking!$C$9="Yes",U33-U56,U33) -> 5601.09 | V7: =IF(Benchmarking!$C$9="Yes",V33-V56,V33) -> 14558.85 | W7: =IF(Benchmarking!$C$9="Yes",W33-W56,W33) -> 18341.71 | X7: =IF(Benchmarking!$C$9="Yes",X33-X56,X33) -> 120204.1 | Y7: =IF(Benchmarking!$C$9="Yes",Y33-Y56,Y33) -> 0 | Z7: =IF(Benchmarking!$C$9="Yes",Z33-Z56,Z33) -> 168988.04 | AA7: =IF(Benchmarking!$C$9="Yes",AA33-AA56,AA33) -> 139617.42 | AB7: =IF(Benchmarking!$C$9="Yes",AB33-AB56,AB33) -> 51850.53 | AC7: =IF(Benchmarking!$C$9="Yes",AC33-AC56,AC33) -> 3128.46 | AD7: =IF(Benchmarking!$C$9="Yes",AD33-AD56,AD33) -> 30739.84 | AE7: =IF(Benchmarking!$C$9="Yes",AE33-AE56,AE33) -> 14924.39 | AF7: =IF(Benchmarking!$C$9="Yes",AF33-AF56,AF33) -> 72040.23 | AG7: =IF(Benchmarking!$C$9="Yes",AG33-AG56,AG33) -> 82120.76 | AH7: =IF(Benchmarking!$C$9="Yes",AH33-AH56,AH33) -> 46559.57 | AI7: =IF(Benchmarking!$C$9="Yes",AI33-AI56,AI33) -> 507003.36 | AJ7: =IF(Benchmarking!$C$9="Yes",AJ33-AJ56,AJ33) -> 50113.11 | AK7: =IF(Benchmarking!$C$9="Yes",AK33-AK56,AK33) -> 0 | AL7: =IF(Benchmarking!$C$9="Yes",AL33-AL56,AL33) -> 0 | AM7: =IF(Benchmarking!$C$9="Yes",AM33-AM56,AM33) -> 0 | AN7: =IF(Benchmarking!$C$9="Yes",AN33-AN56,AN33) -> 0 | AO7: =IF(Benchmarking!$C$9="Yes",AO33-AO56,AO33) -> 0 | AP7: =IF(Benchmarking!$C$9="Yes",AP33-AP56,AP33) -> -2723156.68 | AQ7: =IF(Benchmarking!$C$9="Yes",AQ33-AQ56,AQ33) -> -402355.34 | AR7: =IF(Benchmarking!$C$9="Yes",AR33-AR56,AR33) -> -2425267.62 | AS7: =IF(Benchmarking!$C$9="Yes",AS33-AS56,AS33) -> 0 | AT7: =IF(Benchmarking!$C$9="Yes",AT33-AT56,AT33) -> -119210 | AU7: =IF(Benchmarking!$C$9="Yes",AU33-AU56,AU33) -> -382792.06 | AV7: =IF(Benchmarking!$C$9="Yes",AV33-AV56,AV33) -> -192788.41 | AW7: =IF(Benchmarking!$C$9="Yes",AW33-AW56,AW33) -> 0 | AX7: =IF(Benchmarking!$C$9="Yes",AX33-AX56,AX33) -> -1123313.15 | AY7: =IF(Benchmarking!$C$9="Yes",AY33-AY56,AY33) -> -20691.23 | AZ7: =IF(Benchmarking!$C$9="Yes",AZ33-AZ56,AZ33) -> 0 | BA7: =IF(Benchmarking!$C$9="Yes",BA33-BA56,BA33) -> 0 | BB7: =IF(Benchmarking!$C$9="Yes",BB33-BB56,BB33) -> -20071.83 | BC7: =IF(Benchmarking!$C$9="Yes",BC33-BC56,BC33) -> -21533.14 | BD7: =IF(Benchmarking!$C$9="Yes",BD33-BD56,BD33) -> 0 | BE7: =IF(Benchmarking!$C$9="Yes",BE33-BE56,BE33) -> 0 | BF7: =IF(Benchmarking!$C$9="Yes",BF33-BF56,BF33) -> 0 | BG7: =IF(Benchmarking!$C$9="Yes",BG33-BG56,BG33) -> -31483 | BH7: =IF(Benchmarking!$C$9="Yes",BH33-BH56,BH33) -> 0 | BI7: =IF(Benchmarking!$C$9="Yes",BI33-BI56,BI33) -> 0 | BJ7: =IF(Benchmarking!$C$9="Yes",BJ33-BJ56,BJ33) -> -79872.66
A8: 7040 | B8: The Foreland School | C8: 277 | D8: 0 | E8: 241.3333333 | F8: 255.8333333 | G8: 518.3333333 | H8: 255.8333333 | I8: =IF(Benchmarking!$C$9="Yes",I34-I57,I34) -> 2377973.82 | J8: =IF(Benchmarking!$C$9="Yes",J34-J57,J34) -> 5391.71 | K8: =IF(Benchmarking!$C$9="Yes",K34-K57,K34) -> 2851717.84 | L8: =IF(Benchmarking!$C$9="Yes",L34-L57,L34) -> 72140.19 | M8: =IF(Benchmarking!$C$9="Yes",M34-M57,M34) -> 306566.61 | N8: =IF(Benchmarking!$C$9="Yes",N34-N57,N34) -> 0 | O8: =IF(Benchmarking!$C$9="Yes",O34-O57,O34) -> 107429.89 | P8: =IF(Benchmarking!$C$9="Yes",P34-P57,P34) -> 34180.53 | Q8: =IF(Benchmarking!$C$9="Yes",Q34-Q57,Q34) -> 26749.41 | R8: =IF(Benchmarking!$C$9="Yes",R34-R57,R34) -> 484.67 | S8: =IF(Benchmarking!$C$9="Yes",S34-S57,S34) -> 19639.2 | T8: =IF(Benchmarking!$C$9="Yes",T34-T57,T34) -> 59586.82 | U8: =IF(Benchmarking!$C$9="Yes",U34-U57,U34) -> 29089.58 | V8: =IF(Benchmarking!$C$9="Yes",V34-V57,V34) -> 107327.91 | W8: =IF(Benchmarking!$C$9="Yes",W34-W57,W34) -> 16060.56 | X8: =IF(Benchmarking!$C$9="Yes",X34-X57,X34) -> 125439.87 | Y8: =IF(Benchmarking!$C$9="Yes",Y34-Y57,Y34) -> 0 | Z8: =IF(Benchmarking!$C$9="Yes",Z34-Z57,Z34) -> 167361.64 | AA8: =IF(Benchmarking!$C$9="Yes",AA34-AA57,AA34) -> 148728.14 | AB8: =IF(Benchmarking!$C$9="Yes",AB34-AB57,AB34) -> 68960.26 | AC8: =IF(Benchmarking!$C$9="Yes",AC34-AC57,AC34) -> 3299.9 | AD8: =IF(Benchmarking!$C$9="Yes",AD34-AD57,AD34) -> 45300.27 | AE8: =IF(Benchmarking!$C$9="Yes",AE34-AE57,AE34) -> 10123.12 | AF8: =IF(Benchmarking!$C$9="Yes",AF34-AF57,AF34) -> 52761.15 | AG8: =IF(Benchmarking!$C$9="Yes",AG34-AG57,AG34) -> 77185.94 | AH8: =IF(Benchmarking!$C$9="Yes",AH34-AH57,AH34) -> 0 | AI8: =IF(Benchmarking!$C$9="Yes",AI34-AI57,AI34) -> 20737.93 | AJ8: =IF(Benchmarking!$C$9="Yes",AJ34-AJ57,AJ34) -> 27035.92 | AK8: =IF(Benchmarking!$C$9="Yes",AK34-AK57,AK34) -> 0 | AL8: =IF(Benchmarking!$C$9="Yes",AL34-AL57,AL34) -> 0 | AM8: =IF(Benchmarking!$C$9="Yes",AM34-AM57,AM34) -> 0 | AN8: =IF(Benchmarking!$C$9="Yes",AN34-AN57,AN34) -> 0 | AO8: =IF(Benchmarking!$C$9="Yes",AO34-AO57,AO34) -> 0 | AP8: =IF(Benchmarking!$C$9="Yes",AP34-AP57,AP34) -> -2709726.22 | AQ8: =IF(Benchmarking!$C$9="Yes",AQ34-AQ57,AQ34) -> -316772.32 | AR8: =IF(Benchmarking!$C$9="Yes",AR34-AR57,AR34) -> -2601124.85 | AS8: =IF(Benchmarking!$C$9="Yes",AS34-AS57,AS34) -> 0 | AT8: =IF(Benchmarking!$C$9="Yes",AT34-AT57,AT34) -> -133800 | AU8: =IF(Benchmarking!$C$9="Yes",AU34-AU57,AU34) -> -66969.74 | AV8: =IF(Benchmarking!$C$9="Yes",AV34-AV57,AV34) -> -418614.91 | AW8: =IF(Benchmarking!$C$9="Yes",AW34-AW57,AW34) -> 0 | AX8: =IF(Benchmarking!$C$9="Yes",AX34-AX57,AX34) -> -95935.31 | AY8: =IF(Benchmarking!$C$9="Yes",AY34-AY57,AY34) -> -12069 | AZ8: =IF(Benchmarking!$C$9="Yes",AZ34-AZ57,AZ34) -> 0 | BA8: =IF(Benchmarking!$C$9="Yes",BA34-BA57,BA34) -> -25046.09 | BB8: =IF(Benchmarking!$C$9="Yes",BB34-BB57,BB34) -> -286 | BC8: =IF(Benchmarking!$C$9="Yes",BC34-BC57,BC34) -> -63222.22 | BD8: =IF(Benchmarking!$C$9="Yes",BD34-BD57,BD34) -> 0 | BE8: =IF(Benchmarking!$C$9="Yes",BE34-BE57,BE34) -> 0 | BF8: =IF(Benchmarking!$C$9="Yes",BF34-BF57,BF34) -> 0 | BG8: =IF(Benchmarking!$C$9="Yes",BG34-BG57,BG34) -> -30280 | BH8: =IF(Benchmarking!$C$9="Yes",BH34-BH57,BH34) -> 0 | BI8: =IF(Benchmarking!$C$9="Yes",BI34-BI57,BI34) -> 0 | BJ8: =IF(Benchmarking!$C$9="Yes",BJ34-BJ57,BJ34) -> -75291.89
A9: 7041 | B9: Goldwyn Community Special School | C9: 193 | D9: 0 | E9: 191.6666667 | F9: 199.6666667 | G9: 384.6666667 | H9: 199.6666667 | I9: =IF(Benchmarking!$C$9="Yes",I35-I58,I35) -> 2748533.94 | J9: =IF(Benchmarking!$C$9="Yes",J35-J58,J35) -> 0 | K9: =IF(Benchmarking!$C$9="Yes",K35-K58,K35) -> 1102026.61 | L9: =IF(Benchmarking!$C$9="Yes",L35-L58,L35) -> 223406.38 | M9: =IF(Benchmarking!$C$9="Yes",M35-M58,M35) -> 393651.29 | N9: =IF(Benchmarking!$C$9="Yes",N35-N58,N35) -> 32116.2 | O9: =IF(Benchmarking!$C$9="Yes",O35-O58,O35) -> 256880.93 | P9: =IF(Benchmarking!$C$9="Yes",P35-P58,P35) -> 50842.81 | Q9: =IF(Benchmarking!$C$9="Yes",Q35-Q58,Q35) -> 12176.86 | R9: =IF(Benchmarking!$C$9="Yes",R35-R58,R35) -> 388.33 | S9: =IF(Benchmarking!$C$9="Yes",S35-S58,S35) -> 16516.8 | T9: =IF(Benchmarking!$C$9="Yes",T35-T58,T35) -> 27603.62 | U9: =IF(Benchmarking!$C$9="Yes",U35-U58,U35) -> 4247.91 | V9: =IF(Benchmarking!$C$9="Yes",V35-V58,V35) -> 62236.39 | W9: =IF(Benchmarking!$C$9="Yes",W35-W58,W35) -> 6413.72 | X9: =IF(Benchmarking!$C$9="Yes",X35-X58,X35) -> 102346.12 | Y9: =IF(Benchmarking!$C$9="Yes",Y35-Y58,Y35) -> 0 | Z9: =IF(Benchmarking!$C$9="Yes",Z35-Z58,Z35) -> 92826.93 | AA9: =IF(Benchmarking!$C$9="Yes",AA35-AA58,AA35) -> 48641.86 | AB9: =IF(Benchmarking!$C$9="Yes",AB35-AB58,AB35) -> 47999.86 | AC9: =IF(Benchmarking!$C$9="Yes",AC35-AC58,AC35) -> 28338.36 | AD9: =IF(Benchmarking!$C$9="Yes",AD35-AD58,AD35) -> 46770.48 | AE9: =IF(Benchmarking!$C$9="Yes",AE35-AE58,AE35) -> 14632.51 | AF9: =IF(Benchmarking!$C$9="Yes",AF35-AF58,AF35) -> 966607.9 | AG9: =IF(Benchmarking!$C$9="Yes",AG35-AG58,AG35) -> 31578.4 | AH9: =IF(Benchmarking!$C$9="Yes",AH35-AH58,AH35) -> 61237.64 | AI9: =IF(Benchmarking!$C$9="Yes",AI35-AI58,AI35) -> 161480.78 | AJ9: =IF(Benchmarking!$C$9="Yes",AJ35-AJ58,AJ35) -> 72198.19 | AK9: =IF(Benchmarking!$C$9="Yes",AK35-AK58,AK35) -> 0 | AL9: =IF(Benchmarking!$C$9="Yes",AL35-AL58,AL35) -> 0 | AM9: =IF(Benchmarking!$C$9="Yes",AM35-AM58,AM35) -> 0 | AN9: =IF(Benchmarking!$C$9="Yes",AN35-AN58,AN35) -> 0 | AO9: =IF(Benchmarking!$C$9="Yes",AO35-AO58,AO35) -> 0 | AP9: =IF(Benchmarking!$C$9="Yes",AP35-AP58,AP35) -> -1888520.68 | AQ9: =IF(Benchmarking!$C$9="Yes",AQ35-AQ58,AQ35) -> -387423.47 | AR9: =IF(Benchmarking!$C$9="Yes",AR35-AR58,AR35) -> -2183980.23 | AS9: =IF(Benchmarking!$C$9="Yes",AS35-AS58,AS35) -> 0 | AT9: =IF(Benchmarking!$C$9="Yes",AT35-AT58,AT35) -> -116848 | AU9: =IF(Benchmarking!$C$9="Yes",AU35-AU58,AU35) -> -352595.24 | AV9: =IF(Benchmarking!$C$9="Yes",AV35-AV58,AV35) -> -212200 | AW9: =IF(Benchmarking!$C$9="Yes",AW35-AW58,AW35) -> -3000 | AX9: =IF(Benchmarking!$C$9="Yes",AX35-AX58,AX35) -> -1411677.32 | AY9: =IF(Benchmarking!$C$9="Yes",AY35-AY58,AY35) -> -4712.4 | AZ9: =IF(Benchmarking!$C$9="Yes",AZ35-AZ58,AZ35) -> 0 | BA9: =IF(Benchmarking!$C$9="Yes",BA35-BA58,BA35) -> -15115.27 | BB9: =IF(Benchmarking!$C$9="Yes",BB35-BB58,BB35) -> -1428 | BC9: =IF(Benchmarking!$C$9="Yes",BC35-BC58,BC35) -> -303.2 | BD9: =IF(Benchmarking!$C$9="Yes",BD35-BD58,BD35) -> 0 | BE9: =IF(Benchmarking!$C$9="Yes",BE35-BE58,BE35) -> 0 | BF9: =IF(Benchmarking!$C$9="Yes",BF35-BF58,BF35) -> 0 | BG9: =IF(Benchmarking!$C$9="Yes",BG35-BG58,BG35) -> 0 | BH9: =IF(Benchmarking!$C$9="Yes",BH35-BH58,BH35) -> 0 | BI9: =IF(Benchmarking!$C$9="Yes",BI35-BI58,BI35) -> 0 | BJ9: =IF(Benchmarking!$C$9="Yes",BJ35-BJ58,BJ35) -> -79123.44
A10: 7043 | B10: The Beacon, Folkestone | C10: 419 | D10: 0 | E10: 423 | F10: 414.6666667 | G10: 842 | H10: 414.6666667 | I10: =IF(Benchmarking!$C$9="Yes",I36-I59,I36) -> 4012307.43 | J10: =IF(Benchmarking!$C$9="Yes",J36-J59,J36) -> 0 | K10: =IF(Benchmarking!$C$9="Yes",K36-K59,K36) -> 3761028.47 | L10: =IF(Benchmarking!$C$9="Yes",L36-L59,L36) -> 438561.98 | M10: =IF(Benchmarking!$C$9="Yes",M36-M59,M36) -> 509083.12 | N10: =IF(Benchmarking!$C$9="Yes",N36-N59,N36) -> 116441.48 | O10: =IF(Benchmarking!$C$9="Yes",O36-O59,O36) -> 225009.61 | P10: =IF(Benchmarking!$C$9="Yes",P36-P59,P36) -> 53183.32 | Q10: =IF(Benchmarking!$C$9="Yes",Q36-Q59,Q36) -> 131764.97 | R10: =IF(Benchmarking!$C$9="Yes",R36-R59,R36) -> 820.5 | S10: =IF(Benchmarking!$C$9="Yes",S36-S59,S36) -> 34039.4 | T10: =IF(Benchmarking!$C$9="Yes",T36-T59,T36) -> 78375.83 | U10: =IF(Benchmarking!$C$9="Yes",U36-U59,U36) -> 17443.93 | V10: =IF(Benchmarking!$C$9="Yes",V36-V59,V36) -> 16971.45 | W10: =IF(Benchmarking!$C$9="Yes",W36-W59,W36) -> 11469.35 | X10: =IF(Benchmarking!$C$9="Yes",X36-X59,X36) -> 228626.59 | Y10: =IF(Benchmarking!$C$9="Yes",Y36-Y59,Y36) -> 0 | Z10: =IF(Benchmarking!$C$9="Yes",Z36-Z59,Z36) -> 59641.62 | AA10: =IF(Benchmarking!$C$9="Yes",AA36-AA59,AA36) -> 176587.02 | AB10: =IF(Benchmarking!$C$9="Yes",AB36-AB59,AB36) -> 26406.92 | AC10: =IF(Benchmarking!$C$9="Yes",AC36-AC59,AC36) -> 19025.48 | AD10: =IF(Benchmarking!$C$9="Yes",AD36-AD59,AD36) -> 97821.56 | AE10: =IF(Benchmarking!$C$9="Yes",AE36-AE59,AE36) -> 13895.35 | AF10: =IF(Benchmarking!$C$9="Yes",AF36-AF59,AF36) -> 50558.01 | AG10: =IF(Benchmarking!$C$9="Yes",AG36-AG59,AG36) -> 163985.11 | AH10: =IF(Benchmarking!$C$9="Yes",AH36-AH59,AH36) -> 6096 | AI10: =IF(Benchmarking!$C$9="Yes",AI36-AI59,AI36) -> 138808.13 | AJ10: =IF(Benchmarking!$C$9="Yes",AJ36-AJ59,AJ36) -> 83490.98 | AK10: =IF(Benchmarking!$C$9="Yes",AK36-AK59,AK36) -> 0 | AL10: =IF(Benchmarking!$C$9="Yes",AL36-AL59,AL36) -> 0 | AM10: =IF(Benchmarking!$C$9="Yes",AM36-AM59,AM36) -> 20000 | AN10: =IF(Benchmarking!$C$9="Yes",AN36-AN59,AN36) -> 0 | AO10: =IF(Benchmarking!$C$9="Yes",AO36-AO59,AO36) -> 0 | AP10: =IF(Benchmarking!$C$9="Yes",AP36-AP59,AP36) -> -3720094.13 | AQ10: =IF(Benchmarking!$C$9="Yes",AQ36-AQ59,AQ36) -> -1125263.79 | AR10: =IF(Benchmarking!$C$9="Yes",AR36-AR59,AR36) -> -3695398.99 | AS10: =IF(Benchmarking!$C$9="Yes",AS36-AS59,AS36) -> 0 | AT10: =IF(Benchmarking!$C$9="Yes",AT36-AT59,AT36) -> -235587 | AU10: =IF(Benchmarking!$C$9="Yes",AU36-AU59,AU36) -> -434605.35 | AV10: =IF(Benchmarking!$C$9="Yes",AV36-AV59,AV36) -> -217878.44 | AW10: =IF(Benchmarking!$C$9="Yes",AW36-AW59,AW36) -> -13527.26 | AX10: =IF(Benchmarking!$C$9="Yes",AX36-AX59,AX36) -> -919945.45 | AY10: =IF(Benchmarking!$C$9="Yes",AY36-AY59,AY36) -> -20562.42 | AZ10: =IF(Benchmarking!$C$9="Yes",AZ36-AZ59,AZ36) -> -8696.12 | BA10: =IF(Benchmarking!$C$9="Yes",BA36-BA59,BA36) -> -1292.03 | BB10: =IF(Benchmarking!$C$9="Yes",BB36-BB59,BB36) -> -31518.23 | BC10: =IF(Benchmarking!$C$9="Yes",BC36-BC59,BC36) -> -11252.33 | BD10: =IF(Benchmarking!$C$9="Yes",BD36-BD59,BD36) -> 0 | BE10: =IF(Benchmarking!$C$9="Yes",BE36-BE59,BE36) -> 0 | BF10: =IF(Benchmarking!$C$9="Yes",BF36-BF59,BF36) -> 0 | BG10: =IF(Benchmarking!$C$9="Yes",BG36-BG59,BG36) -> -33153 | BH10: =IF(Benchmarking!$C$9="Yes",BH36-BH59,BH36) -> 0 | BI10: =IF(Benchmarking!$C$9="Yes",BI36-BI59,BI36) -> 0 | BJ10: =IF(Benchmarking!$C$9="Yes",BJ36-BJ59,BJ36) -> -155421.4
A11: 7044 | B11: Rowhill School | C11: 164 | D11: 0 | E11: 132 | F11: 159.5833333 | G11: 296 | H11: 159.5833333 | I11: =IF(Benchmarking!$C$9="Yes",I37-I60,I37) -> 2407263.84 | J11: =IF(Benchmarking!$C$9="Yes",J37-J60,J37) -> 0 | K11: =IF(Benchmarking!$C$9="Yes",K37-K60,K37) -> 750555.75 | L11: =IF(Benchmarking!$C$9="Yes",L37-L60,L37) -> 34547.04 | M11: =IF(Benchmarking!$C$9="Yes",M37-M60,M37) -> 317377.86 | N11: =IF(Benchmarking!$C$9="Yes",N37-N60,N37) -> 47254.66 | O11: =IF(Benchmarking!$C$9="Yes",O37-O60,O37) -> 0 | P11: =IF(Benchmarking!$C$9="Yes",P37-P60,P37) -> 23647.87 | Q11: =IF(Benchmarking!$C$9="Yes",Q37-Q60,Q37) -> 10807.3 | R11: =IF(Benchmarking!$C$9="Yes",R37-R60,R37) -> 264 | S11: =IF(Benchmarking!$C$9="Yes",S37-S60,S37) -> 13400.52 | T11: =IF(Benchmarking!$C$9="Yes",T37-T60,T37) -> 41001.5 | U11: =IF(Benchmarking!$C$9="Yes",U37-U60,U37) -> 11824.59 | V11: =IF(Benchmarking!$C$9="Yes",V37-V60,V37) -> 51494.78 | W11: =IF(Benchmarking!$C$9="Yes",W37-W60,W37) -> 15208.45 | X11: =IF(Benchmarking!$C$9="Yes",X37-X60,X37) -> 81785.56 | Y11: =IF(Benchmarking!$C$9="Yes",Y37-Y60,Y37) -> 0 | Z11: =IF(Benchmarking!$C$9="Yes",Z37-Z60,Z37) -> 10295.91 | AA11: =IF(Benchmarking!$C$9="Yes",AA37-AA60,AA37) -> 82446.03 | AB11: =IF(Benchmarking!$C$9="Yes",AB37-AB60,AB37) -> 31477.99 | AC11: =IF(Benchmarking!$C$9="Yes",AC37-AC60,AC37) -> 15307.03 | AD11: =IF(Benchmarking!$C$9="Yes",AD37-AD60,AD37) -> 32876.47 | AE11: =IF(Benchmarking!$C$9="Yes",AE37-AE60,AE37) -> 6350.88 | AF11: =IF(Benchmarking!$C$9="Yes",AF37-AF60,AF37) -> 199193.73 | AG11: =IF(Benchmarking!$C$9="Yes",AG37-AG60,AG37) -> 15182.3 | AH11: =IF(Benchmarking!$C$9="Yes",AH37-AH60,AH37) -> 33755.28 | AI11: =IF(Benchmarking!$C$9="Yes",AI37-AI60,AI37) -> 517648.06 | AJ11: =IF(Benchmarking!$C$9="Yes",AJ37-AJ60,AJ37) -> 132222.79 | AK11: =IF(Benchmarking!$C$9="Yes",AK37-AK60,AK37) -> 0 | AL11: =IF(Benchmarking!$C$9="Yes",AL37-AL60,AL37) -> 0 | AM11: =IF(Benchmarking!$C$9="Yes",AM37-AM60,AM37) -> 0 | AN11: =IF(Benchmarking!$C$9="Yes",AN37-AN60,AN37) -> 0 | AO11: =IF(Benchmarking!$C$9="Yes",AO37-AO60,AO37) -> 0 | AP11: =IF(Benchmarking!$C$9="Yes",AP37-AP60,AP37) -> -1783188.5 | AQ11: =IF(Benchmarking!$C$9="Yes",AQ37-AQ60,AQ37) -> 0 | AR11: =IF(Benchmarking!$C$9="Yes",AR37-AR60,AR37) -> -1863812.28 | AS11: =IF(Benchmarking!$C$9="Yes",AS37-AS60,AS37) -> 0 | AT11: =IF(Benchmarking!$C$9="Yes",AT37-AT60,AT37) -> -143480 | AU11: =IF(Benchmarking!$C$9="Yes",AU37-AU60,AU37) -> -327139.47 | AV11: =IF(Benchmarking!$C$9="Yes",AV37-AV60,AV37) -> -410522.93 | AW11: =IF(Benchmarking!$C$9="Yes",AW37-AW60,AW37) -> 0 | AX11: =IF(Benchmarking!$C$9="Yes",AX37-AX60,AX37) -> -109718.33 | AY11: =IF(Benchmarking!$C$9="Yes",AY37-AY60,AY37) -> -3426.44 | AZ11: =IF(Benchmarking!$C$9="Yes",AZ37-AZ60,AZ37) -> 0 | BA11: =IF(Benchmarking!$C$9="Yes",BA37-BA60,BA37) -> -39560.5 | BB11: =IF(Benchmarking!$C$9="Yes",BB37-BB60,BB37) -> -1056 | BC11: =IF(Benchmarking!$C$9="Yes",BC37-BC60,BC37) -> -2564.32 | BD11: =IF(Benchmarking!$C$9="Yes",BD37-BD60,BD37) -> 0 | BE11: =IF(Benchmarking!$C$9="Yes",BE37-BE60,BE37) -> 0 | BF11: =IF(Benchmarking!$C$9="Yes",BF37-BF60,BF37) -> 0 | BG11: =IF(Benchmarking!$C$9="Yes",BG37-BG60,BG37) -> -16828 | BH11: =IF(Benchmarking!$C$9="Yes",BH37-BH60,BH37) -> 0 | BI11: =IF(Benchmarking!$C$9="Yes",BI37-BI60,BI37) -> 0 | BJ11: =IF(Benchmarking!$C$9="Yes",BJ37-BJ60,BJ37) -> -99450.11
A12: 7045 | B12: Harbour School | C12: 129 | D12: 0 | E12: 156 | F12: 139.0833333 | G12: 285 | H12: 139.0833333 | I12: =IF(Benchmarking!$C$9="Yes",I38-I61,I38) -> 1746417.99 | J12: =IF(Benchmarking!$C$9="Yes",J38-J61,J38) -> 0 | K12: =IF(Benchmarking!$C$9="Yes",K38-K61,K38) -> 987080.23 | L12: =IF(Benchmarking!$C$9="Yes",L38-L61,L38) -> 153002.09 | M12: =IF(Benchmarking!$C$9="Yes",M38-M61,M38) -> 242442.69 | N12: =IF(Benchmarking!$C$9="Yes",N38-N61,N38) -> 60009.4 | O12: =IF(Benchmarking!$C$9="Yes",O38-O61,O38) -> 930824.13 | P12: =IF(Benchmarking!$C$9="Yes",P38-P61,P38) -> 21280.4 | Q12: =IF(Benchmarking!$C$9="Yes",Q38-Q61,Q38) -> 16129.25 | R12: =IF(Benchmarking!$C$9="Yes",R38-R61,R38) -> 309 | S12: =IF(Benchmarking!$C$9="Yes",S38-S61,S38) -> 14640.6 | T12: =IF(Benchmarking!$C$9="Yes",T38-T61,T38) -> 23250.3 | U12: =IF(Benchmarking!$C$9="Yes",U38-U61,U38) -> 8798.1 | V12: =IF(Benchmarking!$C$9="Yes",V38-V61,V38) -> 9610.31 | W12: =IF(Benchmarking!$C$9="Yes",W38-W61,W38) -> 3658.06 | X12: =IF(Benchmarking!$C$9="Yes",X38-X61,X38) -> 53095.68 | Y12: =IF(Benchmarking!$C$9="Yes",Y38-Y61,Y38) -> 0 | Z12: =IF(Benchmarking!$C$9="Yes",Z38-Z61,Z38) -> 66592.26 | AA12: =IF(Benchmarking!$C$9="Yes",AA38-AA61,AA38) -> 144771.11 | AB12: =IF(Benchmarking!$C$9="Yes",AB38-AB61,AB38) -> 30140.69 | AC12: =IF(Benchmarking!$C$9="Yes",AC38-AC61,AC38) -> 9517.4 | AD12: =IF(Benchmarking!$C$9="Yes",AD38-AD61,AD38) -> 50324.86 | AE12: =IF(Benchmarking!$C$9="Yes",AE38-AE61,AE38) -> 41554.45 | AF12: =IF(Benchmarking!$C$9="Yes",AF38-AF61,AF38) -> 286881.96 | AG12: =IF(Benchmarking!$C$9="Yes",AG38-AG61,AG38) -> 69292.59 | AH12: =IF(Benchmarking!$C$9="Yes",AH38-AH61,AH38) -> 67399.21 | AI12: =IF(Benchmarking!$C$9="Yes",AI38-AI61,AI38) -> 207317.25 | AJ12: =IF(Benchmarking!$C$9="Yes",AJ38-AJ61,AJ38) -> 70123.41 | AK12: =IF(Benchmarking!$C$9="Yes",AK38-AK61,AK38) -> 0 | AL12: =IF(Benchmarking!$C$9="Yes",AL38-AL61,AL38) -> 0 | AM12: =IF(Benchmarking!$C$9="Yes",AM38-AM61,AM38) -> 74458.78 | AN12: =IF(Benchmarking!$C$9="Yes",AN38-AN61,AN38) -> 0 | AO12: =IF(Benchmarking!$C$9="Yes",AO38-AO61,AO38) -> 0 | AP12: =IF(Benchmarking!$C$9="Yes",AP38-AP61,AP38) -> -1704263.76 | AQ12: =IF(Benchmarking!$C$9="Yes",AQ38-AQ61,AQ38) -> 0 | AR12: =IF(Benchmarking!$C$9="Yes",AR38-AR61,AR38) -> -1502921.75 | AS12: =IF(Benchmarking!$C$9="Yes",AS38-AS61,AS38) -> 0 | AT12: =IF(Benchmarking!$C$9="Yes",AT38-AT61,AT38) -> -158714 | AU12: =IF(Benchmarking!$C$9="Yes",AU38-AU61,AU38) -> -1441234.94 | AV12: =IF(Benchmarking!$C$9="Yes",AV38-AV61,AV38) -> -180000 | AW12: =IF(Benchmarking!$C$9="Yes",AW38-AW61,AW38) -> 0 | AX12: =IF(Benchmarking!$C$9="Yes",AX38-AX61,AX38) -> -31741.02 | AY12: =IF(Benchmarking!$C$9="Yes",AY38-AY61,AY38) -> -2090.9 | AZ12: =IF(Benchmarking!$C$9="Yes",AZ38-AZ61,AZ38) -> 0 | BA12: =IF(Benchmarking!$C$9="Yes",BA38-BA61,BA38) -> -64574.26 | BB12: =IF(Benchmarking!$C$9="Yes",BB38-BB61,BB38) -> 0 | BC12: =IF(Benchmarking!$C$9="Yes",BC38-BC61,BC38) -> -9 | BD12: =IF(Benchmarking!$C$9="Yes",BD38-BD61,BD38) -> 0 | BE12: =IF(Benchmarking!$C$9="Yes",BE38-BE61,BE38) -> 0 | BF12: =IF(Benchmarking!$C$9="Yes",BF38-BF61,BF38) -> 0 | BG12: =IF(Benchmarking!$C$9="Yes",BG38-BG61,BG38) -> -17071 | BH12: =IF(Benchmarking!$C$9="Yes",BH38-BH61,BH38) -> 0 | BI12: =IF(Benchmarking!$C$9="Yes",BI38-BI61,BI38) -> 0 | BJ12: =IF(Benchmarking!$C$9="Yes",BJ38-BJ61,BJ38) -> -96003.31
A13: 7051 | B13: Nexus School | C13: 272 | D13: 0 | E13: 285.3333333 | F13: 266.1666667 | G13: 557.3333333 | H13: 266.1666667 | I13: =IF(Benchmarking!$C$9="Yes",I39-I62,I39) -> 2766528.74 | J13: =IF(Benchmarking!$C$9="Yes",J39-J62,J39) -> 0 | K13: =IF(Benchmarking!$C$9="Yes",K39-K62,K39) -> 2090850.16 | L13: =IF(Benchmarking!$C$9="Yes",L39-L62,L39) -> 77031.25 | M13: =IF(Benchmarking!$C$9="Yes",M39-M62,M39) -> 322976.97 | N13: =IF(Benchmarking!$C$9="Yes",N39-N62,N39) -> 0 | O13: =IF(Benchmarking!$C$9="Yes",O39-O62,O39) -> 0 | P13: =IF(Benchmarking!$C$9="Yes",P39-P62,P39) -> 89565.6 | Q13: =IF(Benchmarking!$C$9="Yes",Q39-Q62,Q39) -> 39248.2 | R13: =IF(Benchmarking!$C$9="Yes",R39-R62,R39) -> 615.63 | S13: =IF(Benchmarking!$C$9="Yes",S39-S62,S39) -> 21422.16 | T13: =IF(Benchmarking!$C$9="Yes",T39-T62,T39) -> 107475.32 | U13: =IF(Benchmarking!$C$9="Yes",U39-U62,U39) -> 34634.39 | V13: =IF(Benchmarking!$C$9="Yes",V39-V62,V39) -> 99107.64 | W13: =IF(Benchmarking!$C$9="Yes",W39-W62,W39) -> 56262.57 | X13: =IF(Benchmarking!$C$9="Yes",X39-X62,X39) -> 107856.87 | Y13: =IF(Benchmarking!$C$9="Yes",Y39-Y62,Y39) -> 0 | Z13: =IF(Benchmarking!$C$9="Yes",Z39-Z62,Z39) -> 77554.52 | AA13: =IF(Benchmarking!$C$9="Yes",AA39-AA62,AA39) -> 337189.85 | AB13: =IF(Benchmarking!$C$9="Yes",AB39-AB62,AB39) -> 58376.12 | AC13: =IF(Benchmarking!$C$9="Yes",AC39-AC62,AC39) -> 4450.36 | AD13: =IF(Benchmarking!$C$9="Yes",AD39-AD62,AD39) -> 83800.51 | AE13: =IF(Benchmarking!$C$9="Yes",AE39-AE62,AE39) -> 14054.83 | AF13: =IF(Benchmarking!$C$9="Yes",AF39-AF62,AF39) -> 39810.31 | AG13: =IF(Benchmarking!$C$9="Yes",AG39-AG62,AG39) -> 79118.92 | AH13: =IF(Benchmarking!$C$9="Yes",AH39-AH62,AH39) -> 2289.5 | AI13: =IF(Benchmarking!$C$9="Yes",AI39-AI62,AI39) -> 654013 | AJ13: =IF(Benchmarking!$C$9="Yes",AJ39-AJ62,AJ39) -> 101808.49 | AK13: =IF(Benchmarking!$C$9="Yes",AK39-AK62,AK39) -> 0 | AL13: =IF(Benchmarking!$C$9="Yes",AL39-AL62,AL39) -> 0 | AM13: =IF(Benchmarking!$C$9="Yes",AM39-AM62,AM39) -> 136164.34 | AN13: =IF(Benchmarking!$C$9="Yes",AN39-AN62,AN39) -> 0 | AO13: =IF(Benchmarking!$C$9="Yes",AO39-AO62,AO39) -> 0 | AP13: =IF(Benchmarking!$C$9="Yes",AP39-AP62,AP39) -> -2920305.35 | AQ13: =IF(Benchmarking!$C$9="Yes",AQ39-AQ62,AQ39) -> -364236.72 | AR13: =IF(Benchmarking!$C$9="Yes",AR39-AR62,AR39) -> -3357209.19 | AS13: =IF(Benchmarking!$C$9="Yes",AS39-AS62,AS39) -> 0 | AT13: =IF(Benchmarking!$C$9="Yes",AT39-AT62,AT39) -> -117000 | AU13: =IF(Benchmarking!$C$9="Yes",AU39-AU62,AU39) -> -343853.72 | AV13: =IF(Benchmarking!$C$9="Yes",AV39-AV62,AV39) -> -200131.16 | AW13: =IF(Benchmarking!$C$9="Yes",AW39-AW62,AW39) -> -8557.5 | AX13: =IF(Benchmarking!$C$9="Yes",AX39-AX62,AX39) -> -38479.12 | AY13: =IF(Benchmarking!$C$9="Yes",AY39-AY62,AY39) -> -14388.1 | AZ13: =IF(Benchmarking!$C$9="Yes",AZ39-AZ62,AZ39) -> 0 | BA13: =IF(Benchmarking!$C$9="Yes",BA39-BA62,BA39) -> -28347.61 | BB13: =IF(Benchmarking!$C$9="Yes",BB39-BB62,BB39) -> -1322.25 | BC13: =IF(Benchmarking!$C$9="Yes",BC39-BC62,BC39) -> -23156.13 | BD13: =IF(Benchmarking!$C$9="Yes",BD39-BD62,BD39) -> 0 | BE13: =IF(Benchmarking!$C$9="Yes",BE39-BE62,BE39) -> 0 | BF13: =IF(Benchmarking!$C$9="Yes",BF39-BF62,BF39) -> 0 | BG13: =IF(Benchmarking!$C$9="Yes",BG39-BG62,BG39) -> -36493 | BH13: =IF(Benchmarking!$C$9="Yes",BH39-BH62,BH39) -> 0 | BI13: =IF(Benchmarking!$C$9="Yes",BI39-BI62,BI39) -> 0 | BJ13: =IF(Benchmarking!$C$9="Yes",BJ39-BJ62,BJ39) -> -81241.96
A14: 7052 | B14: Grange Park School | C14: 176 | D14: 0 | E14: 150 | F14: 181.4166667 | G14: 326 | H14: 181.4166667 | I14: =IF(Benchmarking!$C$9="Yes",I40-I63,I40) -> 1513788.41 | J14: =IF(Benchmarking!$C$9="Yes",J40-J63,J40) -> 0 | K14: =IF(Benchmarking!$C$9="Yes",K40-K63,K40) -> 813693.49 | L14: =IF(Benchmarking!$C$9="Yes",L40-L63,L40) -> 86378.01 | M14: =IF(Benchmarking!$C$9="Yes",M40-M63,M40) -> 211360.8 | N14: =IF(Benchmarking!$C$9="Yes",N40-N63,N40) -> 54982 | O14: =IF(Benchmarking!$C$9="Yes",O40-O63,O40) -> 105364.17 | P14: =IF(Benchmarking!$C$9="Yes",P40-P63,P40) -> 15890.12 | Q14: =IF(Benchmarking!$C$9="Yes",Q40-Q63,Q40) -> 18224.77 | R14: =IF(Benchmarking!$C$9="Yes",R40-R63,R40) -> 302 | S14: =IF(Benchmarking!$C$9="Yes",S40-S63,S40) -> 9880.92 | T14: =IF(Benchmarking!$C$9="Yes",T40-T63,T40) -> 31985.11 | U14: =IF(Benchmarking!$C$9="Yes",U40-U63,U40) -> 2176.61 | V14: =IF(Benchmarking!$C$9="Yes",V40-V63,V40) -> 1579.34 | W14: =IF(Benchmarking!$C$9="Yes",W40-W63,W40) -> 5889.25 | X14: =IF(Benchmarking!$C$9="Yes",X40-X63,X40) -> 62216.96 | Y14: =IF(Benchmarking!$C$9="Yes",Y40-Y63,Y40) -> 0 | Z14: =IF(Benchmarking!$C$9="Yes",Z40-Z63,Z40) -> 56038.62 | AA14: =IF(Benchmarking!$C$9="Yes",AA40-AA63,AA40) -> 131449.01 | AB14: =IF(Benchmarking!$C$9="Yes",AB40-AB63,AB40) -> 7545.49 | AC14: =IF(Benchmarking!$C$9="Yes",AC40-AC63,AC40) -> 16371.53 | AD14: =IF(Benchmarking!$C$9="Yes",AD40-AD63,AD40) -> 62886.77 | AE14: =IF(Benchmarking!$C$9="Yes",AE40-AE63,AE40) -> 8849.11 | AF14: =IF(Benchmarking!$C$9="Yes",AF40-AF63,AF40) -> 30761.37 | AG14: =IF(Benchmarking!$C$9="Yes",AG40-AG63,AG40) -> 23922.08 | AH14: =IF(Benchmarking!$C$9="Yes",AH40-AH63,AH40) -> 138.23 | AI14: =IF(Benchmarking!$C$9="Yes",AI40-AI63,AI40) -> 416414.45 | AJ14: =IF(Benchmarking!$C$9="Yes",AJ40-AJ63,AJ40) -> 64152.3 | AK14: =IF(Benchmarking!$C$9="Yes",AK40-AK63,AK40) -> 0 | AL14: =IF(Benchmarking!$C$9="Yes",AL40-AL63,AL40) -> 0 | AM14: =IF(Benchmarking!$C$9="Yes",AM40-AM63,AM40) -> 170510.79 | AN14: =IF(Benchmarking!$C$9="Yes",AN40-AN63,AN40) -> 0 | AO14: =IF(Benchmarking!$C$9="Yes",AO40-AO63,AO40) -> 0 | AP14: =IF(Benchmarking!$C$9="Yes",AP40-AP63,AP40) -> -1402930.15 | AQ14: =IF(Benchmarking!$C$9="Yes",AQ40-AQ63,AQ40) -> -586126.35 | AR14: =IF(Benchmarking!$C$9="Yes",AR40-AR63,AR40) -> -2050283.12 | AS14: =IF(Benchmarking!$C$9="Yes",AS40-AS63,AS40) -> 0 | AT14: =IF(Benchmarking!$C$9="Yes",AT40-AT63,AT40) -> -44992.5 | AU14: =IF(Benchmarking!$C$9="Yes",AU40-AU63,AU40) -> -41039.86 | AV14: =IF(Benchmarking!$C$9="Yes",AV40-AV63,AV40) -> -6449.92 | AW14: =IF(Benchmarking!$C$9="Yes",AW40-AW63,AW40) -> 0 | AX14: =IF(Benchmarking!$C$9="Yes",AX40-AX63,AX40) -> -95698.44 | AY14: =IF(Benchmarking!$C$9="Yes",AY40-AY63,AY40) -> -10439.55 | AZ14: =IF(Benchmarking!$C$9="Yes",AZ40-AZ63,AZ40) -> 0 | BA14: =IF(Benchmarking!$C$9="Yes",BA40-BA63,BA40) -> -2316.9 | BB14: =IF(Benchmarking!$C$9="Yes",BB40-BB63,BB40) -> -25271.85 | BC14: =IF(Benchmarking!$C$9="Yes",BC40-BC63,BC40) -> -6440.35 | BD14: =IF(Benchmarking!$C$9="Yes",BD40-BD63,BD40) -> 0 | BE14: =IF(Benchmarking!$C$9="Yes",BE40-BE63,BE40) -> 0 | BF14: =IF(Benchmarking!$C$9="Yes",BF40-BF63,BF40) -> 0 | BG14: =IF(Benchmarking!$C$9="Yes",BG40-BG63,BG40) -> -13667 | BH14: =IF(Benchmarking!$C$9="Yes",BH40-BH63,BH40) -> 0 | BI14: =IF(Benchmarking!$C$9="Yes",BI40-BI63,BI40) -> 0 | BJ14: =IF(Benchmarking!$C$9="Yes",BJ40-BJ63,BJ40) -> -60567.48
A15: 7056 | B15: Five Acre Wood School | C15: 846 | D15: 0 | E15: 648.3333333 | F15: 797.3333333 | G15: 1494.333333 | H15: 797.3333333 | I15: =IF(Benchmarking!$C$9="Yes",I41-I64,I41) -> 5757205 | J15: =IF(Benchmarking!$C$9="Yes",J41-J64,J41) -> 0 | K15: =IF(Benchmarking!$C$9="Yes",K41-K64,K41) -> 5657908.52 | L15: =IF(Benchmarking!$C$9="Yes",L41-L64,L41) -> 309579.54 | M15: =IF(Benchmarking!$C$9="Yes",M41-M64,M41) -> 1221682.64 | N15: =IF(Benchmarking!$C$9="Yes",N41-N64,N41) -> 199331.68 | O15: =IF(Benchmarking!$C$9="Yes",O41-O64,O41) -> 235389.59 | P15: =IF(Benchmarking!$C$9="Yes",P41-P64,P41) -> 138636.73 | Q15: =IF(Benchmarking!$C$9="Yes",Q41-Q64,Q41) -> 179131.89 | R15: =IF(Benchmarking!$C$9="Yes",R41-R64,R41) -> 1349.67 | S15: =IF(Benchmarking!$C$9="Yes",S41-S64,S41) -> 61237.44 | T15: =IF(Benchmarking!$C$9="Yes",T41-T64,T41) -> 156786.15 | U15: =IF(Benchmarking!$C$9="Yes",U41-U64,U41) -> 24419.35 | V15: =IF(Benchmarking!$C$9="Yes",V41-V64,V41) -> 149879.49 | W15: =IF(Benchmarking!$C$9="Yes",W41-W64,W41) -> 32913.77 | X15: =IF(Benchmarking!$C$9="Yes",X41-X64,X41) -> 223806.01 | Y15: =IF(Benchmarking!$C$9="Yes",Y41-Y64,Y41) -> 0 | Z15: =IF(Benchmarking!$C$9="Yes",Z41-Z64,Z41) -> 318062.01 | AA15: =IF(Benchmarking!$C$9="Yes",AA41-AA64,AA41) -> 531477.16 | AB15: =IF(Benchmarking!$C$9="Yes",AB41-AB64,AB41) -> 366671.99 | AC15: =IF(Benchmarking!$C$9="Yes",AC41-AC64,AC41) -> 16448.61 | AD15: =IF(Benchmarking!$C$9="Yes",AD41-AD64,AD41) -> 155724.41 | AE15: =IF(Benchmarking!$C$9="Yes",AE41-AE64,AE41) -> 29379.94 | AF15: =IF(Benchmarking!$C$9="Yes",AF41-AF64,AF41) -> 2557 | AG15: =IF(Benchmarking!$C$9="Yes",AG41-AG64,AG41) -> 88077.07 | AH15: =IF(Benchmarking!$C$9="Yes",AH41-AH64,AH41) -> 314413.06 | AI15: =IF(Benchmarking!$C$9="Yes",AI41-AI64,AI41) -> 11827.14 | AJ15: =IF(Benchmarking!$C$9="Yes",AJ41-AJ64,AJ41) -> 160495.48 | AK15: =IF(Benchmarking!$C$9="Yes",AK41-AK64,AK41) -> 0 | AL15: =IF(Benchmarking!$C$9="Yes",AL41-AL64,AL41) -> 0 | AM15: =IF(Benchmarking!$C$9="Yes",AM41-AM64,AM41) -> 523961.71 | AN15: =IF(Benchmarking!$C$9="Yes",AN41-AN64,AN41) -> 0 | AO15: =IF(Benchmarking!$C$9="Yes",AO41-AO64,AO41) -> 0 | AP15: =IF(Benchmarking!$C$9="Yes",AP41-AP64,AP41) -> -8315612.06 | AQ15: =IF(Benchmarking!$C$9="Yes",AQ41-AQ64,AQ41) -> -737799.76 | AR15: =IF(Benchmarking!$C$9="Yes",AR41-AR64,AR41) -> -5647010.12 | AS15: =IF(Benchmarking!$C$9="Yes",AS41-AS64,AS41) -> 0 | AT15: =IF(Benchmarking!$C$9="Yes",AT41-AT64,AT41) -> -366836.31 | AU15: =IF(Benchmarking!$C$9="Yes",AU41-AU64,AU41) -> -475996.55 | AV15: =IF(Benchmarking!$C$9="Yes",AV41-AV64,AV41) -> -242200 | AW15: =IF(Benchmarking!$C$9="Yes",AW41-AW64,AW41) -> 0 | AX15: =IF(Benchmarking!$C$9="Yes",AX41-AX64,AX41) -> -885771.2 | AY15: =IF(Benchmarking!$C$9="Yes",AY41-AY64,AY41) -> -53907.12 | AZ15: =IF(Benchmarking!$C$9="Yes",AZ41-AZ64,AZ41) -> 0 | BA15: =IF(Benchmarking!$C$9="Yes",BA41-BA64,BA41) -> -89455.61 | BB15: =IF(Benchmarking!$C$9="Yes",BB41-BB64,BB41) -> -3254.16 | BC15: =IF(Benchmarking!$C$9="Yes",BC41-BC64,BC41) -> -165994.7 | BD15: =IF(Benchmarking!$C$9="Yes",BD41-BD64,BD41) -> 0 | BE15: =IF(Benchmarking!$C$9="Yes",BE41-BE64,BE41) -> 0 | BF15: =IF(Benchmarking!$C$9="Yes",BF41-BF64,BF41) -> 0 | BG15: =IF(Benchmarking!$C$9="Yes",BG41-BG64,BG41) -> -61548 | BH15: =IF(Benchmarking!$C$9="Yes",BH41-BH64,BH41) -> 0 | BI15: =IF(Benchmarking!$C$9="Yes",BI41-BI64,BI41) -> 0 | BJ15: =IF(Benchmarking!$C$9="Yes",BJ41-BJ64,BJ41) -> -237613.85
A16: 7058 | B16: Stone Bay School | C16: 114 | D16: 0 | E16: 101.3333333 | F16: 108.0833333 | G16: 215.3333333 | H16: 108.0833333 | I16: =IF(Benchmarking!$C$9="Yes",I42-I65,I42) -> 1291879.23 | J16: =IF(Benchmarking!$C$9="Yes",J42-J65,J42) -> 0 | K16: =IF(Benchmarking!$C$9="Yes",K42-K65,K42) -> 1482568.88 | L16: =IF(Benchmarking!$C$9="Yes",L42-L65,L42) -> 269737.29 | M16: =IF(Benchmarking!$C$9="Yes",M42-M65,M42) -> 180169.93 | N16: =IF(Benchmarking!$C$9="Yes",N42-N65,N42) -> 71310.73 | O16: =IF(Benchmarking!$C$9="Yes",O42-O65,O42) -> 45382.21 | P16: =IF(Benchmarking!$C$9="Yes",P42-P65,P42) -> 25082.65 | Q16: =IF(Benchmarking!$C$9="Yes",Q42-Q65,Q42) -> 46284.26 | R16: =IF(Benchmarking!$C$9="Yes",R42-R65,R42) -> 203.67 | S16: =IF(Benchmarking!$C$9="Yes",S42-S65,S42) -> 8562.12 | T16: =IF(Benchmarking!$C$9="Yes",T42-T65,T42) -> 204812.87 | U16: =IF(Benchmarking!$C$9="Yes",U42-U65,U42) -> 23453.79 | V16: =IF(Benchmarking!$C$9="Yes",V42-V65,V42) -> 15505.58 | W16: =IF(Benchmarking!$C$9="Yes",W42-W65,W42) -> 8677.01 | X16: =IF(Benchmarking!$C$9="Yes",X42-X65,X42) -> 121186.89 | Y16: =IF(Benchmarking!$C$9="Yes",Y42-Y65,Y42) -> 0 | Z16: =IF(Benchmarking!$C$9="Yes",Z42-Z65,Z42) -> 75415.64 | AA16: =IF(Benchmarking!$C$9="Yes",AA42-AA65,AA42) -> 106756.32 | AB16: =IF(Benchmarking!$C$9="Yes",AB42-AB65,AB42) -> 42755.35 | AC16: =IF(Benchmarking!$C$9="Yes",AC42-AC65,AC42) -> 0 | AD16: =IF(Benchmarking!$C$9="Yes",AD42-AD65,AD42) -> 32975.23 | AE16: =IF(Benchmarking!$C$9="Yes",AE42-AE65,AE42) -> 5308.89 | AF16: =IF(Benchmarking!$C$9="Yes",AF42-AF65,AF42) -> 2095.93 | AG16: =IF(Benchmarking!$C$9="Yes",AG42-AG65,AG42) -> 33473.55 | AH16: =IF(Benchmarking!$C$9="Yes",AH42-AH65,AH42) -> 2730 | AI16: =IF(Benchmarking!$C$9="Yes",AI42-AI65,AI42) -> 287555.39 | AJ16: =IF(Benchmarking!$C$9="Yes",AJ42-AJ65,AJ42) -> 49841.05 | AK16: =IF(Benchmarking!$C$9="Yes",AK42-AK65,AK42) -> 0 | AL16: =IF(Benchmarking!$C$9="Yes",AL42-AL65,AL42) -> 0 | AM16: =IF(Benchmarking!$C$9="Yes",AM42-AM65,AM42) -> 227956.26 | AN16: =IF(Benchmarking!$C$9="Yes",AN42-AN65,AN42) -> 0 | AO16: =IF(Benchmarking!$C$9="Yes",AO42-AO65,AO42) -> 0 | AP16: =IF(Benchmarking!$C$9="Yes",AP42-AP65,AP42) -> -1105253.21 | AQ16: =IF(Benchmarking!$C$9="Yes",AQ42-AQ65,AQ42) -> -108169.3 | AR16: =IF(Benchmarking!$C$9="Yes",AR42-AR65,AR42) -> -3080010.22 | AS16: =IF(Benchmarking!$C$9="Yes",AS42-AS65,AS42) -> 0 | AT16: =IF(Benchmarking!$C$9="Yes",AT42-AT65,AT42) -> -81493 | AU16: =IF(Benchmarking!$C$9="Yes",AU42-AU65,AU42) -> -27205.84 | AV16: =IF(Benchmarking!$C$9="Yes",AV42-AV65,AV42) -> -267844.12 | AW16: =IF(Benchmarking!$C$9="Yes",AW42-AW65,AW42) -> -9075.48 | AX16: =IF(Benchmarking!$C$9="Yes",AX42-AX65,AX42) -> -2167.94 | AY16: =IF(Benchmarking!$C$9="Yes",AY42-AY65,AY42) -> -1592.8 | AZ16: =IF(Benchmarking!$C$9="Yes",AZ42-AZ65,AZ42) -> 0 | BA16: =IF(Benchmarking!$C$9="Yes",BA42-BA65,BA42) -> -8078.72 | BB16: =IF(Benchmarking!$C$9="Yes",BB42-BB65,BB42) -> -80 | BC16: =IF(Benchmarking!$C$9="Yes",BC42-BC65,BC42) -> -2933.13 | BD16: =IF(Benchmarking!$C$9="Yes",BD42-BD65,BD42) -> 0 | BE16: =IF(Benchmarking!$C$9="Yes",BE42-BE65,BE42) -> 0 | BF16: =IF(Benchmarking!$C$9="Yes",BF42-BF65,BF42) -> 0 | BG16: =IF(Benchmarking!$C$9="Yes",BG42-BG65,BG42) -> -18686 | BH16: =IF(Benchmarking!$C$9="Yes",BH42-BH65,BH42) -> 0 | BI16: =IF(Benchmarking!$C$9="Yes",BI42-BI65,BI42) -> 0 | BJ16: =IF(Benchmarking!$C$9="Yes",BJ42-BJ65,BJ42) -> -29962.45
A17: 7062 | B17: The Orchard School | C17: 101 | D17: 0 | E17: 95.33333333 | F17: 104.4166667 | G17: 196.3333333 | H17: 104.4166667 | I17: =IF(Benchmarking!$C$9="Yes",I43-I66,I43) -> 1375167.52 | J17: =IF(Benchmarking!$C$9="Yes",J43-J66,J43) -> 0 | K17: =IF(Benchmarking!$C$9="Yes",K43-K66,K43) -> 687945.12 | L17: =IF(Benchmarking!$C$9="Yes",L43-L66,L43) -> 41550.18 | M17: =IF(Benchmarking!$C$9="Yes",M43-M66,M43) -> 196492.01 | N17: =IF(Benchmarking!$C$9="Yes",N43-N66,N43) -> 0 | O17: =IF(Benchmarking!$C$9="Yes",O43-O66,O43) -> 0 | P17: =IF(Benchmarking!$C$9="Yes",P43-P66,P43) -> 14388.14 | Q17: =IF(Benchmarking!$C$9="Yes",Q43-Q66,Q43) -> 11321.69 | R17: =IF(Benchmarking!$C$9="Yes",R43-R66,R43) -> 194.17 | S17: =IF(Benchmarking!$C$9="Yes",S43-S66,S43) -> 1133.16 | T17: =IF(Benchmarking!$C$9="Yes",T43-T66,T43) -> 42138.71 | U17: =IF(Benchmarking!$C$9="Yes",U43-U66,U43) -> 9519.56 | V17: =IF(Benchmarking!$C$9="Yes",V43-V66,V43) -> 4427.23 | W17: =IF(Benchmarking!$C$9="Yes",W43-W66,W43) -> 3010.09 | X17: =IF(Benchmarking!$C$9="Yes",X43-X66,X43) -> 57183.43 | Y17: =IF(Benchmarking!$C$9="Yes",Y43-Y66,Y43) -> 0 | Z17: =IF(Benchmarking!$C$9="Yes",Z43-Z66,Z43) -> 5612.3 | AA17: =IF(Benchmarking!$C$9="Yes",AA43-AA66,AA43) -> 45281.82 | AB17: =IF(Benchmarking!$C$9="Yes",AB43-AB66,AB43) -> 23396.15 | AC17: =IF(Benchmarking!$C$9="Yes",AC43-AC66,AC43) -> 3298.07 | AD17: =IF(Benchmarking!$C$9="Yes",AD43-AD66,AD43) -> 40196.52 | AE17: =IF(Benchmarking!$C$9="Yes",AE43-AE66,AE43) -> 6261.81 | AF17: =IF(Benchmarking!$C$9="Yes",AF43-AF66,AF43) -> 10413.99 | AG17: =IF(Benchmarking!$C$9="Yes",AG43-AG66,AG43) -> 38854.59 | AH17: =IF(Benchmarking!$C$9="Yes",AH43-AH66,AH43) -> 46604.2 | AI17: =IF(Benchmarking!$C$9="Yes",AI43-AI66,AI43) -> 73071.97 | AJ17: =IF(Benchmarking!$C$9="Yes",AJ43-AJ66,AJ43) -> 74820.18 | AK17: =IF(Benchmarking!$C$9="Yes",AK43-AK66,AK43) -> 0 | AL17: =IF(Benchmarking!$C$9="Yes",AL43-AL66,AL43) -> 0 | AM17: =IF(Benchmarking!$C$9="Yes",AM43-AM66,AM43) -> 234207.35 | AN17: =IF(Benchmarking!$C$9="Yes",AN43-AN66,AN43) -> 0 | AO17: =IF(Benchmarking!$C$9="Yes",AO43-AO66,AO43) -> 0 | AP17: =IF(Benchmarking!$C$9="Yes",AP43-AP66,AP43) -> -1164853.22 | AQ17: =IF(Benchmarking!$C$9="Yes",AQ43-AQ66,AQ43) -> 0 | AR17: =IF(Benchmarking!$C$9="Yes",AR43-AR66,AR43) -> -1281373.41 | AS17: =IF(Benchmarking!$C$9="Yes",AS43-AS66,AS43) -> 0 | AT17: =IF(Benchmarking!$C$9="Yes",AT43-AT66,AT43) -> -103185 | AU17: =IF(Benchmarking!$C$9="Yes",AU43-AU66,AU43) -> -29476.19 | AV17: =IF(Benchmarking!$C$9="Yes",AV43-AV66,AV43) -> -329085.84 | AW17: =IF(Benchmarking!$C$9="Yes",AW43-AW66,AW43) -> 0 | AX17: =IF(Benchmarking!$C$9="Yes",AX43-AX66,AX43) -> -15356.78 | AY17: =IF(Benchmarking!$C$9="Yes",AY43-AY66,AY43) -> -4007.92 | AZ17: =IF(Benchmarking!$C$9="Yes",AZ43-AZ66,AZ43) -> 0 | BA17: =IF(Benchmarking!$C$9="Yes",BA43-BA66,BA43) -> 0 | BB17: =IF(Benchmarking!$C$9="Yes",BB43-BB66,BB43) -> -84 | BC17: =IF(Benchmarking!$C$9="Yes",BC43-BC66,BC43) -> -9.84 | BD17: =IF(Benchmarking!$C$9="Yes",BD43-BD66,BD43) -> 0 | BE17: =IF(Benchmarking!$C$9="Yes",BE43-BE66,BE43) -> 0 | BF17: =IF(Benchmarking!$C$9="Yes",BF43-BF66,BF43) -> 0 | BG17: =IF(Benchmarking!$C$9="Yes",BG43-BG66,BG43) -> -16324 | BH17: =IF(Benchmarking!$C$9="Yes",BH43-BH66,BH43) -> 0 | BI17: =IF(Benchmarking!$C$9="Yes",BI43-BI66,BI43) -> 0 | BJ17: =IF(Benchmarking!$C$9="Yes",BJ43-BJ66,BJ43) -> -39468.32
A18: 7063 | B18: St Nicholas' School | C18: 363 | D18: 0 | E18: 345 | F18: 360.5 | G18: 708 | H18: 360.5 | I18: =IF(Benchmarking!$C$9="Yes",I44-I67,I44) -> 3266994.5 | J18: =IF(Benchmarking!$C$9="Yes",J44-J67,J44) -> 0 | K18: =IF(Benchmarking!$C$9="Yes",K44-K67,K44) -> 3383404.45 | L18: =IF(Benchmarking!$C$9="Yes",L44-L67,L44) -> 153841.11 | M18: =IF(Benchmarking!$C$9="Yes",M44-M67,M44) -> 237415.25 | N18: =IF(Benchmarking!$C$9="Yes",N44-N67,N44) -> 83681.44 | O18: =IF(Benchmarking!$C$9="Yes",O44-O67,O44) -> 20367.01 | P18: =IF(Benchmarking!$C$9="Yes",P44-P67,P44) -> 81087.77 | Q18: =IF(Benchmarking!$C$9="Yes",Q44-Q67,Q44) -> 82094.84 | R18: =IF(Benchmarking!$C$9="Yes",R44-R67,R44) -> 697.5 | S18: =IF(Benchmarking!$C$9="Yes",S44-S67,S44) -> 28609.32 | T18: =IF(Benchmarking!$C$9="Yes",T44-T67,T44) -> 11375.67 | U18: =IF(Benchmarking!$C$9="Yes",U44-U67,U44) -> 8378.27 | V18: =IF(Benchmarking!$C$9="Yes",V44-V67,V44) -> 18505.66 | W18: =IF(Benchmarking!$C$9="Yes",W44-W67,W44) -> 10040.71 | X18: =IF(Benchmarking!$C$9="Yes",X44-X67,X44) -> 142411.67 | Y18: =IF(Benchmarking!$C$9="Yes",Y44-Y67,Y44) -> 0 | Z18: =IF(Benchmarking!$C$9="Yes",Z44-Z67,Z44) -> 248251.91 | AA18: =IF(Benchmarking!$C$9="Yes",AA44-AA67,AA44) -> 175943.3 | AB18: =IF(Benchmarking!$C$9="Yes",AB44-AB67,AB44) -> 87752.66 | AC18: =IF(Benchmarking!$C$9="Yes",AC44-AC67,AC44) -> 3262.4 | AD18: =IF(Benchmarking!$C$9="Yes",AD44-AD67,AD44) -> 10763.49 | AE18: =IF(Benchmarking!$C$9="Yes",AE44-AE67,AE44) -> 15161.68 | AF18: =IF(Benchmarking!$C$9="Yes",AF44-AF67,AF44) -> 112066.69 | AG18: =IF(Benchmarking!$C$9="Yes",AG44-AG67,AG44) -> 59623.86 | AH18: =IF(Benchmarking!$C$9="Yes",AH44-AH67,AH44) -> 34200.8 | AI18: =IF(Benchmarking!$C$9="Yes",AI44-AI67,AI44) -> 160347.71 | AJ18: =IF(Benchmarking!$C$9="Yes",AJ44-AJ67,AJ44) -> 60011.8 | AK18: =IF(Benchmarking!$C$9="Yes",AK44-AK67,AK44) -> 0 | AL18: =IF(Benchmarking!$C$9="Yes",AL44-AL67,AL44) -> 0 | AM18: =IF(Benchmarking!$C$9="Yes",AM44-AM67,AM44) -> 21267.32 | AN18: =IF(Benchmarking!$C$9="Yes",AN44-AN67,AN44) -> 0 | AO18: =IF(Benchmarking!$C$9="Yes",AO44-AO67,AO44) -> 0 | AP18: =IF(Benchmarking!$C$9="Yes",AP44-AP67,AP44) -> -3645670.07 | AQ18: =IF(Benchmarking!$C$9="Yes",AQ44-AQ67,AQ44) -> -447291.47 | AR18: =IF(Benchmarking!$C$9="Yes",AR44-AR67,AR44) -> -3145714.75 | AS18: =IF(Benchmarking!$C$9="Yes",AS44-AS67,AS44) -> 0 | AT18: =IF(Benchmarking!$C$9="Yes",AT44-AT67,AT44) -> -194025.93 | AU18: =IF(Benchmarking!$C$9="Yes",AU44-AU67,AU44) -> -580108.28 | AV18: =IF(Benchmarking!$C$9="Yes",AV44-AV67,AV44) -> -21954.77 | AW18: =IF(Benchmarking!$C$9="Yes",AW44-AW67,AW44) -> -15576.57 | AX18: =IF(Benchmarking!$C$9="Yes",AX44-AX67,AX44) -> -166814.55 | AY18: =IF(Benchmarking!$C$9="Yes",AY44-AY67,AY44) -> -22164.35 | AZ18: =IF(Benchmarking!$C$9="Yes",AZ44-AZ67,AZ44) -> 0 | BA18: =IF(Benchmarking!$C$9="Yes",BA44-BA67,BA44) -> -32203.52 | BB18: =IF(Benchmarking!$C$9="Yes",BB44-BB67,BB44) -> -17594.19 | BC18: =IF(Benchmarking!$C$9="Yes",BC44-BC67,BC44) -> -2764.39 | BD18: =IF(Benchmarking!$C$9="Yes",BD44-BD67,BD44) -> 0 | BE18: =IF(Benchmarking!$C$9="Yes",BE44-BE67,BE44) -> 0 | BF18: =IF(Benchmarking!$C$9="Yes",BF44-BF67,BF44) -> 0 | BG18: =IF(Benchmarking!$C$9="Yes",BG44-BG67,BG44) -> -31030 | BH18: =IF(Benchmarking!$C$9="Yes",BH44-BH67,BH44) -> 0 | BI18: =IF(Benchmarking!$C$9="Yes",BI44-BI67,BI44) -> 0 | BJ18: =IF(Benchmarking!$C$9="Yes",BJ44-BJ67,BJ44) -> -118621.92
A19: 7067 | B19: Portal House School | C19: 70 | D19: 0 | E19: 80 | F19: 74.58333333 | G19: 150 | H19: 74.58333333 | I19: =IF(Benchmarking!$C$9="Yes",I45-I68,I45) -> 1339403.69 | J19: =IF(Benchmarking!$C$9="Yes",J45-J68,J45) -> 0 | K19: =IF(Benchmarking!$C$9="Yes",K45-K68,K45) -> 451566.25 | L19: =IF(Benchmarking!$C$9="Yes",L45-L68,L45) -> 59334.02 | M19: =IF(Benchmarking!$C$9="Yes",M45-M68,M45) -> 82732.83 | N19: =IF(Benchmarking!$C$9="Yes",N45-N68,N45) -> 35007.68 | O19: =IF(Benchmarking!$C$9="Yes",O45-O68,O45) -> 0 | P19: =IF(Benchmarking!$C$9="Yes",P45-P68,P45) -> 11528.99 | Q19: =IF(Benchmarking!$C$9="Yes",Q45-Q68,Q45) -> 9197.18 | R19: =IF(Benchmarking!$C$9="Yes",R45-R68,R45) -> 160 | S19: =IF(Benchmarking!$C$9="Yes",S45-S68,S45) -> 6698.16 | T19: =IF(Benchmarking!$C$9="Yes",T45-T68,T45) -> 6243.13 | U19: =IF(Benchmarking!$C$9="Yes",U45-U68,U45) -> 2484.36 | V19: =IF(Benchmarking!$C$9="Yes",V45-V68,V45) -> 4910.43 | W19: =IF(Benchmarking!$C$9="Yes",W45-W68,W45) -> 4514.71 | X19: =IF(Benchmarking!$C$9="Yes",X45-X68,X45) -> 58498.65 | Y19: =IF(Benchmarking!$C$9="Yes",Y45-Y68,Y45) -> 0 | Z19: =IF(Benchmarking!$C$9="Yes",Z45-Z68,Z45) -> 14488.81 | AA19: =IF(Benchmarking!$C$9="Yes",AA45-AA68,AA45) -> 53386.94 | AB19: =IF(Benchmarking!$C$9="Yes",AB45-AB68,AB45) -> 18331.72 | AC19: =IF(Benchmarking!$C$9="Yes",AC45-AC68,AC45) -> 10839.88 | AD19: =IF(Benchmarking!$C$9="Yes",AD45-AD68,AD45) -> 7526.97 | AE19: =IF(Benchmarking!$C$9="Yes",AE45-AE68,AE45) -> 3747.16 | AF19: =IF(Benchmarking!$C$9="Yes",AF45-AF68,AF45) -> 1824.9 | AG19: =IF(Benchmarking!$C$9="Yes",AG45-AG68,AG45) -> 28343.9 | AH19: =IF(Benchmarking!$C$9="Yes",AH45-AH68,AH45) -> 0 | AI19: =IF(Benchmarking!$C$9="Yes",AI45-AI68,AI45) -> 17252.21 | AJ19: =IF(Benchmarking!$C$9="Yes",AJ45-AJ68,AJ45) -> 26464.7 | AK19: =IF(Benchmarking!$C$9="Yes",AK45-AK68,AK45) -> 0 | AL19: =IF(Benchmarking!$C$9="Yes",AL45-AL68,AL45) -> 0 | AM19: =IF(Benchmarking!$C$9="Yes",AM45-AM68,AM45) -> 0 | AN19: =IF(Benchmarking!$C$9="Yes",AN45-AN68,AN45) -> 0 | AO19: =IF(Benchmarking!$C$9="Yes",AO45-AO68,AO45) -> 0 | AP19: =IF(Benchmarking!$C$9="Yes",AP45-AP68,AP45) -> -893938.45 | AQ19: =IF(Benchmarking!$C$9="Yes",AQ45-AQ68,AQ45) -> 0 | AR19: =IF(Benchmarking!$C$9="Yes",AR45-AR68,AR45) -> -1221421.3 | AS19: =IF(Benchmarking!$C$9="Yes",AS45-AS68,AS45) -> 0 | AT19: =IF(Benchmarking!$C$9="Yes",AT45-AT68,AT45) -> -50363 | AU19: =IF(Benchmarking!$C$9="Yes",AU45-AU68,AU45) -> -23632.34 | AV19: =IF(Benchmarking!$C$9="Yes",AV45-AV68,AV45) -> -6360 | AW19: =IF(Benchmarking!$C$9="Yes",AW45-AW68,AW45) -> 0 | AX19: =IF(Benchmarking!$C$9="Yes",AX45-AX68,AX45) -> -988.86 | AY19: =IF(Benchmarking!$C$9="Yes",AY45-AY68,AY45) -> 0 | AZ19: =IF(Benchmarking!$C$9="Yes",AZ45-AZ68,AZ45) -> 0 | BA19: =IF(Benchmarking!$C$9="Yes",BA45-BA68,BA45) -> -15438.95 | BB19: =IF(Benchmarking!$C$9="Yes",BB45-BB68,BB45) -> -1620 | BC19: =IF(Benchmarking!$C$9="Yes",BC45-BC68,BC45) -> -1584.28 | BD19: =IF(Benchmarking!$C$9="Yes",BD45-BD68,BD45) -> 0 | BE19: =IF(Benchmarking!$C$9="Yes",BE45-BE68,BE45) -> 0 | BF19: =IF(Benchmarking!$C$9="Yes",BF45-BF68,BF45) -> 0 | BG19: =IF(Benchmarking!$C$9="Yes",BG45-BG68,BG45) -> 0 | BH19: =IF(Benchmarking!$C$9="Yes",BH45-BH68,BH45) -> 0 | BI19: =IF(Benchmarking!$C$9="Yes",BI45-BI68,BI45) -> 0 | BJ19: =IF(Benchmarking!$C$9="Yes",BJ45-BJ68,BJ45) -> -52955.19
A20: 7069 | B20: The Wyvern School | C20: 361 | D20: 0 | E20: 341.3333333 | F20: 352.1666667 | G20: 702.3333333 | H20: 352.1666667 | I20: =IF(Benchmarking!$C$9="Yes",I46-I69,I46) -> 2854344.07 | J20: =IF(Benchmarking!$C$9="Yes",J46-J69,J46) -> 69867 | K20: =IF(Benchmarking!$C$9="Yes",K46-K69,K46) -> 3133676.65 | L20: =IF(Benchmarking!$C$9="Yes",L46-L69,L46) -> 148607.44 | M20: =IF(Benchmarking!$C$9="Yes",M46-M69,M46) -> 299471.48 | N20: =IF(Benchmarking!$C$9="Yes",N46-N69,N46) -> 0 | O20: =IF(Benchmarking!$C$9="Yes",O46-O69,O46) -> 0 | P20: =IF(Benchmarking!$C$9="Yes",P46-P69,P46) -> 17772.72 | Q20: =IF(Benchmarking!$C$9="Yes",Q46-Q69,Q46) -> 49165.64 | R20: =IF(Benchmarking!$C$9="Yes",R46-R69,R46) -> 25356.09 | S20: =IF(Benchmarking!$C$9="Yes",S46-S69,S46) -> 27016.32 | T20: =IF(Benchmarking!$C$9="Yes",T46-T69,T46) -> 147154.05 | U20: =IF(Benchmarking!$C$9="Yes",U46-U69,U46) -> 17730.17 | V20: =IF(Benchmarking!$C$9="Yes",V46-V69,V46) -> 57253.24 | W20: =IF(Benchmarking!$C$9="Yes",W46-W69,W46) -> 21526.88 | X20: =IF(Benchmarking!$C$9="Yes",X46-X69,X46) -> 156199.15 | Y20: =IF(Benchmarking!$C$9="Yes",Y46-Y69,Y46) -> 0 | Z20: =IF(Benchmarking!$C$9="Yes",Z46-Z69,Z46) -> 76982.99 | AA20: =IF(Benchmarking!$C$9="Yes",AA46-AA69,AA46) -> 231247.39 | AB20: =IF(Benchmarking!$C$9="Yes",AB46-AB69,AB46) -> 97897.78 | AC20: =IF(Benchmarking!$C$9="Yes",AC46-AC69,AC46) -> 1648.07 | AD20: =IF(Benchmarking!$C$9="Yes",AD46-AD69,AD46) -> 83769.98 | AE20: =IF(Benchmarking!$C$9="Yes",AE46-AE69,AE46) -> 14305.82 | AF20: =IF(Benchmarking!$C$9="Yes",AF46-AF69,AF46) -> 26008.49 | AG20: =IF(Benchmarking!$C$9="Yes",AG46-AG69,AG46) -> 145162.71 | AH20: =IF(Benchmarking!$C$9="Yes",AH46-AH69,AH46) -> 138572.48 | AI20: =IF(Benchmarking!$C$9="Yes",AI46-AI69,AI46) -> 107144.94 | AJ20: =IF(Benchmarking!$C$9="Yes",AJ46-AJ69,AJ46) -> 55976.3 | AK20: =IF(Benchmarking!$C$9="Yes",AK46-AK69,AK46) -> 0 | AL20: =IF(Benchmarking!$C$9="Yes",AL46-AL69,AL46) -> 0 | AM20: =IF(Benchmarking!$C$9="Yes",AM46-AM69,AM46) -> 17353 | AN20: =IF(Benchmarking!$C$9="Yes",AN46-AN69,AN46) -> 0 | AO20: =IF(Benchmarking!$C$9="Yes",AO46-AO69,AO46) -> 0 | AP20: =IF(Benchmarking!$C$9="Yes",AP46-AP69,AP46) -> -3558617.87 | AQ20: =IF(Benchmarking!$C$9="Yes",AQ46-AQ69,AQ46) -> -449119.21 | AR20: =IF(Benchmarking!$C$9="Yes",AR46-AR69,AR46) -> -3180552.79 | AS20: =IF(Benchmarking!$C$9="Yes",AS46-AS69,AS46) -> 0 | AT20: =IF(Benchmarking!$C$9="Yes",AT46-AT69,AT46) -> -135435 | AU20: =IF(Benchmarking!$C$9="Yes",AU46-AU69,AU46) -> -96281.28 | AV20: =IF(Benchmarking!$C$9="Yes",AV46-AV69,AV46) -> -445828.69 | AW20: =IF(Benchmarking!$C$9="Yes",AW46-AW69,AW46) -> -3375 | AX20: =IF(Benchmarking!$C$9="Yes",AX46-AX69,AX46) -> -2132.43 | AY20: =IF(Benchmarking!$C$9="Yes",AY46-AY69,AY46) -> -22307.8 | AZ20: =IF(Benchmarking!$C$9="Yes",AZ46-AZ69,AZ46) -> -29400 | BA20: =IF(Benchmarking!$C$9="Yes",BA46-BA69,BA46) -> 0 | BB20: =IF(Benchmarking!$C$9="Yes",BB46-BB69,BB46) -> -3310.52 | BC20: =IF(Benchmarking!$C$9="Yes",BC46-BC69,BC46) -> -6902.5 | BD20: =IF(Benchmarking!$C$9="Yes",BD46-BD69,BD46) -> 0 | BE20: =IF(Benchmarking!$C$9="Yes",BE46-BE69,BE46) -> 0 | BF20: =IF(Benchmarking!$C$9="Yes",BF46-BF69,BF46) -> 0 | BG20: =IF(Benchmarking!$C$9="Yes",BG46-BG69,BG46) -> -43634 | BH20: =IF(Benchmarking!$C$9="Yes",BH46-BH69,BH46) -> 0 | BI20: =IF(Benchmarking!$C$9="Yes",BI46-BI69,BI46) -> 0 | BJ20: =IF(Benchmarking!$C$9="Yes",BJ46-BJ69,BJ46) -> -103846.17
A21: 7070 | B21: Oakley School | C21: 219 | D21: 0 | E21: 218 | F21: 218.1666667 | G21: 437 | H21: 218.1666667 | I21: =IF(Benchmarking!$C$9="Yes",I47-I70,I47) -> 1828300.37 | J21: =IF(Benchmarking!$C$9="Yes",J47-J70,J47) -> 0 | K21: =IF(Benchmarking!$C$9="Yes",K47-K70,K47) -> 1454480.37 | L21: =IF(Benchmarking!$C$9="Yes",L47-L70,L47) -> 108077.38 | M21: =IF(Benchmarking!$C$9="Yes",M47-M70,M47) -> 197368.01 | N21: =IF(Benchmarking!$C$9="Yes",N47-N70,N47) -> 0 | O21: =IF(Benchmarking!$C$9="Yes",O47-O70,O47) -> 98670.92 | P21: =IF(Benchmarking!$C$9="Yes",P47-P70,P47) -> 48690.49 | Q21: =IF(Benchmarking!$C$9="Yes",Q47-Q70,Q47) -> 35264.65 | R21: =IF(Benchmarking!$C$9="Yes",R47-R70,R47) -> 427 | S21: =IF(Benchmarking!$C$9="Yes",S47-S70,S47) -> 17003.64 | T21: =IF(Benchmarking!$C$9="Yes",T47-T70,T47) -> 24713.44 | U21: =IF(Benchmarking!$C$9="Yes",U47-U70,U47) -> 9974.93 | V21: =IF(Benchmarking!$C$9="Yes",V47-V70,V47) -> 92677.98 | W21: =IF(Benchmarking!$C$9="Yes",W47-W70,W47) -> 12633.23 | X21: =IF(Benchmarking!$C$9="Yes",X47-X70,X47) -> 105493.08 | Y21: =IF(Benchmarking!$C$9="Yes",Y47-Y70,Y47) -> 0 | Z21: =IF(Benchmarking!$C$9="Yes",Z47-Z70,Z47) -> 54604.65 | AA21: =IF(Benchmarking!$C$9="Yes",AA47-AA70,AA47) -> 212439.01 | AB21: =IF(Benchmarking!$C$9="Yes",AB47-AB70,AB47) -> 11476.41 | AC21: =IF(Benchmarking!$C$9="Yes",AC47-AC70,AC47) -> 1663.25 | AD21: =IF(Benchmarking!$C$9="Yes",AD47-AD70,AD47) -> 48041.19 | AE21: =IF(Benchmarking!$C$9="Yes",AE47-AE70,AE47) -> 10640.88 | AF21: =IF(Benchmarking!$C$9="Yes",AF47-AF70,AF47) -> 10241.25 | AG21: =IF(Benchmarking!$C$9="Yes",AG47-AG70,AG47) -> 68157.16 | AH21: =IF(Benchmarking!$C$9="Yes",AH47-AH70,AH47) -> 400223.59 | AI21: =IF(Benchmarking!$C$9="Yes",AI47-AI70,AI47) -> 145406.71 | AJ21: =IF(Benchmarking!$C$9="Yes",AJ47-AJ70,AJ47) -> 74770.33 | AK21: =IF(Benchmarking!$C$9="Yes",AK47-AK70,AK47) -> 0 | AL21: =IF(Benchmarking!$C$9="Yes",AL47-AL70,AL47) -> 0 | AM21: =IF(Benchmarking!$C$9="Yes",AM47-AM70,AM47) -> 198485.38 | AN21: =IF(Benchmarking!$C$9="Yes",AN47-AN70,AN47) -> 0 | AO21: =IF(Benchmarking!$C$9="Yes",AO47-AO70,AO47) -> 0 | AP21: =IF(Benchmarking!$C$9="Yes",AP47-AP70,AP47) -> -2093585.82 | AQ21: =IF(Benchmarking!$C$9="Yes",AQ47-AQ70,AQ47) -> -550699.69 | AR21: =IF(Benchmarking!$C$9="Yes",AR47-AR70,AR47) -> -1647141.47 | AS21: =IF(Benchmarking!$C$9="Yes",AS47-AS70,AS47) -> 0 | AT21: =IF(Benchmarking!$C$9="Yes",AT47-AT70,AT47) -> -93395 | AU21: =IF(Benchmarking!$C$9="Yes",AU47-AU70,AU47) -> -62955.63 | AV21: =IF(Benchmarking!$C$9="Yes",AV47-AV70,AV47) -> -561.1 | AW21: =IF(Benchmarking!$C$9="Yes",AW47-AW70,AW47) -> 0 | AX21: =IF(Benchmarking!$C$9="Yes",AX47-AX70,AX47) -> -367523.99 | AY21: =IF(Benchmarking!$C$9="Yes",AY47-AY70,AY47) -> -24122.67 | AZ21: =IF(Benchmarking!$C$9="Yes",AZ47-AZ70,AZ47) -> 0 | BA21: =IF(Benchmarking!$C$9="Yes",BA47-BA70,BA47) -> -16772.15 | BB21: =IF(Benchmarking!$C$9="Yes",BB47-BB70,BB47) -> -31013.6 | BC21: =IF(Benchmarking!$C$9="Yes",BC47-BC70,BC47) -> -19066.22 | BD21: =IF(Benchmarking!$C$9="Yes",BD47-BD70,BD47) -> 0 | BE21: =IF(Benchmarking!$C$9="Yes",BE47-BE70,BE47) -> 0 | BF21: =IF(Benchmarking!$C$9="Yes",BF47-BF70,BF47) -> 0 | BG21: =IF(Benchmarking!$C$9="Yes",BG47-BG70,BG47) -> -24974 | BH21: =IF(Benchmarking!$C$9="Yes",BH47-BH70,BH47) -> 0 | BI21: =IF(Benchmarking!$C$9="Yes",BI47-BI70,BI47) -> 0 | BJ21: =IF(Benchmarking!$C$9="Yes",BJ47-BJ70,BJ47) -> -76637.53
A22: 7072 | B22: Meadowfield School | C22: 410 | D22: 0 | E22: 365.6666667 | F22: 388.5833333 | G22: 775.6666667 | H22: 388.5833333 | I22: =IF(Benchmarking!$C$9="Yes",I48-I71,I48) -> 3824456.54 | J22: =IF(Benchmarking!$C$9="Yes",J48-J71,J48) -> 36822.67 | K22: =IF(Benchmarking!$C$9="Yes",K48-K71,K48) -> 3100937.63 | L22: =IF(Benchmarking!$C$9="Yes",L48-L71,L48) -> 127685.22 | M22: =IF(Benchmarking!$C$9="Yes",M48-M71,M48) -> 497399.14 | N22: =IF(Benchmarking!$C$9="Yes",N48-N71,N48) -> 0 | O22: =IF(Benchmarking!$C$9="Yes",O48-O71,O48) -> 447045.7 | P22: =IF(Benchmarking!$C$9="Yes",P48-P71,P48) -> 30937.07 | Q22: =IF(Benchmarking!$C$9="Yes",Q48-Q71,Q48) -> 42644.33 | R22: =IF(Benchmarking!$C$9="Yes",R48-R71,R48) -> 749.33 | S22: =IF(Benchmarking!$C$9="Yes",S48-S71,S48) -> 30810.96 | T22: =IF(Benchmarking!$C$9="Yes",T48-T71,T48) -> 200848.98 | U22: =IF(Benchmarking!$C$9="Yes",U48-U71,U48) -> 4239.36 | V22: =IF(Benchmarking!$C$9="Yes",V48-V71,V48) -> 139833.99 | W22: =IF(Benchmarking!$C$9="Yes",W48-W71,W48) -> 27985.79 | X22: =IF(Benchmarking!$C$9="Yes",X48-X71,X48) -> 158795.42 | Y22: =IF(Benchmarking!$C$9="Yes",Y48-Y71,Y48) -> 0 | Z22: =IF(Benchmarking!$C$9="Yes",Z48-Z71,Z48) -> 83746.63 | AA22: =IF(Benchmarking!$C$9="Yes",AA48-AA71,AA48) -> 139917.4 | AB22: =IF(Benchmarking!$C$9="Yes",AB48-AB71,AB48) -> 82455.83 | AC22: =IF(Benchmarking!$C$9="Yes",AC48-AC71,AC48) -> 6217.9 | AD22: =IF(Benchmarking!$C$9="Yes",AD48-AD71,AD48) -> 37355.54 | AE22: =IF(Benchmarking!$C$9="Yes",AE48-AE71,AE48) -> 17325.25 | AF22: =IF(Benchmarking!$C$9="Yes",AF48-AF71,AF48) -> 8111.38 | AG22: =IF(Benchmarking!$C$9="Yes",AG48-AG71,AG48) -> 79042.41 | AH22: =IF(Benchmarking!$C$9="Yes",AH48-AH71,AH48) -> 511612.42 | AI22: =IF(Benchmarking!$C$9="Yes",AI48-AI71,AI48) -> 146047.08 | AJ22: =IF(Benchmarking!$C$9="Yes",AJ48-AJ71,AJ48) -> 76193.71 | AK22: =IF(Benchmarking!$C$9="Yes",AK48-AK71,AK48) -> 0 | AL22: =IF(Benchmarking!$C$9="Yes",AL48-AL71,AL48) -> 0 | AM22: =IF(Benchmarking!$C$9="Yes",AM48-AM71,AM48) -> 178409.19 | AN22: =IF(Benchmarking!$C$9="Yes",AN48-AN71,AN48) -> 0 | AO22: =IF(Benchmarking!$C$9="Yes",AO48-AO71,AO48) -> 0 | AP22: =IF(Benchmarking!$C$9="Yes",AP48-AP71,AP48) -> -3998542.03 | AQ22: =IF(Benchmarking!$C$9="Yes",AQ48-AQ71,AQ48) -> -450126.55 | AR22: =IF(Benchmarking!$C$9="Yes",AR48-AR71,AR48) -> -3682294.26 | AS22: =IF(Benchmarking!$C$9="Yes",AS48-AS71,AS48) -> 0 | AT22: =IF(Benchmarking!$C$9="Yes",AT48-AT71,AT48) -> -220503.75 | AU22: =IF(Benchmarking!$C$9="Yes",AU48-AU71,AU48) -> -726654.21 | AV22: =IF(Benchmarking!$C$9="Yes",AV48-AV71,AV48) -> -226003.51 | AW22: =IF(Benchmarking!$C$9="Yes",AW48-AW71,AW48) -> -25609.1 | AX22: =IF(Benchmarking!$C$9="Yes",AX48-AX71,AX48) -> -122158.62 | AY22: =IF(Benchmarking!$C$9="Yes",AY48-AY71,AY48) -> 0 | AZ22: =IF(Benchmarking!$C$9="Yes",AZ48-AZ71,AZ48) -> -28195.68 | BA22: =IF(Benchmarking!$C$9="Yes",BA48-BA71,BA48) -> -38677.93 | BB22: =IF(Benchmarking!$C$9="Yes",BB48-BB71,BB48) -> -1128.62 | BC22: =IF(Benchmarking!$C$9="Yes",BC48-BC71,BC48) -> -22450.02 | BD22: =IF(Benchmarking!$C$9="Yes",BD48-BD71,BD48) -> 0 | BE22: =IF(Benchmarking!$C$9="Yes",BE48-BE71,BE48) -> 0 | BF22: =IF(Benchmarking!$C$9="Yes",BF48-BF71,BF48) -> 0 | BG22: =IF(Benchmarking!$C$9="Yes",BG48-BG71,BG48) -> -36226 | BH22: =IF(Benchmarking!$C$9="Yes",BH48-BH71,BH48) -> 0 | BI22: =IF(Benchmarking!$C$9="Yes",BI48-BI71,BI48) -> 0 | BJ22: =IF(Benchmarking!$C$9="Yes",BJ48-BJ71,BJ48) -> -117684.2
A23: 7073 | B23: Laleham Gap School | C23: 225 | D23: 0 | E23: 201.6666667 | F23: 222.6666667 | G23: 426.6666667 | H23: 222.6666667 | I23: =IF(Benchmarking!$C$9="Yes",I49-I72,I49) -> 2715508.91 | J23: =IF(Benchmarking!$C$9="Yes",J49-J72,J49) -> 0 | K23: =IF(Benchmarking!$C$9="Yes",K49-K72,K49) -> 1806113.73 | L23: =IF(Benchmarking!$C$9="Yes",L49-L72,L49) -> 161591.27 | M23: =IF(Benchmarking!$C$9="Yes",M49-M72,M49) -> 282465.9 | N23: =IF(Benchmarking!$C$9="Yes",N49-N72,N49) -> 107976.38 | O23: =IF(Benchmarking!$C$9="Yes",O49-O72,O49) -> 0 | P23: =IF(Benchmarking!$C$9="Yes",P49-P72,P49) -> 15626.81 | Q23: =IF(Benchmarking!$C$9="Yes",Q49-Q72,Q49) -> 90812.36 | R23: =IF(Benchmarking!$C$9="Yes",R49-R72,R49) -> 405.83 | S23: =IF(Benchmarking!$C$9="Yes",S49-S72,S49) -> 18359.94 | T23: =IF(Benchmarking!$C$9="Yes",T49-T72,T49) -> 71608.71 | U23: =IF(Benchmarking!$C$9="Yes",U49-U72,U49) -> 14163.71 | V23: =IF(Benchmarking!$C$9="Yes",V49-V72,V49) -> 11840.66 | W23: =IF(Benchmarking!$C$9="Yes",W49-W72,W49) -> 8252.74 | X23: =IF(Benchmarking!$C$9="Yes",X49-X72,X49) -> 58725.15 | Y23: =IF(Benchmarking!$C$9="Yes",Y49-Y72,Y49) -> 0 | Z23: =IF(Benchmarking!$C$9="Yes",Z49-Z72,Z49) -> 28376.51 | AA23: =IF(Benchmarking!$C$9="Yes",AA49-AA72,AA49) -> 123342.34 | AB23: =IF(Benchmarking!$C$9="Yes",AB49-AB72,AB49) -> 84808.07 | AC23: =IF(Benchmarking!$C$9="Yes",AC49-AC72,AC49) -> 26359.22 | AD23: =IF(Benchmarking!$C$9="Yes",AD49-AD72,AD49) -> 78531.52 | AE23: =IF(Benchmarking!$C$9="Yes",AE49-AE72,AE49) -> 9025.51 | AF23: =IF(Benchmarking!$C$9="Yes",AF49-AF72,AF49) -> 0 | AG23: =IF(Benchmarking!$C$9="Yes",AG49-AG72,AG49) -> 63370.62 | AH23: =IF(Benchmarking!$C$9="Yes",AH49-AH72,AH49) -> 0 | AI23: =IF(Benchmarking!$C$9="Yes",AI49-AI72,AI49) -> 260447.94 | AJ23: =IF(Benchmarking!$C$9="Yes",AJ49-AJ72,AJ49) -> 84747.1 | AK23: =IF(Benchmarking!$C$9="Yes",AK49-AK72,AK49) -> 0 | AL23: =IF(Benchmarking!$C$9="Yes",AL49-AL72,AL49) -> 0 | AM23: =IF(Benchmarking!$C$9="Yes",AM49-AM72,AM49) -> 0 | AN23: =IF(Benchmarking!$C$9="Yes",AN49-AN72,AN49) -> 0 | AO23: =IF(Benchmarking!$C$9="Yes",AO49-AO72,AO49) -> 0 | AP23: =IF(Benchmarking!$C$9="Yes",AP49-AP72,AP49) -> -2376416.58 | AQ23: =IF(Benchmarking!$C$9="Yes",AQ49-AQ72,AQ49) -> -131506.75 | AR23: =IF(Benchmarking!$C$9="Yes",AR49-AR72,AR49) -> -2549602.11 | AS23: =IF(Benchmarking!$C$9="Yes",AS49-AS72,AS49) -> 0 | AT23: =IF(Benchmarking!$C$9="Yes",AT49-AT72,AT49) -> -167115 | AU23: =IF(Benchmarking!$C$9="Yes",AU49-AU72,AU49) -> -707809.6 | AV23: =IF(Benchmarking!$C$9="Yes",AV49-AV72,AV49) -> -54654.28 | AW23: =IF(Benchmarking!$C$9="Yes",AW49-AW72,AW49) -> -1870 | AX23: =IF(Benchmarking!$C$9="Yes",AX49-AX72,AX49) -> -196.96 | AY23: =IF(Benchmarking!$C$9="Yes",AY49-AY72,AY49) -> -12480.7 | AZ23: =IF(Benchmarking!$C$9="Yes",AZ49-AZ72,AZ49) -> 0 | BA23: =IF(Benchmarking!$C$9="Yes",BA49-BA72,BA49) -> 0 | BB23: =IF(Benchmarking!$C$9="Yes",BB49-BB72,BB49) -> -19.01 | BC23: =IF(Benchmarking!$C$9="Yes",BC49-BC72,BC49) -> -2099.99 | BD23: =IF(Benchmarking!$C$9="Yes",BD49-BD72,BD49) -> 0 | BE23: =IF(Benchmarking!$C$9="Yes",BE49-BE72,BE49) -> 0 | BF23: =IF(Benchmarking!$C$9="Yes",BF49-BF72,BF49) -> 0 | BG23: =IF(Benchmarking!$C$9="Yes",BG49-BG72,BG49) -> -24398 | BH23: =IF(Benchmarking!$C$9="Yes",BH49-BH72,BH49) -> 0 | BI23: =IF(Benchmarking!$C$9="Yes",BI49-BI72,BI49) -> 0 | BJ23: =IF(Benchmarking!$C$9="Yes",BJ49-BJ72,BJ49) -> -116964.26
I25: E01 | J25: E02 | K25: E03 | L25: E04 | M25: E05 | N25: E06 | O25: E07 | P25: E08 | Q25: E09 | R25: E10 | S25: E11 | T25: E12 | U25: E13 | V25: E14 | W25: E15 | X25: E16 | Y25: E17 | Z25: E18 | AA25: E19 | AB25: E20 | AC25: E21 | AD25: E22 | AE25: E23 | AF25: E24 | AG25: E25 | AH25: E26 | AI25: E27 | AJ25: E28 | AK25: E28B | AL25: E29 | AM25: E30 | AN25: E31 | AO25: E32 | AP25: I01 | AQ25: I02 | AR25: I03 | AS25: I04 | AT25: I05 | AU25: I06 | AV25: I07 | AW25: I08 | AX25: I08b | AY25: I09 | AZ25: I10 | BA25: I11 | BB25: I12 | BC25: I13 | BD25: I15 | BE25: I16 | BF25: I17 | BG25: I18 | BH25: I18A | BI25: I18B | BJ25: I18C
I26: 35 | J26: 36 | K26: 37 | L26: 38 | M26: 39 | N26: 40 | O26: 41 | P26: 42 | Q26: 43 | R26: 44 | S26: 45 | T26: 46 | U26: 47 | V26: 48 | W26: 49 | X26: 50 | Y26: 51 | Z26: 52 | AA26: 53 | AB26: 54 | AC26: 55 | AD26: 56 | AE26: 57 | AF26: 58 | AG26: 59 | AH26: 60 | AI26: 61 | AJ26: 62 | AK26: 63 | AL26: 64 | AM26: 65 | AN26: 66 | AO26: 67 | AP26: 72 | AQ26: 73 | AR26: 74 | AS26: 75 | AT26: 76 | AU26: 77 | AV26: 78 | AW26: 79 | AX26: 80 | AY26: 81 | AZ26: 82 | BA26: 83 | BB26: 84 | BC26: 85 | BD26: 87 | BE26: 88 | BF26: 89 | BG26: 90 | BH26: 91 | BI26: 92 | BJ26: 93
H28: =Benchmarking!C1&" All" -> 2023-24 All | I28: E01 | J28: E02 | K28: E03 | L28: E04 | M28: E05 | N28: E06 | O28: E07 | P28: E08 | Q28: E09 | R28: E10 | S28: E11 | T28: E12 | U28: E13 | V28: E14 | W28: E15 | X28: E16 | Y28: E17 | Z28: E18 | AA28: E19 | AB28: E20 | AC28: E21 | AD28: E22 | AE28: E23 | AF28: E24 | AG28: E25 | AH28: E26 | AI28: E27 | AJ28: E28 | AK28: E28B | AL28: E29 | AM28: E30 | AN28: E31 | AO28: E32 | AP28: I01 | AQ28: I02 | AR28: I03 | AS28: I04 | AT28: I05 | AU28: I06 | AV28: I07 | AW28: I08 | AX28: I08b | AY28: I09 | AZ28: I10 | BA28: I11 | BB28: I12 | BC28: I13 | BD28: I15 | BE28: I16 | BF28: I17 | BG28: I18 | BH28: I18A | BI28: I18B | BJ28: I18C
F29: All Funds These figures are taken from the Closedown checking sheet | H29: 7002 | I29: 3901835.83 | J29: 0 | K29: 2436117.08 | L29: 215343.78 | M29: 736356.39 | N29: 112376.01 | O29: 357470.28 | P29: 49451.82 | Q29: 10965.42 | R29: 704.83 | S29: 23013.72 | T29: 172389.95 | U29: 60873.48 | V29: 131898.46 | W29: 19684.6 | X29: 225245.14 | Y29: 2080.45 | Z29: 36854.79 | AA29: 391182.65 | AB29: 194786.92 | AC29: 26700.25 | AD29: 60321.68 | AE29: 15661.38 | AF29: 22246.78 | AG29: 207002.24 | AH29: 99943.49 | AI29: 378193.15 | AJ29: 144228.99 | AK29: 0 | AL29: 48801.8 | AM29: 128046.36 | AN29: 0 | AO29: 0 | AP29: -3099772.03 | AQ29: -1102442.03 | AR29: -4815958.49 | AS29: 0 | AT29: -113347.99 | AU29: -331964.43 | AV29: -509058.3 | AW29: 0 | AX29: -23104.96 | AY29: -21101.2 | AZ29: 0 | BA29: -12378.75 | BB29: -1653 | BC29: 0 | BD29: 0 | BE29: 0 | BF29: 0 | BG29: 0 | BH29: 0 | BI29: 0 | BJ29: -158655.69
H30: 7021 | I30: 2013536.62 | J30: 5292.73 | K30: 3384039.06 | L30: 387067.6 | M30: 537474.41 | N30: 88336.02 | O30: 678733.91 | P30: 69354.73 | Q30: 28911.4 | R30: 220 | S30: 7790.76 | T30: 60029.53 | U30: 10770.05 | V30: 32447.61 | W30: 18180.37 | X30: 350862.15 | Y30: 1743.42 | Z30: 52202.09 | AA30: 47370.11 | AB30: 87187.28 | AC30: 5872.6 | AD30: 201568.44 | AE30: 6667.9 | AF30: 12623.75 | AG30: 102778 | AH30: 0 | AI30: 497190.37 | AJ30: 83839.19 | AK30: 0 | AL30: 0 | AM30: 1421.02 | AN30: 0 | AO30: 49434.04 | AP30: -1073760.11 | AQ30: -304655.87 | AR30: -4853694.31 | AS30: 0 | AT30: -30910 | AU30: -267703.68 | AV30: -1301867.02 | AW30: -9741.7 | AX30: -317537.95 | AY30: -19177.66 | AZ30: 0 | BA30: 0 | BB30: -93.5 | BC30: -14520.87 | BD30: 0 | BE30: 0 | BF30: -50000 | BG30: -18801 | BH30: 0 | BI30: 0 | BJ30: -31296.79
H31: 7032 | I31: 2226362.78 | J31: 21854 | K31: 2045441.61 | L31: 84844.03 | M31: 287671.16 | N31: 51681.47 | O31: 494.22 | P31: 29820.09 | Q31: 26156.34 | R31: 450 | S31: 20884.44 | T31: 103651.76 | U31: 25912.76 | V31: 84037.92 | W31: 24114.29 | X31: 84934.05 | Y31: 0 | Z31: 81511.47 | AA31: 100975.41 | AB31: 109913.1 | AC31: 9235.67 | AD31: 56418.06 | AE31: 10165.65 | AF31: 51252.52 | AG31: 56993.36 | AH31: 850 | AI31: 192778.6 | AJ31: 34297.09 | AK31: 0 | AL31: 0 | AM31: 65891.2 | AN31: 0 | AO31: 0 | AP31: -2613274.36 | AQ31: 0 | AR31: -2277313.85 | AS31: 0 | AT31: -230522 | AU31: -64650.27 | AV31: -12365.14 | AW31: -9255.07 | AX31: -275948.22 | AY31: -12689.05 | AZ31: 0 | BA31: -13525.45 | BB31: -20839.4 | BC31: -55589.38 | BD31: 0 | BE31: 0 | BF31: 0 | BG31: -17554 | BH31: 0 | BI31: 0 | BJ31: -147153.17
H32: 7033 | I32: 1330176.06 | J32: 0 | K32: 641460.05 | L32: 39194.64 | M32: 197966.6 | N32: 43362.85 | O32: 48993.91 | P32: 915.45 | Q32: 8330.05 | R32: 215.33 | S32: 9741 | T32: 51816.32 | U32: 5377.62 | V32: 53120.81 | W32: 4604.78 | X32: 47556.92 | Y32: 0 | Z32: 9056.24 | AA32: 78597.03 | AB32: 33475.09 | AC32: 5381.41 | AD32: 6122.96 | AE32: 5500.74 | AF32: 12376.79 | AG32: 35428.16 | AH32: 67563.86 | AI32: 122327.69 | AJ32: 30708.91 | AK32: 0 | AL32: 0 | AM32: 215200.75 | AN32: 0 | AO32: 0 | AP32: -1197176.48 | AQ32: 0 | AR32: -1279644.5 | AS32: 0 | AT32: -107716.5 | AU32: -28192.42 | AV32: -99653.16 | AW32: -12425 | AX32: -1768.29 | AY32: -4681.56 | AZ32: -8079.2 | BA32: 0 | BB32: -777.65 | BC32: -2597.43 | BD32: 0 | BE32: 0 | BF32: 0 | BG32: -16343 | BH32: 0 | BI32: 0 | BJ32: -68923
H33: 7039 | I33: 2913504.68 | J33: 16570.1 | K33: 2542734.1 | L33: 175074.57 | M33: 409311.02 | N33: 66946.2 | O33: 0 | P33: 22819.44 | Q33: 37763.31 | R33: 527.5 | S33: 18766.08 | T33: 110167.41 | U33: 5601.09 | V33: 14558.85 | W33: 18341.71 | X33: 120204.1 | Y33: 0 | Z33: 168988.04 | AA33: 139617.42 | AB33: 51850.53 | AC33: 3128.46 | AD33: 30739.84 | AE33: 14924.39 | AF33: 72040.23 | AG33: 82120.76 | AH33: 46559.57 | AI33: 507003.36 | AJ33: 50113.11 | AK33: 0 | AL33: 0 | AM33: 0 | AN33: 0 | AO33: 0 | AP33: -2723156.68 | AQ33: -402355.34 | AR33: -2425267.62 | AS33: 0 | AT33: -119210 | AU33: -382792.06 | AV33: -192788.41 | AW33: 0 | AX33: -1123313.15 | AY33: -20691.23 | AZ33: 0 | BA33: 0 | BB33: -20071.83 | BC33: -21533.14 | BD33: 0 | BE33: 0 | BF33: 0 | BG33: -31483 | BH33: 0 | BI33: 0 | BJ33: -79872.66
H34: 7040 | I34: 2377973.82 | J34: 5391.71 | K34: 2851717.84 | L34: 72140.19 | M34: 306566.61 | N34: 0 | O34: 107429.89 | P34: 34180.53 | Q34: 26749.41 | R34: 484.67 | S34: 19639.2 | T34: 59586.82 | U34: 29089.58 | V34: 107327.91 | W34: 16060.56 | X34: 125439.87 | Y34: 0 | Z34: 167361.64 | AA34: 148728.14 | AB34: 68960.26 | AC34: 3299.9 | AD34: 45300.27 | AE34: 10123.12 | AF34: 52761.15 | AG34: 77185.94 | AH34: 0 | AI34: 20737.93 | AJ34: 27035.92 | AK34: 0 | AL34: 0 | AM34: 0 | AN34: 0 | AO34: 0 | AP34: -2709726.22 | AQ34: -316772.32 | AR34: -2601124.85 | AS34: 0 | AT34: -133800 | AU34: -66969.74 | AV34: -418614.91 | AW34: 0 | AX34: -95935.31 | AY34: -12069 | AZ34: 0 | BA34: -25046.09 | BB34: -286 | BC34: -63222.22 | BD34: 0 | BE34: 0 | BF34: 0 | BG34: -30280 | BH34: 0 | BI34: 0 | BJ34: -75291.89
H35: 7041 | I35: 2748533.94 | J35: 0 | K35: 1102026.61 | L35: 223406.38 | M35: 393651.29 | N35: 32116.2 | O35: 256880.93 | P35: 50842.81 | Q35: 12176.86 | R35: 388.33 | S35: 16516.8 | T35: 27603.62 | U35: 4247.91 | V35: 62236.39 | W35: 6413.72 | X35: 102346.12 | Y35: 0 | Z35: 92826.93 | AA35: 48641.86 | AB35: 47999.86 | AC35: 28338.36 | AD35: 46770.48 | AE35: 14632.51 | AF35: 966607.9 | AG35: 31578.4 | AH35: 61237.64 | AI35: 161480.78 | AJ35: 72198.19 | AK35: 0 | AL35: 0 | AM35: 0 | AN35: 0 | AO35: 0 | AP35: -1888520.68 | AQ35: -387423.47 | AR35: -2183980.23 | AS35: 0 | AT35: -116848 | AU35: -352595.24 | AV35: -212200 | AW35: -3000 | AX35: -1411677.32 | AY35: -4712.4 | AZ35: 0 | BA35: -15115.27 | BB35: -1428 | BC35: -303.2 | BD35: 0 | BE35: 0 | BF35: 0 | BG35: 0 | BH35: 0 | BI35: 0 | BJ35: -79123.44
H36: 7043 | I36: 4012307.43 | J36: 0 | K36: 3761028.47 | L36: 438561.98 | M36: 509083.12 | N36: 116441.48 | O36: 225009.61 | P36: 53183.32 | Q36: 131764.97 | R36: 820.5 | S36: 34039.4 | T36: 78375.83 | U36: 17443.93 | V36: 16971.45 | W36: 11469.35 | X36: 228626.59 | Y36: 0 | Z36: 59641.62 | AA36: 176587.02 | AB36: 26406.92 | AC36: 19025.48 | AD36: 97821.56 | AE36: 13895.35 | AF36: 50558.01 | AG36: 163985.11 | AH36: 6096 | AI36: 138808.13 | AJ36: 83490.98 | AK36: 0 | AL36: 0 | AM36: 20000 | AN36: 0 | AO36: 0 | AP36: -3720094.13 | AQ36: -1125263.79 | AR36: -3695398.99 | AS36: 0 | AT36: -235587 | AU36: -434605.35 | AV36: -217878.44 | AW36: -13527.26 | AX36: -919945.45 | AY36: -20562.42 | AZ36: -8696.12 | BA36: -1292.03 | BB36: -31518.23 | BC36: -11252.33 | BD36: 0 | BE36: 0 | BF36: 0 | BG36: -33153 | BH36: 0 | BI36: 0 | BJ36: -155421.4
H37: 7044 | I37: 2407263.84 | J37: 0 | K37: 750555.75 | L37: 34547.04 | M37: 317377.86 | N37: 47254.66 | O37: 0 | P37: 23647.87 | Q37: 10807.3 | R37: 264 | S37: 13400.52 | T37: 41001.5 | U37: 11824.59 | V37: 51494.78 | W37: 15208.45 | X37: 81785.56 | Y37: 0 | Z37: 10295.91 | AA37: 82446.03 | AB37: 31477.99 | AC37: 15307.03 | AD37: 32876.47 | AE37: 6350.88 | AF37: 199193.73 | AG37: 15182.3 | AH37: 33755.28 | AI37: 517648.06 | AJ37: 132222.79 | AK37: 0 | AL37: 0 | AM37: 0 | AN37: 0 | AO37: 0 | AP37: -1783188.5 | AQ37: 0 | AR37: -1863812.28 | AS37: 0 | AT37: -143480 | AU37: -327139.47 | AV37: -410522.93 | AW37: 0 | AX37: -109718.33 | AY37: -3426.44 | AZ37: 0 | BA37: -39560.5 | BB37: -1056 | BC37: -2564.32 | BD37: 0 | BE37: 0 | BF37: 0 | BG37: -16828 | BH37: 0 | BI37: 0 | BJ37: -99450.11
H38: 7045 | I38: 1746417.99 | J38: 0 | K38: 987080.23 | L38: 153002.09 | M38: 242442.69 | N38: 60009.4 | O38: 930824.13 | P38: 21280.4 | Q38: 16129.25 | R38: 309 | S38: 14640.6 | T38: 23250.3 | U38: 8798.1 | V38: 9610.31 | W38: 3658.06 | X38: 53095.68 | Y38: 0 | Z38: 66592.26 | AA38: 144771.11 | AB38: 30140.69 | AC38: 9517.4 | AD38: 50324.86 | AE38: 41554.45 | AF38: 286881.96 | AG38: 69292.59 | AH38: 67399.21 | AI38: 207317.25 | AJ38: 70123.41 | AK38: 0 | AL38: 0 | AM38: 74458.78 | AN38: 0 | AO38: 0 | AP38: -1704263.76 | AQ38: 0 | AR38: -1502921.75 | AS38: 0 | AT38: -158714 | AU38: -1441234.94 | AV38: -180000 | AW38: 0 | AX38: -31741.02 | AY38: -2090.9 | AZ38: 0 | BA38: -64574.26 | BB38: 0 | BC38: -9 | BD38: 0 | BE38: 0 | BF38: 0 | BG38: -17071 | BH38: 0 | BI38: 0 | BJ38: -96003.31
H39: 7051 | I39: 2766528.74 | J39: 0 | K39: 2090850.16 | L39: 77031.25 | M39: 322976.97 | N39: 0 | O39: 0 | P39: 89565.6 | Q39: 39248.2 | R39: 615.63 | S39: 21422.16 | T39: 107475.32 | U39: 34634.39 | V39: 99107.64 | W39: 56262.57 | X39: 107856.87 | Y39: 0 | Z39: 77554.52 | AA39: 337189.85 | AB39: 58376.12 | AC39: 4450.36 | AD39: 83800.51 | AE39: 14054.83 | AF39: 39810.31 | AG39: 79118.92 | AH39: 2289.5 | AI39: 654013 | AJ39: 101808.49 | AK39: 0 | AL39: 0 | AM39: 136164.34 | AN39: 0 | AO39: 0 | AP39: -2920305.35 | AQ39: -364236.72 | AR39: -3357209.19 | AS39: 0 | AT39: -117000 | AU39: -343853.72 | AV39: -200131.16 | AW39: -8557.5 | AX39: -38479.12 | AY39: -14388.1 | AZ39: 0 | BA39: -28347.61 | BB39: -1322.25 | BC39: -23156.13 | BD39: 0 | BE39: 0 | BF39: 0 | BG39: -36493 | BH39: 0 | BI39: 0 | BJ39: -81241.96
H40: 7052 | I40: 1513788.41 | J40: 0 | K40: 813693.49 | L40: 86378.01 | M40: 211360.8 | N40: 54982 | O40: 105364.17 | P40: 15890.12 | Q40: 18224.77 | R40: 302 | S40: 9880.92 | T40: 31985.11 | U40: 2176.61 | V40: 1579.34 | W40: 5889.25 | X40: 62216.96 | Y40: 0 | Z40: 56038.62 | AA40: 131449.01 | AB40: 7545.49 | AC40: 16371.53 | AD40: 62886.77 | AE40: 8849.11 | AF40: 30761.37 | AG40: 23922.08 | AH40: 138.23 | AI40: 416414.45 | AJ40: 64152.3 | AK40: 0 | AL40: 0 | AM40: 170510.79 | AN40: 0 | AO40: 0 | AP40: -1402930.15 | AQ40: -586126.35 | AR40: -2050283.12 | AS40: 0 | AT40: -44992.5 | AU40: -41039.86 | AV40: -6449.92 | AW40: 0 | AX40: -95698.44 | AY40: -10439.55 | AZ40: 0 | BA40: -2316.9 | BB40: -25271.85 | BC40: -6440.35 | BD40: 0 | BE40: 0 | BF40: 0 | BG40: -13667 | BH40: 0 | BI40: 0 | BJ40: -60567.48
H41: 7056 | I41: 5757205 | J41: 0 | K41: 5657908.52 | L41: 309579.54 | M41: 1221682.64 | N41: 199331.68 | O41: 235389.59 | P41: 138636.73 | Q41: 179131.89 | R41: 1349.67 | S41: 61237.44 | T41: 156786.15 | U41: 24419.35 | V41: 149879.49 | W41: 32913.77 | X41: 223806.01 | Y41: 0 | Z41: 318062.01 | AA41: 531477.16 | AB41: 366671.99 | AC41: 16448.61 | AD41: 155724.41 | AE41: 29379.94 | AF41: 2557 | AG41: 88077.07 | AH41: 314413.06 | AI41: 11827.14 | AJ41: 160495.48 | AK41: 0 | AL41: 0 | AM41: 523961.71 | AN41: 0 | AO41: 0 | AP41: -8315612.06 | AQ41: -737799.76 | AR41: -5647010.12 | AS41: 0 | AT41: -366836.31 | AU41: -475996.55 | AV41: -242200 | AW41: 0 | AX41: -885771.2 | AY41: -53907.12 | AZ41: 0 | BA41: -89455.61 | BB41: -3254.16 | BC41: -165994.7 | BD41: 0 | BE41: 0 | BF41: 0 | BG41: -61548 | BH41: 0 | BI41: 0 | BJ41: -237613.85
H42: 7058 | I42: 1291879.23 | J42: 0 | K42: 1482568.88 | L42: 269737.29 | M42: 180169.93 | N42: 71310.73 | O42: 45382.21 | P42: 25082.65 | Q42: 46284.26 | R42: 203.67 | S42: 8562.12 | T42: 204812.87 | U42: 23453.79 | V42: 15505.58 | W42: 8677.01 | X42: 121186.89 | Y42: 0 | Z42: 75415.64 | AA42: 106756.32 | AB42: 42755.35 | AC42: 0 | AD42: 32975.23 | AE42: 5308.89 | AF42: 2095.93 | AG42: 33473.55 | AH42: 2730 | AI42: 287555.39 | AJ42: 49841.05 | AK42: 0 | AL42: 0 | AM42: 227956.26 | AN42: 0 | AO42: 0 | AP42: -1105253.21 | AQ42: -108169.3 | AR42: -3080010.22 | AS42: 0 | AT42: -81493 | AU42: -27205.84 | AV42: -267844.12 | AW42: -9075.48 | AX42: -2167.94 | AY42: -1592.8 | AZ42: 0 | BA42: -8078.72 | BB42: -80 | BC42: -2933.13 | BD42: 0 | BE42: 0 | BF42: 0 | BG42: -18686 | BH42: 0 | BI42: 0 | BJ42: -29962.45
H43: 7062 | I43: 1375167.52 | J43: 0 | K43: 687945.12 | L43: 41550.18 | M43: 196492.01 | N43: 0 | O43: 0 | P43: 14388.14 | Q43: 11321.69 | R43: 194.17 | S43: 1133.16 | T43: 42138.71 | U43: 9519.56 | V43: 4427.23 | W43: 3010.09 | X43: 57183.43 | Y43: 0 | Z43: 5612.3 | AA43: 45281.82 | AB43: 23396.15 | AC43: 3298.07 | AD43: 40196.52 | AE43: 6261.81 | AF43: 10413.99 | AG43: 38854.59 | AH43: 46604.2 | AI43: 73071.97 | AJ43: 74820.18 | AK43: 0 | AL43: 0 | AM43: 234207.35 | AN43: 0 | AO43: 0 | AP43: -1164853.22 | AQ43: 0 | AR43: -1281373.41 | AS43: 0 | AT43: -103185 | AU43: -29476.19 | AV43: -329085.84 | AW43: 0 | AX43: -15356.78 | AY43: -4007.92 | AZ43: 0 | BA43: 0 | BB43: -84 | BC43: -9.84 | BD43: 0 | BE43: 0 | BF43: 0 | BG43: -16324 | BH43: 0 | BI43: 0 | BJ43: -39468.32
H44: 7063 | I44: 3266994.5 | J44: 0 | K44: 3383404.45 | L44: 153841.11 | M44: 237415.25 | N44: 83681.44 | O44: 20367.01 | P44: 81087.77 | Q44: 82094.84 | R44: 697.5 | S44: 28609.32 | T44: 11375.67 | U44: 8378.27 | V44: 18505.66 | W44: 10040.71 | X44: 142411.67 | Y44: 0 | Z44: 248251.91 | AA44: 175943.3 | AB44: 87752.66 | AC44: 3262.4 | AD44: 10763.49 | AE44: 15161.68 | AF44: 112066.69 | AG44: 59623.86 | AH44: 34200.8 | AI44: 160347.71 | AJ44: 60011.8 | AK44: 0 | AL44: 0 | AM44: 21267.32 | AN44: 0 | AO44: 0 | AP44: -3645670.07 | AQ44: -447291.47 | AR44: -3145714.75 | AS44: 0 | AT44: -194025.93 | AU44: -580108.28 | AV44: -21954.77 | AW44: -15576.57 | AX44: -166814.55 | AY44: -22164.35 | AZ44: 0 | BA44: -32203.52 | BB44: -17594.19 | BC44: -2764.39 | BD44: 0 | BE44: 0 | BF44: 0 | BG44: -31030 | BH44: 0 | BI44: 0 | BJ44: -118621.92
H45: 7067 | I45: 1339403.69 | J45: 0 | K45: 451566.25 | L45: 59334.02 | M45: 82732.83 | N45: 35007.68 | O45: 0 | P45: 11528.99 | Q45: 9197.18 | R45: 160 | S45: 6698.16 | T45: 6243.13 | U45: 2484.36 | V45: 4910.43 | W45: 4514.71 | X45: 58498.65 | Y45: 0 | Z45: 14488.81 | AA45: 53386.94 | AB45: 18331.72 | AC45: 10839.88 | AD45: 7526.97 | AE45: 3747.16 | AF45: 1824.9 | AG45: 28343.9 | AH45: 0 | AI45: 17252.21 | AJ45: 26464.7 | AK45: 0 | AL45: 0 | AM45: 0 | AN45: 0 | AO45: 0 | AP45: -893938.45 | AQ45: 0 | AR45: -1221421.3 | AS45: 0 | AT45: -50363 | AU45: -23632.34 | AV45: -6360 | AW45: 0 | AX45: -988.86 | AY45: 0 | AZ45: 0 | BA45: -15438.95 | BB45: -1620 | BC45: -1584.28 | BD45: 0 | BE45: 0 | BF45: 0 | BG45: 0 | BH45: 0 | BI45: 0 | BJ45: -52955.19
H46: 7069 | I46: 2854344.07 | J46: 69867 | K46: 3133676.65 | L46: 148607.44 | M46: 299471.48 | N46: 0 | O46: 0 | P46: 17772.72 | Q46: 49165.64 | R46: 25356.09 | S46: 27016.32 | T46: 147154.05 | U46: 17730.17 | V46: 57253.24 | W46: 21526.88 | X46: 156199.15 | Y46: 0 | Z46: 76982.99 | AA46: 231247.39 | AB46: 97897.78 | AC46: 1648.07 | AD46: 83769.98 | AE46: 14305.82 | AF46: 26008.49 | AG46: 145162.71 | AH46: 138572.48 | AI46: 107144.94 | AJ46: 55976.3 | AK46: 0 | AL46: 0 | AM46: 17353 | AN46: 0 | AO46: 0 | AP46: -3558617.87 | AQ46: -449119.21 | AR46: -3180552.79 | AS46: 0 | AT46: -135435 | AU46: -96281.28 | AV46: -445828.69 | AW46: -3375 | AX46: -2132.43 | AY46: -22307.8 | AZ46: -29400 | BA46: 0 | BB46: -3310.52 | BC46: -6902.5 | BD46: 0 | BE46: 0 | BF46: 0 | BG46: -43634 | BH46: 0 | BI46: 0 | BJ46: -103846.17
H47: 7070 | I47: 1828300.37 | J47: 0 | K47: 1454480.37 | L47: 108077.38 | M47: 197368.01 | N47: 0 | O47: 98670.92 | P47: 48690.49 | Q47: 35264.65 | R47: 427 | S47: 17003.64 | T47: 24713.44 | U47: 9974.93 | V47: 92677.98 | W47: 12633.23 | X47: 105493.08 | Y47: 0 | Z47: 54604.65 | AA47: 212439.01 | AB47: 11476.41 | AC47: 1663.25 | AD47: 48041.19 | AE47: 10640.88 | AF47: 10241.25 | AG47: 68157.16 | AH47: 400223.59 | AI47: 145406.71 | AJ47: 74770.33 | AK47: 0 | AL47: 0 | AM47: 198485.38 | AN47: 0 | AO47: 0 | AP47: -2093585.82 | AQ47: -550699.69 | AR47: -1647141.47 | AS47: 0 | AT47: -93395 | AU47: -62955.63 | AV47: -561.1 | AW47: 0 | AX47: -367523.99 | AY47: -24122.67 | AZ47: 0 | BA47: -16772.15 | BB47: -31013.6 | BC47: -19066.22 | BD47: 0 | BE47: 0 | BF47: 0 | BG47: -24974 | BH47: 0 | BI47: 0 | BJ47: -76637.53
H48: 7072 | I48: 3824456.54 | J48: 36822.67 | K48: 3100937.63 | L48: 127685.22 | M48: 497399.14 | N48: 0 | O48: 447045.7 | P48: 30937.07 | Q48: 42644.33 | R48: 749.33 | S48: 30810.96 | T48: 200848.98 | U48: 4239.36 | V48: 139833.99 | W48: 27985.79 | X48: 158795.42 | Y48: 0 | Z48: 83746.63 | AA48: 139917.4 | AB48: 82455.83 | AC48: 6217.9 | AD48: 37355.54 | AE48: 17325.25 | AF48: 8111.38 | AG48: 79042.41 | AH48: 511612.42 | AI48: 146047.08 | AJ48: 76193.71 | AK48: 0 | AL48: 0 | AM48: 178409.19 | AN48: 0 | AO48: 0 | AP48: -3998542.03 | AQ48: -450126.55 | AR48: -3682294.26 | AS48: 0 | AT48: -220503.75 | AU48: -726654.21 | AV48: -226003.51 | AW48: -25609.1 | AX48: -122158.62 | AY48: 0 | AZ48: -28195.68 | BA48: -38677.93 | BB48: -1128.62 | BC48: -22450.02 | BD48: 0 | BE48: 0 | BF48: 0 | BG48: -36226 | BH48: 0 | BI48: 0 | BJ48: -117684.2
H49: 7073 | I49: 2715508.91 | J49: 0 | K49: 1806113.73 | L49: 161591.27 | M49: 282465.9 | N49: 107976.38 | O49: 0 | P49: 15626.81 | Q49: 90812.36 | R49: 405.83 | S49: 18359.94 | T49: 71608.71 | U49: 14163.71 | V49: 11840.66 | W49: 8252.74 | X49: 58725.15 | Y49: 0 | Z49: 28376.51 | AA49: 123342.34 | AB49: 84808.07 | AC49: 26359.22 | AD49: 78531.52 | AE49: 9025.51 | AF49: 0 | AG49: 63370.62 | AH49: 0 | AI49: 260447.94 | AJ49: 84747.1 | AK49: 0 | AL49: 0 | AM49: 0 | AN49: 0 | AO49: 0 | AP49: -2376416.58 | AQ49: -131506.75 | AR49: -2549602.11 | AS49: 0 | AT49: -167115 | AU49: -707809.6 | AV49: -54654.28 | AW49: -1870 | AX49: -196.96 | AY49: -12480.7 | AZ49: 0 | BA49: 0 | BB49: -19.01 | BC49: -2099.99 | BD49: 0 | BE49: 0 | BF49: 0 | BG49: -24398 | BH49: 0 | BI49: 0 | BJ49: -116964.26
I50: 2 | J50: 3 | K50: 4 | L50: 5 | M50: 6 | O50: 7 | P50: 8 | Q50: 9 | T50: 10 | Z50: 11 | AA50: 12 | AB50: 13 | AD50: 14 | AF50: 15 | AG50: 16 | AI50: 17 | AJ50: 18 | AK50: 19 | AU50: 20 | AV50: 21 | AW50: 22
H51: =Benchmarking!C1&" Fund 50" -> 2023-24 Fund 50 | I51: E01-50 | J51: E02-50 | K51: E03-50 | L51: E04-50 | M51: E05-50 | N51: E06-50 | O51: E07-50 | P51: E08-50 | Q51: E09-50 | R51: E10-50 | S51: E11-50 | T51: E12-50 | U51: E13-50 | V51: E14-50 | W51: E15-50 | X51: E16-50 | Y51: E17-50 | Z51: E18-50 | AA51: E19-50 | AB51: E20-50 | AC51: E21-50 | AD51: E22-50 | AE51: E23-50 | AF51: E24-50 | AG51: E25-50 | AH51: E26-50 | AI51: E27-50 | AJ51: E28-50 | AK51: E28B-50 | AL51: E29-50 | AM51: E30-50 | AN51: E31-50 | AO51: E32-50 | AP51: I01-50 | AQ51: I02-50 | AR51: I03-50 | AS51: I04-50 | AT51: I05-50 | AU51: I06-50 | AV51: I07-50 | AW51: I08-50 | AX51: I08b-50 | AY51: I09-50 | AZ51: I10-50 | BA51: I11-50 | BB51: I12-50 | BC51: I13-50 | BD51: I15-50 | BE51: I16-50 | BF51: I17-50 | BG51: I18-50 | BH51: I18A-50 | BI51: I18B-50 | BJ51: I18C-50
F52: Fund 50 These figures are taken from the School I&E Report | H52: 7002 | I52: 337245.29 | J52: 0 | K52: 0 | L52: 0 | M52: 30021.15 | N52: 0 | O52: 0 | P52: 5443.33 | Q52: 656.02 | R52: 0 | S52: 0 | T52: 0 | U52: 0 | V52: 0 | W52: 0 | X52: 0 | Y52: 0 | Z52: 0 | AA52: 902.39 | AB52: 1050.17 | AC52: 0 | AD52: 0 | AE52: 0 | AF52: 8400 | AG52: 0 | AH52: 0 | AI52: 307.5 | AJ52: 0 | AK52: 0 | AL52: 0 | AM52: 0 | AN52: 0 | AO52: 0 | AP52: -12662.69 | AQ52: 0 | AR52: 0 | AS52: 0 | AT52: 0 | AU52: -214800 | AV52: -150000 | AW52: 0 | AX52: -3008.51 | AY52: 0 | AZ52: 0 | BA52: 0 | BB52: 0 | BC52: 0 | BD52: 0 | BE52: 0 | BF52: 0 | BG52: 0 | BH52: 0 | BI52: 0 | BJ52: 0
H53: 7021 | I53: 306769.02 | J53: 0 | K53: 0 | L53: 0 | M53: 15303 | N53: 0 | O53: 5750 | P53: 1809.38 | Q53: 1514.71 | R53: 0 | S53: 0 | T53: 0 | U53: 0 | V53: 0 | W53: 0 | X53: 0 | Y53: 0 | Z53: 280 | AA53: 627.14 | AB53: 0 | AC53: 0 | AD53: 3330.62 | AE53: 0 | AF53: 12000 | AG53: 0 | AH53: 0 | AI53: 0 | AJ53: 30000 | AK53: 0 | AL53: 0 | AM53: 0 | AN53: 0 | AO53: 0 | AP53: -10870.22 | AQ53: 0 | AR53: 0 | AS53: 0 | AT53: 0 | AU53: -235479.96 | AV53: -120000 | AW53: 0 | AX53: -4510.95 | AY53: 0 | AZ53: 0 | BA53: 0 | BB53: 0 | BC53: 0 | BD53: 0 | BE53: 0 | BF53: 0 | BG53: 0 | BH53: 0 | BI53: 0 | BJ53: 0
H54: 7032 | I54: 0 | J54: 0 | K54: 0 | L54: 0 | M54: 0 | N54: 0 | O54: 0 | P54: 0 | Q54: 0 | R54: 0 | S54: 0 | T54: 0 | U54: 0 | V54: 0 | W54: 0 | X54: 0 | Y54: 0 | Z54: 0 | AA54: 0 | AB54: 0 | AC54: 0 | AD54: 0 | AE54: 0 | AF54: 0 | AG54: 0 | AH54: 0 | AI54: 0 | AJ54: 0 | AK54: 0 | AL54: 0 | AM54: 0 | AN54: 0 | AO54: 0 | AP54: 0 | AQ54: 0 | AR54: 0 | AS54: 0 | AT54: 0 | AU54: 0 | AV54: 0 | AW54: 0 | AX54: 0 | AY54: 0 | AZ54: 0 | BA54: 0 | BB54: 0 | BC54: 0 | BD54: 0 | BE54: 0 | BF54: 0 | BG54: 0 | BH54: 0 | BI54: 0 | BJ54: 0
H55: 7033 | I55: 0 | J55: 0 | K55: 0 | L55: 0 | M55: 0 | N55: 0 | O55: 0 | P55: 0 | Q55: 0 | R55: 0 | S55: 0 | T55: 0 | U55: 0 | V55: 0 | W55: 0 | X55: 0 | Y55: 0 | Z55: 0 | AA55: 0 | AB55: 0 | AC55: 0 | AD55: 0 | AE55: 0 | AF55: 0 | AG55: 0 | AH55: 0 | AI55: 0 | AJ55: 0 | AK55: 0 | AL55: 0 | AM55: 0 | AN55: 0 | AO55: 0 | AP55: 0 | AQ55: 0 | AR55: 0 | AS55: 0 | AT55: 0 | AU55: 0 | AV55: 0 | AW55: 0 | AX55: 0 | AY55: 0 | AZ55: 0 | BA55: 0 | BB55: 0 | BC55: 0 | BD55: 0 | BE55: 0 | BF55: 0 | BG55: 0 | BH55: 0 | BI55: 0 | BJ55: 0
H56: 7039 | I56: 461488.18 | J56: 0 | K56: 0 | L56: 0 | M56: 26453.02 | N56: 0 | O56: 0 | P56: 2000.69 | Q56: 99.66 | R56: 0 | S56: 0 | T56: 0 | U56: 0 | V56: 0 | W56: 0 | X56: 0 | Y56: 0 | Z56: 37760 | AA56: 25.55 | AB56: 91.06 | AC56: 0 | AD56: 62.18 | AE56: 0 | AF56: 0 | AG56: 0 | AH56: 0 | AI56: 0 | AJ56: 0 | AK56: 0 | AL56: 0 | AM56: 0 | AN56: 0 | AO56: 0 | AP56: -26659.1 | AQ56: 0 | AR56: 0 | AS56: 0 | AT56: 0 | AU56: -309309.96 | AV56: -180000 | AW56: 0 | AX56: 0 | AY56: 0 | AZ56: 0 | BA56: 0 | BB56: 0 | BC56: 0 | BD56: 0 | BE56: 0 | BF56: 0 | BG56: 0 | BH56: 0 | BI56: 0 | BJ56: 0
H57: 7040 | I57: 0 | J57: 0 | K57: 0 | L57: 0 | M57: 0 | N57: 0 | O57: 0 | P57: 0 | Q57: 0 | R57: 0 | S57: 0 | T57: 0 | U57: 0 | V57: 0 | W57: 0 | X57: 0 | Y57: 0 | Z57: 0 | AA57: 0 | AB57: 0 | AC57: 0 | AD57: 0 | AE57: 0 | AF57: 0 | AG57: 0 | AH57: 0 | AI57: 0 | AJ57: 0 | AK57: 0 | AL57: 0 | AM57: 0 | AN57: 0 | AO57: 0 | AP57: 0 | AQ57: 0 | AR57: 0 | AS57: 0 | AT57: 0 | AU57: 0 | AV57: 0 | AW57: 0 | AX57: 0 | AY57: 0 | AZ57: 0 | BA57: 0 | BB57: 0 | BC57: 0 | BD57: 0 | BE57: 0 | BF57: 0 | BG57: 0 | BH57: 0 | BI57: 0 | BJ57: 0
H58: 7041 | I58: 372380.81 | J58: 0 | K58: 38772.65 | L58: 0 | M58: 46768.49 | N58: 0 | O58: 0 | P58: 3597.94 | Q58: 255.5 | R58: 0 | S58: 0 | T58: 0 | U58: 0 | V58: 0 | W58: 0 | X58: 0 | Y58: 0 | Z58: 4000 | AA58: 18.4 | AB58: 417.22 | AC58: 0 | AD58: 5218.44 | AE58: 0 | AF58: 43176.7 | AG58: 0 | AH58: 0 | AI58: 0 | AJ58: 2575.75 | AK58: 0 | AL58: 0 | AM58: 0 | AN58: 0 | AO58: 0 | AP58: -17751.16 | AQ58: 0 | AR58: 0 | AS58: 0 | AT58: 0 | AU58: -292839.96 | AV58: -210000 | AW58: 0 | AX58: 0 | AY58: 0 | AZ58: 0 | BA58: 0 | BB58: 0 | BC58: 0 | BD58: 0 | BE58: 0 | BF58: 0 | BG58: 0 | BH58: 0 | BI58: 0 | BJ58: 0
H59: 7043 | I59: 490459.08 | J59: 0 | K59: 54321.28 | L59: 0 | M59: 32671.68 | N59: 0 | O59: 0 | P59: 7370.49 | Q59: 367.65 | R59: 0 | S59: 0 | T59: 0 | U59: 0 | V59: 0 | W59: 0 | X59: 0 | Y59: 0 | Z59: 49.99 | AA59: 337.14 | AB59: 979.98 | AC59: 0 | AD59: 5107.93 | AE59: 0 | AF59: 0 | AG59: 0 | AH59: 0 | AI59: 0 | AJ59: 0 | AK59: 0 | AL59: 0 | AM59: 0 | AN59: 0 | AO59: 0 | AP59: -21719.4 | AQ59: 0 | AR59: 0 | AS59: 0 | AT59: 0 | AU59: -307209.96 | AV59: -200000.04 | AW59: 0 | AX59: -44722.34 | AY59: 0 | AZ59: 0 | BA59: 0 | BB59: 0 | BC59: 0 | BD59: 0 | BE59: 0 | BF59: 0 | BG59: 0 | BH59: 0 | BI59: 0 | BJ59: 0
H60: 7044 | I60: 395169 | J60: 0 | K60: 60044.05 | L60: 0 | M60: 24686.19 | N60: 0 | O60: 0 | P60: 519.35 | Q60: 200 | R60: 0 | S60: 0 | T60: 0 | U60: 0 | V60: 0 | W60: 0 | X60: 0 | Y60: 0 | Z60: 25.89 | AA60: 25.41 | AB60: 1275.48 | AC60: 0 | AD60: 5594.18 | AE60: 0 | AF60: 0 | AG60: 0 | AH60: 0 | AI60: -36.01 | AJ60: 72352.88 | AK60: 0 | AL60: 0 | AM60: 0 | AN60: 0 | AO60: 0 | AP60: -20890.35 | AQ60: 0 | AR60: 0 | AS60: 0 | AT60: 0 | AU60: -288830.04 | AV60: -170000.04 | AW60: 0 | AX60: -21547.7 | AY60: 0 | AZ60: 0 | BA60: 0 | BB60: 0 | BC60: 0 | BD60: 0 | BE60: 0 | BF60: 0 | BG60: 0 | BH60: 0 | BI60: 0 | BJ60: 0
H61: 7045 | I61: 333600.53 | J61: 0 | K61: 33047.53 | L61: 0 | M61: 22572.11 | N61: 0 | O61: 83729.67 | P61: 3939.7 | Q61: 3582.55 | R61: 0 | S61: 0 | T61: 0 | U61: 0 | V61: 0 | W61: 0 | X61: 0 | Y61: 0 | Z61: 0 | AA61: 1322.76 | AB61: 2711.91 | AC61: 0 | AD61: 3341.29 | AE61: 0 | AF61: 67710.04 | AG61: 0 | AH61: 564 | AI61: 0 | AJ61: 1845 | AK61: 0 | AL61: 0 | AM61: 0 | AN61: 0 | AO61: 0 | AP61: -17289.93 | AQ61: 0 | AR61: 0 | AS61: 0 | AT61: 0 | AU61: -283230 | AV61: -180000 | AW61: 0 | AX61: -3123 | AY61: 0 | AZ61: 0 | BA61: 0 | BB61: 0 | BC61: 0 | BD61: 0 | BE61: 0 | BF61: 0 | BG61: 0 | BH61: 0 | BI61: 0 | BJ61: 0
H62: 7051 | I62: 347099.43 | J62: 0 | K62: 18325.84 | L62: 0 | M62: 32712.49 | N62: 0 | O62: 0 | P62: 12399.92 | Q62: 2381.25 | R62: 39.96 | S62: 1518 | T62: 0 | U62: 0 | V62: 0 | W62: 0 | X62: 0 | Y62: 0 | Z62: 12560 | AA62: 1748.65 | AB62: 1083 | AC62: 0 | AD62: 7275.39 | AE62: 597.96 | AF62: 0 | AG62: 0 | AH62: 0 | AI62: 125 | AJ62: 4617.96 | AK62: 0 | AL62: 0 | AM62: 0 | AN62: 0 | AO62: 0 | AP62: -15272.39 | AQ62: 0 | AR62: 0 | AS62: 0 | AT62: 0 | AU62: -264849.96 | AV62: -189999.96 | AW62: 0 | AX62: -9773 | AY62: 0 | AZ62: 0 | BA62: 0 | BB62: 0 | BC62: -210 | BD62: 0 | BE62: 0 | BF62: 0 | BG62: 0 | BH62: 0 | BI62: 0 | BJ62: 0
H63: 7052 | I63: 0 | J63: 0 | K63: 0 | L63: 0 | M63: 0 | N63: 0 | O63: 0 | P63: 0 | Q63: 0 | R63: 0 | S63: 0 | T63: 0 | U63: 0 | V63: 0 | W63: 0 | X63: 0 | Y63: 0 | Z63: 0 | AA63: 0 | AB63: 0 | AC63: 0 | AD63: 0 | AE63: 0 | AF63: 0 | AG63: 0 | AH63: 0 | AI63: 0 | AJ63: 0 | AK63: 0 | AL63: 0 | AM63: 0 | AN63: 0 | AO63: 0 | AP63: 0 | AQ63: 0 | AR63: 0 | AS63: 0 | AT63: 0 | AU63: 0 | AV63: 0 | AW63: 0 | AX63: 0 | AY63: 0 | AZ63: 0 | BA63: 0 | BB63: 0 | BC63: 0 | BD63: 0 | BE63: 0 | BF63: 0 | BG63: 0 | BH63: 0 | BI63: 0 | BJ63: 0
H64: 7056 | I64: 446289.92 | J64: 0 | K64: 20826.17 | L64: 0 | M64: 34482.72 | N64: 0 | O64: 0 | P64: 3379 | Q64: 2619.42 | R64: 0 | S64: 0 | T64: 0 | U64: 0 | V64: 0 | W64: 0 | X64: 0 | Y64: 0 | Z64: 1858.4 | AA64: 144.82 | AB64: 260.8 | AC64: 0 | AD64: 2143.98 | AE64: 0 | AF64: 0 | AG64: 371.74 | AH64: 0 | AI64: 0 | AJ64: 0 | AK64: 0 | AL64: 0 | AM64: 0 | AN64: 0 | AO64: 0 | AP64: -26516.76 | AQ64: 0 | AR64: 0 | AS64: 0 | AT64: 0 | AU64: -265849.96 | AV64: -240000 | AW64: 0 | AX64: -42983.37 | AY64: 0 | AZ64: 0 | BA64: 0 | BB64: 0 | BC64: 0 | BD64: 0 | BE64: 0 | BF64: 0 | BG64: 0 | BH64: 0 | BI64: 0 | BJ64: 0
H65: 7058 | I65: 0 | J65: 0 | K65: 0 | L65: 0 | M65: 0 | N65: 0 | O65: 0 | P65: 0 | Q65: 0 | R65: 0 | S65: 0 | T65: 0 | U65: 0 | V65: 0 | W65: 0 | X65: 0 | Y65: 0 | Z65: 0 | AA65: 0 | AB65: 0 | AC65: 0 | AD65: 0 | AE65: 0 | AF65: 0 | AG65: 0 | AH65: 0 | AI65: 0 | AJ65: 0 | AK65: 0 | AL65: 0 | AM65: 0 | AN65: 0 | AO65: 0 | AP65: 0 | AQ65: 0 | AR65: 0 | AS65: 0 | AT65: 0 | AU65: 0 | AV65: 0 | AW65: 0 | AX65: 0 | AY65: 0 | AZ65: 0 | BA65: 0 | BB65: 0 | BC65: 0 | BD65: 0 | BE65: 0 | BF65: 0 | BG65: 0 | BH65: 0 | BI65: 0 | BJ65: 0
H66: 7062 | I66: 0 | J66: 0 | K66: 0 | L66: 0 | M66: 0 | N66: 0 | O66: 0 | P66: 0 | Q66: 0 | R66: 0 | S66: 0 | T66: 0 | U66: 0 | V66: 0 | W66: 0 | X66: 0 | Y66: 0 | Z66: 0 | AA66: 0 | AB66: 0 | AC66: 0 | AD66: 0 | AE66: 0 | AF66: 0 | AG66: 0 | AH66: 0 | AI66: 0 | AJ66: 0 | AK66: 0 | AL66: 0 | AM66: 0 | AN66: 0 | AO66: 0 | AP66: 0 | AQ66: 0 | AR66: 0 | AS66: 0 | AT66: 0 | AU66: 0 | AV66: 0 | AW66: 0 | AX66: 0 | AY66: 0 | AZ66: 0 | BA66: 0 | BB66: 0 | BC66: 0 | BD66: 0 | BE66: 0 | BF66: 0 | BG66: 0 | BH66: 0 | BI66: 0 | BJ66: 0
H67: 7063 | I67: 387638.15 | J67: 0 | K67: 0 | L67: 0 | M67: 35661.15 | N67: 0 | O67: 0 | P67: 4576.87 | Q67: 150 | R67: 0 | S67: 0 | T67: 0 | U67: 0 | V67: 0 | W67: 0 | X67: 0 | Y67: 0 | Z67: 0 | AA67: 0 | AB67: 0 | AC67: 0 | AD67: 0 | AE67: 0 | AF67: 0.39 | AG67: 0 | AH67: 0 | AI67: 0 | AJ67: 0 | AK67: 0 | AL67: 0 | AM67: 0 | AN67: 0 | AO67: 0 | AP67: -15586.85 | AQ67: 0 | AR67: 0 | AS67: 0 | AT67: 0 | AU67: -478840.08 | AV67: 0 | AW67: 0 | AX67: 0 | AY67: 0 | AZ67: 0 | BA67: 0 | BB67: 0 | BC67: 0 | BD67: 0 | BE67: 0 | BF67: 0 | BG67: 0 | BH67: 0 | BI67: 0 | BJ67: 0
H68: 7067 | I68: 0 | J68: 0 | K68: 0 | L68: 0 | M68: 0 | N68: 0 | O68: 0 | P68: 0 | Q68: 0 | R68: 0 | S68: 0 | T68: 0 | U68: 0 | V68: 0 | W68: 0 | X68: 0 | Y68: 0 | Z68: 0 | AA68: 0 | AB68: 0 | AC68: 0 | AD68: 0 | AE68: 0 | AF68: 0 | AG68: 0 | AH68: 0 | AI68: 0 | AJ68: 0 | AK68: 0 | AL68: 0 | AM68: 0 | AN68: 0 | AO68: 0 | AP68: 0 | AQ68: 0 | AR68: 0 | AS68: 0 | AT68: 0 | AU68: 0 | AV68: 0 | AW68: 0 | AX68: 0 | AY68: 0 | AZ68: 0 | BA68: 0 | BB68: 0 | BC68: 0 | BD68: 0 | BE68: 0 | BF68: 0 | BG68: 0 | BH68: 0 | BI68: 0 | BJ68: 0
H69: 7069 | I69: 0 | J69: 0 | K69: 0 | L69: 0 | M69: 0 | N69: 0 | O69: 0 | P69: 0 | Q69: 0 | R69: 0 | S69: 0 | T69: 0 | U69: 0 | V69: 0 | W69: 0 | X69: 0 | Y69: 0 | Z69: 0 | AA69: 0 | AB69: 0 | AC69: 0 | AD69: 0 | AE69: 0 | AF69: 0 | AG69: 0 | AH69: 0 | AI69: 0 | AJ69: 0 | AK69: 0 | AL69: 0 | AM69: 0 | AN69: 0 | AO69: 0 | AP69: 0 | AQ69: 0 | AR69: 0 | AS69: 0 | AT69: 0 | AU69: 0 | AV69: 0 | AW69: 0 | AX69: 0 | AY69: 0 | AZ69: 0 | BA69: 0 | BB69: 0 | BC69: 0 | BD69: 0 | BE69: 0 | BF69: 0 | BG69: 0 | BH69: 0 | BI69: 0 | BJ69: 0
H70: 7070 | I70: 0 | J70: 0 | K70: 0 | L70: 0 | M70: 0 | N70: 0 | O70: 0 | P70: 0 | Q70: 0 | R70: 0 | S70: 0 | T70: 0 | U70: 0 | V70: 0 | W70: 0 | X70: 0 | Y70: 0 | Z70: 0 | AA70: 0 | AB70: 0 | AC70: 0 | AD70: 0 | AE70: 0 | AF70: 0 | AG70: 0 | AH70: 0 | AI70: 0 | AJ70: 0 | AK70: 0 | AL70: 0 | AM70: 0 | AN70: 0 | AO70: 0 | AP70: 0 | AQ70: 0 | AR70: 0 | AS70: 0 | AT70: 0 | AU70: 0 | AV70: 0 | AW70: 0 | AX70: 0 | AY70: 0 | AZ70: 0 | BA70: 0 | BB70: 0 | BC70: 0 | BD70: 0 | BE70: 0 | BF70: 0 | BG70: 0 | BH70: 0 | BI70: 0 | BJ70: 0
H71: 7072 | I71: 345753.87 | J71: 0 | K71: 0 | L71: 4829.1 | M71: 75279.12 | N71: 0 | O71: 167862.85 | P71: 4896.94 | Q71: 3977.3 | R71: 0 | S71: 1651.8 | T71: 6393.96 | U71: 497.88 | V71: 10774.96 | W71: 1530.99 | X71: 14191.98 | Y71: 0 | Z71: 5532.41 | AA71: 14944 | AB71: 16929.36 | AC71: 0 | AD71: 3215.42 | AE71: 973.2 | AF71: 0 | AG71: 0 | AH71: 0 | AI71: 3068.74 | AJ71: 2286.85 | AK71: 0 | AL71: 0 | AM71: 0 | AN71: 0 | AO71: 0 | AP71: -26085.65 | AQ71: 0 | AR71: 0 | AS71: 0 | AT71: 0 | AU71: -617679.96 | AV71: 0 | AW71: -2834.1 | AX71: -14076 | AY71: 0 | AZ71: 0 | BA71: 0 | BB71: 0 | BC71: 0 | BD71: 0 | BE71: 0 | BF71: 0 | BG71: 0 | BH71: 0 | BI71: 0 | BJ71: 0
H72: 7073 | I72: 466663.68 | J72: 0 | K72: 28987.13 | L72: 0 | M72: 13785.31 | N72: 0 | O72: 0 | P72: 1475.83 | Q72: 62693.05 | R72: 0 | S72: 0 | T72: 0 | U72: 0 | V72: 0 | W72: 0 | X72: 0 | Y72: 0 | Z72: 307.59 | AA72: 621.96 | AB72: 75 | AC72: 0 | AD72: 4553.96 | AE72: 0 | AF72: 0 | AG72: 0 | AH72: 0 | AI72: 25550 | AJ72: 0 | AK72: 0 | AL72: 0 | AM72: 0 | AN72: 0 | AO72: 0 | AP72: -22750.63 | AQ72: 0 | AR72: 0 | AS72: 0 | AT72: 0 | AU72: -375549.96 | AV72: -38045.5 | AW72: 0 | AX72: 0 | AY72: 0 | AZ72: 0 | BA72: 0 | BB72: 0 | BC72: 0 | BD72: 0 | BE72: 0 | BF72: 0 | BG72: 0 | BH72: 0 | BI72: 0 | BJ72: 0
I73: 2 | J73: 3 | K73: 4 | L73: 5 | M73: 6 | O73: 7 | P73: 8 | Q73: 9 | T73: 10 | Z73: 11 | AA73: 12 | AB73: 13 | AD73: 14 | AF73: 15 | AG73: 16 | AI73: 17 | AJ73: 18 | AT73: 18 | AU73: 19 | AV73: 20
